Workbook

Sheet Personal Expense Budget
A1: My Household Budget Needs | E1: =SUM(E6:E60) -> 444.1752137 | F1: =SUM(F6:F60) -> 1791.259259 | G1: =SUM(G6:G60) -> 21495.11111 | I1: Monthly Household Income | L1: =SUM(J6:J12)*52+SUM(K6:K12)*12+SUM(L6:L12) -> 0
B3: Enter expense estimate in ONE | E3: Enter expense estimate in ONE | J3: INCOME
B4: column Weekly/Monthly/Annual | E4: column Weekly/Monthly/Annual | J4: Enter value in only one column!
A5: Dwelling: | B5: Weekly | C5: Monthly | D5: Annual | E5: Weekly | F5: Monthly | G5: Annual | I5: Source | J5: Weekly | K5: Monthly | L5: Annual
A6: Rent Payment | C6: 525 | E6: =B6+C6/4+D6/52 -> 131.25 | F6: =B6*4+C6+D6/12 -> 525 | G6: =B6*52+C6*12+D6 -> 6300 | I6: Wage Income
A7: House Payment | E7: =B7+C7/4+D7/52 -> 0 | F7: =B7*4+C7+D7/12 -> 0 | G7: =B7*52+C7*12+D7 -> 0
A8: Property Tax | E8: 0 | F8: 0 | G8: 0
A9: House Repair | E9: 0 | F9: 0 | G9: 0
A10: Miscellaneous Expenses (lawn mowing, cleaning, snow shoveling) | C10: 10 | E10: 2.5 | F10: 10 | G10: 120
A11: Homeowner’s Association Dues | E11: 0 | F11: 0 | G11: 0
A12: Insurance | D12: 300 | E12: 5.769230769 | F12: 25 | G12: 300
A13: Furniture/Appliance Payments | E13: 0 | F13: 0 | G13: 0
E14: 0 | F14: 0 | G14: 0
A15: Transportation | E15: 0 | F15: 0 | G15: 0
A16: Car Payment(s) | C16: 268 | E16: 67 | F16: 268 | G16: 3216
A17: Other Vehicle Payment(s) | E17: 0 | F17: 0 | G17: 0
A18: Vehicle Upkeep/Repair | E18: 0 | F18: 0 | G18: 0
A19: Fuel | D19: =10000/45*3.65 -> 811.1111111 | E19: 15.5982906 | F19: 67.59259259 | G19: 811.1111111
A20: Insurance | D20: 800 | E20: 15.38461538 | F20: 66.66666667 | G20: 800
A21: License(s) | D21: 110 | E21: 2.115384615 | F21: 9.166666667 | G21: 110
A22: Public Transportation | E22: 0 | F22: 0 | G22: 0
E23: 0 | F23: 0 | G23: 0
A24: Utilities | E24: 0 | F24: 0 | G24: 0
A25: Telephone | C25: 55 | E25: 13.75 | F25: 55 | G25: 660
A26: Gas | C26: 134 | E26: 33.5 | F26: 134 | G26: 1608
A27: Electricity | E27: 0 | F27: 0 | G27: 0
A28: Water | E28: 0 | F28: 0 | G28: 0
A29: Trash | E29: 0 | F29: 0 | G29: 0
E30: 0 | F30: 0 | G30: 0
A31: Personal | E31: 0 | F31: 0 | G31: 0
A32: Groceries | C32: 250 | E32: 62.5 | F32: 250 | G32: 3000
A33: Dining Out | E33: 0 | F33: 0 | G33: 0
A34: Entertainment | C34: 100 | E34: 25 | F34: 100 | G34: 1200
A35: Tobacco Products | E35: 0 | F35: 0 | G35: 0
A36: Medical/Dental/Vision Insurance | E36: 0 | F36: 0 | G36: 0
A37: Clothing | D37: 100 | E37: 1.923076923 | F37: 8.333333333 | G37: 100
A38: Laundry/Dry Cleaning | E38: 0 | F38: 0 | G38: 0
A39: Medical/Dental/Vision/Hospital Exp | E39: 0 | F39: 0 | G39: 0
A40: Prescriptions | C40: 100 | E40: 25 | F40: 100 | G40: 1200
A41: Education | E41: 0 | F41: 0 | G41: 0
A42: Credit Card Payments | C42: 75 | E42: 18.75 | F42: 75 | G42: 900
A43: Loan Payments | E43: 0 | F43: 0 | G43: 0
A44: Pets | E44: 0 | F44: 0 | G44: 0
A45: Dues & Subscriptions | E45: 0 | F45: 0 | G45: 0
A46: Gifts | D46: 150 | E46: 2.884615385 | F46: 12.5 | G46: 150
A47: Donations | E47: 0 | F47: 0 | G47: 0
A48: Travel | E48: 0 | F48: 0 | G48: 0
A49: Cable TV | C49: 85 | E49: 21.25 | F49: 85 | G49: 1020
A50: Personal | E50: 0 | F50: 0 | G50: 0
A51: Hobbies/Crafts | E51: 0 | F51: 0 | G51: 0
A52: Music | E52: 0 | F52: 0 | G52: 0
A53: Personal Assistant | E53: 0 | F53: 0 | G53: 0
A54: Assistive technology purchase, payments & maintenance | E54: 0 | F54: 0 | G54: 0
A55: Internet Access | E55: 0 | F55: 0 | G55: 0
A56: Other: | E56: 0 | F56: 0 | G56: 0
E57: 0 | F57: 0 | G57: 0
G58: 0
E59: 0 | F59: 0 | G59: 0
E60: 0 | F60: 0 | G60: 0

Sheet 0. Basic Info
A1: Basic Information Sheet | E1: =D11 -> ACME 5 Year
A3: This sheet is for entering basic information about your company that is then used on other sheets in the workbook.
B5: TIP: On this sheet and alll other worksheets, be sure to ONLY change values with BLUE font color.
B6: Black and other font color cells are calculated automatically and should not be manually adjusted.
A9: 1. Let's start off by entering the name of your company below:
C11: Your Business Name | D11: ACME 5 Year
A14: 2. When do you plan to start your business? (If already in business, enter when you want the plan to start)
C16: Starting Year | D16: 2016
C17: Starting Month | D17: 1 | E17: =TEXT(DATE(+D16,+D17,1),"MMM") -> Jan
A20: 3. Optional. What do you estimate your income tax rate will be?
C22: Personal Income Tax | D22: 0.15
A25: 4. Below is a brief description of the workbook tabs and recommended order of completion.
B27: Tab # | C27: Name | D27: Description
B28: 0 | C28: Basic Info | D28: Company name, starting year and month, tax rates
B29: 1 | C29: Sales Forecast | D29: Estimate pricing, units sold/month and cost of goods sold
B30: 2 | C30: Operating Budget | D30: Monthly expenses - rent, insurance, utilities, marketing, phone, etc
B31: 3 | C31: Startup Costs | D31: One-time startup expenses like incorporation costs, legal, etc.
B32: 4 | C32: Equipment & Vehicle | D32: One-time purchase of equipment like office equip, truck, tools
B33: 5 | C33: Facility Costs | D33: One-time cost to purchase building, redecorate, expand, signage
B34: 6 | C34: Seasonality | D34: Adjust monthly sales for seasonality and initial startup ramp up time
B35: 7 | C35: Funding Plan | D35: Describe where you will get funding and how it will be spent.
B36: 8 | C36: P&L and Cashflow | D36: Profit and Loss (Income Statement) with Cashflow at bottom
B37: 9 | C37: Sales Summary Tables | D37: Graphs & tables summaries of revenues - copy/paste into Word plan
B38: 10 | C38: Financial Summary Tables | D38: Graphs & tables P&L, expenses - for copy/paste into Word plan
B39: 11 | C39: Balance Sheet | D39: Annual Balance Sheet
B40: 12 | C40: Loan Detail | D40: Monthly ammortization of loans shown in Funding Plan
A41: ak | C41: Personal Budget | D41: Useful for estimating how much owner must make to live on

Sheet 1. Sales Forecast
A1: 1. Product Pricing and Cost Assumptions | E1: ='0. Basic Info'!D11 -> ACME 5 Year
A2: List up to six types of customers or sales transactions you will offer, the 'typical' price for each and 'typical' cost you pay to produce them,
A3: buy or produce each type of product/service.
A5: Customer Type | C5: Price | E5: COGS | F5: COGS
A6: Customer Type 1 | C6: 30 | E6: 0.21 | F6: =E6*C6 -> 6.3
A7: Customer Type 2 | C7: 25 | E7: 0.21 | F7: =E7*C7 -> 5.25
A8: Customer Type 3 | C8: 15 | E8: 0.21 | F8: 3.15
A9: Customer Type 4 | C9: 10 | E9: 0.21 | F9: 2.1
A10: Customer Type 5 | F10: 0
A11: Customer Type 6 | F11: 0
A12: Other | F12: 0
A14: 2. Number of Sales Per Month
A15: Estimate how many of each category of product/services you will sell in a 'typical' or 'average' month.
C16: Number of Sales Per month
A17: =A5 -> Customer Type | C17: ='0. Basic Info'!D16 -> 2016 | D17: For Reference, this is summary based
A18: Customer Type 1 | C18: 60 | D18: on these sales assumptions on this sheet
A19: Customer Type 2 | C19: 2 | D19: and operating expenses estimated on Tab 2.
A20: Customer Type 3 | C20: 50 | E20: Annual | F20: Monthly | G20: Weekly
A21: Customer Type 4 | C21: 40 | D21: Total Sales | E21: ='8. P&L and Cashflow'!C7 -> 34500 | F21: =E21/12 -> 2875 | G21: =E21/52 -> 663.4615385
A22: Customer Type 5 | D22: COGS | E22: ='8. P&L and Cashflow'!C8 -> 7245 | F22: 603.75 | G22: =E22/52 -> 139.3269231
A23: Customer Type 6 | D23: Expenses | E23: ='8. P&L and Cashflow'!C53 -> 25921.48952 | F23: 2160.124127 | G23: 498.4901832
A24: Other | D24: Loan Interest | E24: ='8. P&L and Cashflow'!P57 -> 535.4482683 | F24: 44.62068903 | G24: 10.29708208
A25: Total Sales per Month | C25: =SUM(C18:C24) -> 152 | D25: Net Profit | E25: ='8. P&L and Cashflow'!C60 -> 678.3528767 | F25: 56.52940639 | G25: =E25/52 -> 13.04524763
D26: Break-Even | E26: =(E23+E24)/(1-(E22/E21)) -> 33489.79467 | F26: 2790.816223 | G26: =E26/52 -> 644.034513
A27: 3. Projected Sales Growth
A28: As a percentage, estimate your growth in each sales category.
A30: 6. Projected Sales Growth | C30: =C66 -> 2016 | D30: =C30+1 -> 2017 | E30: =D30+1 -> 2018 | F30: 2019 | G30: 2020
A31: =A67 -> Customer Type 1 | D31: 0.1 | E31: 0.1 | F31: 0.1 | G31: 0.1
A32: Customer Type 2 | D32: 0.15 | E32: 0.15 | F32: 0.15 | G32: 0.15
A33: Customer Type 3 | D33: 0.15 | E33: 0.15 | F33: 0.15 | G33: 0.15
A34: Customer Type 4 | D34: 0.1 | E34: 0.1 | F34: 0.1 | G34: 0.1
A35: Customer Type 5 | D35: 0.1 | E35: 0.1 | F35: 0.1 | G35: 0.1
A36: Customer Type 6
A37: Other
A39: 4. Number of Annual Sales
C40: Number of Sales Per Year
A41: =A5 -> Customer Type | C41: =C17 -> 2016 | D41: =C41+1 -> 2017 | E41: =D41+1 -> 2018 | F41: 2019 | G41: 2020
A42: Customer Type 1 | C42: =C18*12 -> 720 | D42: =C42*(1+D31) -> 792 | E42: 871.2 | F42: 958.32 | G42: 1054.152
A43: Customer Type 2 | C43: 24 | D43: 27.6 | E43: 31.74 | F43: 36.501 | G43: 41.97615
A44: Customer Type 3 | C44: 600 | D44: 690 | E44: 793.5 | F44: 912.525 | G44: 1049.40375
A45: Customer Type 4 | C45: 480 | D45: 528 | E45: 580.8 | F45: 638.88 | G45: 702.768
A46: Customer Type 5 | C46: 0 | D46: 0 | E46: 0 | F46: 0 | G46: 0
A47: Customer Type 6 | C47: 0 | D47: 0 | E47: 0 | F47: 0 | G47: 0
A48: Other | C48: 0 | D48: 0 | E48: 0 | F48: 0 | G48: 0
A49: Total Jobs per YEAR | C49: =SUM(C42:C48) -> 1824 | D49: =SUM(D42:D48) -> 2037.6 | E49: 2277.24 | F49: 2546.226 | G49: 2848.2999
A50: (for reference - Avg jobs/week) | C50: =C49/52 -> 35.07692308 | D50: =D49/52 -> 39.18461538 | E50: 43.79307692 | F50: 48.96588462 | G50: 54.77499808
A52: 5. Annual Sales
C53: Annual Sales
A54: =A17 -> Customer Type | B54: % of total | C54: =C17 -> 2016 | D54: =C41+1 -> 2017 | E54: =D54+1 -> 2018 | F54: 2019 | G54: 2020
A55: Customer Type 1 | B55: =C55/C$62 -> 0.6 | C55: =C42*$C6 -> 21600 | D55: =(D31+1)*C55 -> 23760 | E55: =(E31+1)*D55 -> 26136 | F55: 28749.6 | G55: 31624.56
A56: Customer Type 2 | B56: =C56/C$62 -> 0.01666666667 | C56: 600 | D56: =(D32+1)*C56 -> 690 | E56: 793.5 | F56: 912.525 | G56: 1049.40375
A57: Customer Type 3 | B57: 0.25 | C57: 9000 | D57: =(D33+1)*C57 -> 10350 | E57: 11902.5 | F57: 13687.875 | G57: 15741.05625
A58: Customer Type 4 | B58: 0.1333333333 | C58: 4800 | D58: =(D34+1)*C58 -> 5280 | E58: 5808 | F58: 6388.8 | G58: 7027.68
A59: Customer Type 5 | B59: 0 | C59: 0 | D59: =(D35+1)*C59 -> 0 | E59: 0 | F59: 0 | G59: 0
A60: Customer Type 6 | B60: 0 | C60: 0 | D60: =(D36+1)*C60 -> 0 | E60: 0 | F60: 0 | G60: 0
A61: Other | B61: 0 | C61: 0 | D61: =(D37+1)*C61 -> 0 | E61: 0 | F61: 0 | G61: 0
A62: Total Annual Sales | B62: =SUM(B55:B61) -> 1 | C62: =SUM(C55:C61) -> 36000 | D62: =SUM(D55:D61) -> 40080 | E62: 44640 | F62: 49738.8 | G62: 55442.7
A64: 6. Cost of Goods Sold
C65: Annual Cost of Goods Sold
A66: =A41 -> Customer Type | C66: =C54 -> 2016 | D66: =C54+1 -> 2017 | E66: =D66+1 -> 2018 | F66: 2019 | G66: 2020
A67: Customer Type 1 | C67: =C55*($E6) -> 4536 | D67: =D55*($E6) -> 4989.6 | E67: 5488.56 | F67: 6037.416 | G67: 6641.1576
A68: Customer Type 2 | C68: =C56*($E7) -> 126 | D68: 144.9 | E68: 166.635 | F68: 191.63025 | G68: 220.3747875
A69: Customer Type 3 | C69: =C57*($E8) -> 1890 | D69: 2173.5 | E69: 2499.525 | F69: 2874.45375 | G69: 3305.621812
A70: Customer Type 4 | C70: =C58*($E9) -> 1008 | D70: 1108.8 | E70: 1219.68 | F70: 1341.648 | G70: 1475.8128
A71: Customer Type 5 | C71: =C59*($E10) -> 0 | D71: 0 | E71: 0 | F71: 0 | G71: 0
A72: Customer Type 6 | C72: =C60*($E11) -> 0 | D72: 0 | E72: 0 | F72: 0 | G72: 0
A73: Other | C73: =C61*($E12) -> 0 | D73: 0 | E73: 0 | F73: 0 | G73: 0
A74: Total COGS | C74: =SUM(C67:C73) -> 7560 | D74: 8416.8 | E74: 9374.4 | F74: 10445.148 | G74: 11642.967
C75: =C74/C62 -> 0.21 | D75: =D74/D62 -> 0.21 | E75: 0.21 | F75: 0.21 | G75: 0.21

Sheet 2. Operating Budget
A1: ='0. Basic Info'!D11 -> ACME 5 Year | D1: OPERATING BUDGET ESTIMATES | L1: ='1. Sales Forecast'!E21 -> 34500 | M1: INSTRUCTIONS
B3: Owner Paid Hours | D3: =E3/4 -> 34.17241379 | E3: =C8/7.25 -> 136.6896552 | G3: Average Monthly Budget
B4: Enter expense estimate in ONE | E4: Or as a | I4: Totals | M4: On this sheet, you can estimate your operating expenses like rent, utilities, marketing, cell phone and other recurring expenses.
B5: column Weekly/Monthly/Annual | E5: % of | I5: =SUM(I7:I44) -> 492.7557692 | J5: =SUM(J7:J44) -> 2135.275 | K5: =SUM(K7:K44) -> 25623.3 | L5: =SUM(L7:L44) -> 0.7427043478 | M5: IMPORTANT: This is for expenses that repeat! One-time startup expenses are estimated on Tab 3, Tab 4 and Tab 5. | AA5: =SUM(AA7:AA44) -> 25623.3 | AB5: =SUM(AB7:AB44) -> 26320.8 | AC5: 26890.8 | AD5: 27528.15 | AE5: 28241.1375
A6: EXPENSES | B6: Weekly | C6: Monthly | D6: Annual | E6: Sales | G6: Expense Category | I6: Weekly | J6: Monthly | K6: Annual | L6: of sales | AA6: ='8. P&L and Cashflow'!P2 -> 2016 | AB6: ='8. P&L and Cashflow'!AC2 -> 2017 | AC6: ='8. P&L and Cashflow'!AD2 -> 2018 | AD6: ='8. P&L and Cashflow'!AE2 -> 2019 | AE6: ='8. P&L and Cashflow'!AF2 -> 2020
A7: Worker Wages | G7: =IF(A7="","",A7) -> Worker Wages | I7: =K7/52 -> 0 | J7: =K7/12 -> 0 | K7: =C7*12+D7+B7*52+($E7*L$1) -> 0 | L7: =K7/$L$1 -> 0 | N7: This sheet allows you to estimate your operating expenses in one of four ways. | Z7: =G7 -> Worker Wages | AA7: =K7 -> 0 | AB7: ='8. P&L and Cashflow'!AC13 -> 0 | AC7: ='8. P&L and Cashflow'!AD13 -> 0 | AD7: ='8. P&L and Cashflow'!AE13 -> 0 | AE7: ='8. P&L and Cashflow'!AF13 -> 0
A8: Owner Pay | C8: 991 | G8: =IF(A8="","",A8) -> Owner Pay | H8: =IF(B8="","",B8) ->  | I8: =K8/52 -> 228.6923077 | J8: =K8/12 -> 991 | K8: =C8*12+D8+B8*52+($E8*L$1) -> 11892 | L8: 0.3446956522 | Z8: Owner Pay | AA8: 11892 | AB8: ='8. P&L and Cashflow'!AC14 -> 11892 | AC8: ='8. P&L and Cashflow'!AD14 -> 11892 | AD8: ='8. P&L and Cashflow'!AE14 -> 11892 | AE8: ='8. P&L and Cashflow'!AF14 -> 11892
A9: 0.15 | G9: 0.15 | I9: 34.30384615 | J9: 148.65 | K9: =G9*(K7+K8) -> 1783.8 | L9: 0.05170434783 | O9: 1. Column C - how much something costs per week. | Z9: 0.15 | AA9: 1783.8 | AB9: ='8. P&L and Cashflow'!AC15 -> 1783.8 | AC9: ='8. P&L and Cashflow'!AD15 -> 1783.8 | AD9: ='8. P&L and Cashflow'!AE15 -> 1783.8 | AE9: ='8. P&L and Cashflow'!AF15 -> 1783.8
A10: Workers Comp | B10: Lookup comp rate online | E10: 3.03 | G10: Workers Comp | I10: 0 | J10: 0 | K10: =K7/100*E10 -> 0 | L10: 0 | O10: 2. Column D - how much something costs per month | Z10: Workers Comp | AA10: 0 | AB10: ='8. P&L and Cashflow'!AC16 -> 0 | AC10: ='8. P&L and Cashflow'!AD16 -> 0 | AD10: ='8. P&L and Cashflow'!AE16 -> 0 | AE10: ='8. P&L and Cashflow'!AF16 -> 0
A11: Rent | C11: 400 | G11: Rent | I11: 92.30769231 | J11: 400 | K11: =C11*12+D11+B11*52+($E11*L$1) -> 4800 | L11: 0.1391304348 | O11: 3. Column E - how much something costs per year. | Z11: Rent | AA11: 4800 | AB11: ='8. P&L and Cashflow'!AC17 -> 4800 | AC11: ='8. P&L and Cashflow'!AD17 -> 4800 | AD11: ='8. P&L and Cashflow'!AE17 -> 4800 | AE11: ='8. P&L and Cashflow'!AF17 -> 4800
A12: Phone/Internet/Cell | C12: 150 | G12: Phone/Internet/Cell | I12: 34.61538462 | J12: 150 | K12: 1800 | L12: 0.05217391304 | O12: 4. Column F - something that is estimated as a percentage of total annual sales. | Z12: Phone/Internet/Cell | AA12: 1800 | AB12: ='8. P&L and Cashflow'!AC18 -> 1800 | AC12: ='8. P&L and Cashflow'!AD18 -> 1800 | AD12: ='8. P&L and Cashflow'!AE18 -> 1800 | AE12: ='8. P&L and Cashflow'!AF18 -> 1800
A13: Electricity | G13: Electricity | I13: 0 | J13: 0 | K13: 0 | L13: 0 | N13: For each expense line, only enter a value in ONE of the columns C, D, E, and F for each expense row. | Z13: Electricity | AA13: 0 | AB13: ='8. P&L and Cashflow'!AC19 -> 0 | AC13: ='8. P&L and Cashflow'!AD19 -> 0 | AD13: ='8. P&L and Cashflow'!AE19 -> 0 | AE13: ='8. P&L and Cashflow'!AF19 -> 0
A14: Dumpster/Waste | G14: Dumpster/Waste | I14: 0 | J14: 0 | K14: 0 | L14: 0 | N14: You can edit the names of expenses if they are in BLUE text. Only change BLUE text! | Z14: Dumpster/Waste | AA14: 0 | AB14: ='8. P&L and Cashflow'!AC20 -> 0 | AC14: ='8. P&L and Cashflow'!AD20 -> 0 | AD14: ='8. P&L and Cashflow'!AE20 -> 0 | AE14: ='8. P&L and Cashflow'!AF20 -> 0
A15: Liability Insurance | D15: 500 | G15: Liability Insurance | I15: 9.615384615 | J15: 41.66666667 | K15: 500 | L15: 0.01449275362 | Z15: Liability Insurance | AA15: 500 | AB15: ='8. P&L and Cashflow'!AC21 -> 500 | AC15: ='8. P&L and Cashflow'!AD21 -> 500 | AD15: ='8. P&L and Cashflow'!AE21 -> 500 | AE15: ='8. P&L and Cashflow'!AF21 -> 500
I16: 0 | J16: 0 | K16: 0 | L16: 0 | N16: You do NOT have to use all the lines available! Leave blank if they are not needed, but do NOT delete any rows or | AA16: 0 | AB16: ='8. P&L and Cashflow'!AC22 -> 0 | AC16: ='8. P&L and Cashflow'!AD22 -> 0 | AD16: ='8. P&L and Cashflow'!AE22 -> 0 | AE16: ='8. P&L and Cashflow'!AF22 -> 0
I17: 0 | J17: 0 | K17: 0 | L17: 0 | N17: add more rows. This sheet links to Tab 6 P&L and will become corrupted if you delet or add rows here! | AA17: 0 | AB17: ='8. P&L and Cashflow'!AC23 -> 0 | AC17: ='8. P&L and Cashflow'!AD23 -> 0 | AD17: ='8. P&L and Cashflow'!AE23 -> 0 | AE17: ='8. P&L and Cashflow'!AF23 -> 0
I18: 0 | J18: 0 | K18: 0 | L18: 0 | AA18: 0 | AB18: ='8. P&L and Cashflow'!AC24 -> 0 | AC18: ='8. P&L and Cashflow'!AD24 -> 0 | AD18: ='8. P&L and Cashflow'!AE24 -> 0 | AE18: ='8. P&L and Cashflow'!AF24 -> 0
A19: Licenses | D19: 150 | G19: Licenses | I19: 2.884615385 | J19: 12.5 | K19: 150 | L19: 0.004347826087 | Z19: Licenses | AA19: 150 | AB19: ='8. P&L and Cashflow'!AC25 -> 150 | AC19: ='8. P&L and Cashflow'!AD25 -> 150 | AD19: ='8. P&L and Cashflow'!AE25 -> 150 | AE19: ='8. P&L and Cashflow'!AF25 -> 150
I20: 0 | J20: 0 | K20: 0 | L20: 0 | AA20: 0 | AB20: ='8. P&L and Cashflow'!AC26 -> 0 | AC20: ='8. P&L and Cashflow'!AD26 -> 0 | AD20: ='8. P&L and Cashflow'!AE26 -> 0 | AE20: ='8. P&L and Cashflow'!AF26 -> 0
A21: Advertising Expenses | E21: 0.03 | G21: Advertising Expenses | I21: 19.90384615 | J21: 86.25 | K21: 1035 | L21: 0.03 | Z21: Advertising Expenses | AA21: 1035 | AB21: ='8. P&L and Cashflow'!AC27 -> 1202.4 | AC21: ='8. P&L and Cashflow'!AD27 -> 1339.2 | AD21: ='8. P&L and Cashflow'!AE27 -> 1492.164 | AE21: ='8. P&L and Cashflow'!AF27 -> 1663.281
I22: 0 | J22: 0 | K22: 0 | L22: 0 | AA22: 0 | AB22: ='8. P&L and Cashflow'!AC28 -> 0 | AC22: ='8. P&L and Cashflow'!AD28 -> 0 | AD22: ='8. P&L and Cashflow'!AE28 -> 0 | AE22: ='8. P&L and Cashflow'!AF28 -> 0
I23: 0 | J23: 0 | K23: 0 | L23: 0 | AA23: 0 | AB23: ='8. P&L and Cashflow'!AC29 -> 0 | AC23: ='8. P&L and Cashflow'!AD29 -> 0 | AD23: ='8. P&L and Cashflow'!AE29 -> 0 | AE23: ='8. P&L and Cashflow'!AF29 -> 0
I24: 0 | J24: 0 | K24: 0 | L24: 0 | AA24: 0 | AB24: ='8. P&L and Cashflow'!AC30 -> 0 | AC24: ='8. P&L and Cashflow'!AD30 -> 0 | AD24: ='8. P&L and Cashflow'!AE30 -> 0 | AE24: ='8. P&L and Cashflow'!AF30 -> 0
I25: 0 | J25: 0 | K25: 0 | L25: 0 | AA25: 0 | AB25: ='8. P&L and Cashflow'!AC31 -> 0 | AC25: ='8. P&L and Cashflow'!AD31 -> 0 | AD25: ='8. P&L and Cashflow'!AE31 -> 0 | AE25: ='8. P&L and Cashflow'!AF31 -> 0
I26: 0 | J26: 0 | K26: 0 | L26: 0 | AA26: 0 | AB26: ='8. P&L and Cashflow'!AC32 -> 0 | AC26: ='8. P&L and Cashflow'!AD32 -> 0 | AD26: ='8. P&L and Cashflow'!AE32 -> 0 | AE26: ='8. P&L and Cashflow'!AF32 -> 0
A27: Delivery Expense (Fuel, S&H) | E27: 0.06 | G27: Delivery Expense (Fuel, S&H) | I27: 39.80769231 | J27: 172.5 | K27: 2070 | L27: 0.06 | Z27: Delivery Expense (Fuel, S&H) | AA27: 2070 | AB27: ='8. P&L and Cashflow'!AC33 -> 2404.8 | AC27: ='8. P&L and Cashflow'!AD33 -> 2678.4 | AD27: ='8. P&L and Cashflow'!AE33 -> 2984.328 | AE27: ='8. P&L and Cashflow'!AF33 -> 3326.562
I28: 0 | J28: 0 | K28: 0 | L28: 0 | AA28: 0 | AB28: ='8. P&L and Cashflow'!AC34 -> 0 | AC28: ='8. P&L and Cashflow'!AD34 -> 0 | AD28: ='8. P&L and Cashflow'!AE34 -> 0 | AE28: ='8. P&L and Cashflow'!AF34 -> 0
A29: Accounting Services | D29: 300 | G29: Accounting Services | I29: 5.769230769 | J29: 25 | K29: 300 | L29: 0.008695652174 | Z29: Accounting Services | AA29: 300 | AB29: ='8. P&L and Cashflow'!AC35 -> 300 | AC29: ='8. P&L and Cashflow'!AD35 -> 300 | AD29: ='8. P&L and Cashflow'!AE35 -> 300 | AE29: ='8. P&L and Cashflow'!AF35 -> 300
A30: Banking Fees | D30: 85 | G30: Banking Fees | I30: 1.634615385 | J30: 7.083333333 | K30: 85 | L30: 0.002463768116 | Z30: Banking Fees | AA30: 85 | AB30: ='8. P&L and Cashflow'!AC36 -> 85 | AC30: ='8. P&L and Cashflow'!AD36 -> 85 | AD30: ='8. P&L and Cashflow'!AE36 -> 85 | AE30: ='8. P&L and Cashflow'!AF36 -> 85
A31: Merchant Account Fee | E31: 0.035 | G31: Merchant Account Fee | I31: 23.22115385 | J31: 100.625 | K31: 1207.5 | L31: 0.035 | Z31: Merchant Account Fee | AA31: 1207.5 | AB31: ='8. P&L and Cashflow'!AC37 -> 1402.8 | AC31: ='8. P&L and Cashflow'!AD37 -> 1562.4 | AD31: ='8. P&L and Cashflow'!AE37 -> 1740.858 | AE31: ='8. P&L and Cashflow'!AF37 -> 1940.4945
I32: 0 | J32: 0 | K32: 0 | L32: 0 | AA32: 0 | AB32: ='8. P&L and Cashflow'!AC38 -> 0 | AC32: ='8. P&L and Cashflow'!AD38 -> 0 | AD32: ='8. P&L and Cashflow'!AE38 -> 0 | AE32: ='8. P&L and Cashflow'!AF38 -> 0
I33: 0 | J33: 0 | K33: 0 | L33: 0 | AA33: 0 | AB33: ='8. P&L and Cashflow'!AC39 -> 0 | AC33: ='8. P&L and Cashflow'!AD39 -> 0 | AD33: ='8. P&L and Cashflow'!AE39 -> 0 | AE33: ='8. P&L and Cashflow'!AF39 -> 0
I34: 0 | J34: 0 | K34: 0 | L34: 0 | AA34: 0 | AB34: ='8. P&L and Cashflow'!AC40 -> 0 | AC34: ='8. P&L and Cashflow'!AD40 -> 0 | AD34: ='8. P&L and Cashflow'!AE40 -> 0 | AE34: ='8. P&L and Cashflow'!AF40 -> 0
I35: 0 | J35: 0 | K35: 0 | L35: 0 | AA35: 0 | AB35: ='8. P&L and Cashflow'!AC41 -> 0 | AC35: ='8. P&L and Cashflow'!AD41 -> 0 | AD35: ='8. P&L and Cashflow'!AE41 -> 0 | AE35: ='8. P&L and Cashflow'!AF41 -> 0
I36: 0 | J36: 0 | K36: 0 | L36: 0 | AA36: 0 | AB36: ='8. P&L and Cashflow'!AC42 -> 0 | AC36: ='8. P&L and Cashflow'!AD42 -> 0 | AD36: ='8. P&L and Cashflow'!AE42 -> 0 | AE36: ='8. P&L and Cashflow'!AF42 -> 0
I37: 0 | J37: 0 | K37: 0 | L37: 0 | AA37: 0 | AB37: ='8. P&L and Cashflow'!AC43 -> 0 | AC37: ='8. P&L and Cashflow'!AD43 -> 0 | AD37: ='8. P&L and Cashflow'!AE43 -> 0 | AE37: ='8. P&L and Cashflow'!AF43 -> 0
I38: 0 | J38: 0 | K38: 0 | L38: 0 | AA38: 0 | AB38: ='8. P&L and Cashflow'!AC44 -> 0 | AC38: ='8. P&L and Cashflow'!AD44 -> 0 | AD38: ='8. P&L and Cashflow'!AE44 -> 0 | AE38: ='8. P&L and Cashflow'!AF44 -> 0
I39: 0 | J39: 0 | K39: 0 | L39: 0 | AA39: 0 | AB39: ='8. P&L and Cashflow'!AC45 -> 0 | AC39: ='8. P&L and Cashflow'!AD45 -> 0 | AD39: ='8. P&L and Cashflow'!AE45 -> 0 | AE39: ='8. P&L and Cashflow'!AF45 -> 0
I40: 0 | J40: 0 | K40: 0 | L40: 0 | AA40: 0 | AB40: ='8. P&L and Cashflow'!AC46 -> 0 | AC40: ='8. P&L and Cashflow'!AD46 -> 0 | AD40: ='8. P&L and Cashflow'!AE46 -> 0 | AE40: ='8. P&L and Cashflow'!AF46 -> 0
I41: 0 | J41: 0 | K41: 0 | L41: 0 | AA41: 0 | AB41: ='8. P&L and Cashflow'!AC47 -> 0 | AC41: ='8. P&L and Cashflow'!AD47 -> 0 | AD41: ='8. P&L and Cashflow'!AE47 -> 0 | AE41: ='8. P&L and Cashflow'!AF47 -> 0
I42: 0 | J42: 0 | K42: 0 | L42: 0 | AA42: 0 | AB42: ='8. P&L and Cashflow'!AC48 -> 0 | AC42: ='8. P&L and Cashflow'!AD48 -> 0 | AD42: ='8. P&L and Cashflow'!AE48 -> 0 | AE42: ='8. P&L and Cashflow'!AF48 -> 0
I43: 0 | J43: 0 | K43: 0 | L43: 0 | AA43: 0 | AB43: ='8. P&L and Cashflow'!AC49 -> 0 | AC43: ='8. P&L and Cashflow'!AD49 -> 0 | AD43: ='8. P&L and Cashflow'!AE49 -> 0 | AE43: ='8. P&L and Cashflow'!AF49 -> 0
A44: Other | G44: Other | I44: 0 | J44: 0 | K44: 0 | L44: 0 | Z44: Other | AA44: 0 | AB44: ='8. P&L and Cashflow'!AC50 -> 0 | AC44: ='8. P&L and Cashflow'!AD50 -> 0 | AD44: ='8. P&L and Cashflow'!AE50 -> 0 | AE44: ='8. P&L and Cashflow'!AF50 -> 0

Sheet 3. Startup Costs
A1: ='0. Basic Info'!D11 -> ACME 5 Year | C1: Business Startup Costs | F1: =SUM(F4:F63) -> 760
D2: Tax | E2: 0 | F2: =E2*F1 -> 0 | G2: Owner
A3: Qty | B3: Purpose | C3: Have | D3: Item | F3: =F1+F2 -> 760 | G3: =SUM(G4:G63) -> 460
A4: 1 | B4: Business | C4: Y | D4: Incorporation | E4: 250 | F4: =A4*E4 -> 250 | G4: =IF(C4="y",F4,0) -> 250
A5: 1 | B5: Business | C5: Y | D5: Legal review of wholesale contracts | E5: 150 | F5: 150 | G5: 150
A6: 1 | B6: Business | C6: Y | D6: Misc office items | E6: 60 | F6: 60 | G6: 60
A7: 1 | B7: Business | D7: CPA setup QuickBooks on PC | E7: 300 | F7: 300 | G7: 0
F8: 0 | G8: 0
F9: 0 | G9: 0
F10: 0 | G10: 0
F11: 0 | G11: 0
F12: 0 | G12: 0
F13: 0 | G13: 0
F14: 0 | G14: 0
F15: 0 | G15: 0
F16: 0 | G16: 0
F17: 0 | G17: 0
F18: 0 | G18: 0
F19: 0 | G19: 0
F20: 0 | G20: 0
F21: 0 | G21: 0
F22: 0 | G22: 0
F23: 0 | G23: 0
F24: 0 | G24: 0
F25: 0 | G25: 0
F26: 0 | G26: 0
F27: 0 | G27: 0
F28: 0 | G28: 0
F29: 0 | G29: 0
F30: 0 | G30: 0
F31: 0 | G31: 0
F32: 0 | G32: 0
F33: 0 | G33: 0
F34: 0 | G34: 0
F35: 0 | G35: 0
F36: 0 | G36: 0
F37: 0 | G37: 0
F38: 0 | G38: 0
F39: 0 | G39: 0
F40: 0 | G40: 0
F41: 0 | G41: 0
F42: 0 | G42: 0
F43: 0 | G43: 0
F44: 0 | G44: 0
F45: 0 | G45: 0
F46: 0 | G46: 0
F47: 0 | G47: 0
F48: 0 | G48: 0
F49: 0 | G49: 0
F50: 0 | G50: 0
F51: 0 | G51: 0
F52: 0 | G52: 0
F53: 0 | G53: 0
F54: 0 | G54: 0
F55: 0 | G55: 0
F56: 0 | G56: 0
F57: 0 | G57: 0
F58: 0 | G58: 0
F59: 0 | G59: 0
F60: 0 | G60: 0
F61: 0 | G61: 0
F62: 0 | G62: 0
F63: 0 | G63: 0

Sheet 4. Equipment & Vehicle Costs
A1: ='0. Basic Info'!D11 -> ACME 5 Year | D1: Equipment, Office Equipment and Supply Startup Expenses
F2: =SUM(F5:F85) -> 1744 | G2: Owner Purchased
D3: Tax | E3: 0 | F3: =E3*F2 -> 0
A4: Qty | B4: Use | C4: Have | D4: Item | E4: Price Each | F4: =F2+F3 -> 1744 | G4: =SUM(G5:G85) -> 1150
A5: 1 | B5: Business | C5: Y | D5: Mac Laptop | E5: 1000 | F5: =A5*E5 -> 1000 | G5: =IF(C5="y",F5,0) -> 1000
A6: 1 | B6: Business | C6: Y | D6: Printer | E6: 150 | F6: =A6*E6 -> 150 | G6: =IF(C6="y",F6,0) -> 150
A7: 1 | B7: Business | D7: QuickBook Program Online Version 1 Year | E7: =49.5*12 -> 594 | F7: 594 | G7: 0
F8: 0 | G8: 0
F9: 0 | G9: 0
F10: 0 | G10: 0
F11: 0 | G11: 0
F12: 0 | G12: 0
F13: 0 | G13: 0
F14: 0 | G14: 0
F15: 0 | G15: 0
F16: 0 | G16: 0
F17: 0 | G17: 0
F18: 0 | G18: 0
F19: 0 | G19: 0
F20: 0 | G20: 0
F21: 0 | G21: 0
F22: 0 | G22: 0
F23: 0 | G23: 0
F24: 0 | G24: 0
F25: 0 | G25: 0
F26: 0 | G26: 0
F27: 0 | G27: 0
F28: 0 | G28: 0
F29: 0 | G29: 0
F30: 0 | G30: 0
F31: 0 | G31: 0
F32: 0 | G32: 0
F33: 0 | G33: 0
F34: 0 | G34: 0
F35: 0 | G35: 0
F36: 0 | G36: 0
F37: 0 | G37: 0
F38: 0 | G38: 0
F39: 0 | G39: 0
F40: 0 | G40: 0
F41: 0 | G41: 0
F42: 0 | G42: 0
F43: 0 | G43: 0
F44: 0 | G44: 0
F45: 0 | G45: 0
F46: 0 | G46: 0
F47: 0 | G47: 0
F48: 0 | G48: 0
F49: 0 | G49: 0
F50: 0 | G50: 0
F51: 0 | G51: 0
F52: 0 | G52: 0
F53: 0 | G53: 0
F54: 0 | G54: 0
F55: 0 | G55: 0
F56: 0 | G56: 0
F57: 0 | G57: 0
F58: 0 | G58: 0
F59: 0 | G59: 0
F60: 0 | G60: 0
F61: 0 | G61: 0
F62: 0 | G62: 0
F63: 0 | G63: 0
F64: 0 | G64: 0
F65: 0 | G65: 0
F66: 0 | G66: 0
F67: 0 | G67: 0
F68: =A68*E68 -> 0 | G68: =IF(C68="y",F68,0) -> 0
F69: 0 | G69: 0
F70: 0 | G70: 0
F71: 0 | G71: 0
F72: 0 | G72: 0
F73: 0 | G73: 0
F74: 0 | G74: 0
F75: 0 | G75: 0
F76: 0 | G76: 0
F77: 0 | G77: 0
F78: 0 | G78: 0
F79: 0 | G79: 0
F80: 0 | G80: 0
F81: 0 | G81: 0
F82: 0 | G82: 0
B83: 7 | C83: Useful Life of Equipment
B84: ='4. Equipment & Vehicle Costs'!F4 -> 1744 | C84: Total Equipment/Vehicle Assets
B85: =B84/B83 -> 249.1428571 | C85: Annual depreciation

Sheet 5. Facility Costs
A1: ='0. Basic Info'!D11 -> ACME 5 Year | C1: Costs to prepare facility for operations
F2: =SUM(F5:F62) -> 700 | G2: Owner Purchased
D3: Tax | E3: 0.051 | F3: =E3*F2 -> 35.7
A4: Vendor | B4: Have | C4: Use | D4: Description | E4: Total | F4: =F2+F3 -> 735.7 | G4: =SUM(G5:G62) -> 0
A5: Electrician | C5: Office | D5: 3 new outlets & lights | E5: 700 | F5: =E5 -> 700 | G5: =IF(B5="y",F5,0) -> 0
E6: 0 | F6: =E6 -> 0 | G6: =IF(B6="y",F6,0) -> 0
E7: 0 | F7: 0 | G7: 0
E8: 0 | F8: 0 | G8: 0
E9: 0 | F9: 0 | G9: 0
E10: 0 | F10: 0 | G10: 0
E11: 0 | F11: 0 | G11: 0
E12: 0 | F12: 0 | G12: 0
E13: 0 | F13: 0 | G13: 0
E14: 0 | F14: 0 | G14: 0
E15: 0 | F15: 0 | G15: 0
E16: 0 | F16: 0 | G16: 0
E17: 0 | F17: 0 | G17: 0
E18: 0 | F18: 0 | G18: 0
E19: 0 | F19: 0 | G19: 0
E20: 0 | F20: 0 | G20: 0
E21: 0 | F21: 0 | G21: 0
E22: 0 | F22: 0 | G22: 0
E23: 0 | F23: 0 | G23: 0
E24: 0 | F24: 0 | G24: 0
E25: 0 | F25: 0 | G25: 0
E26: 0 | F26: 0 | G26: 0
E27: 0 | F27: 0 | G27: 0
E28: 0 | F28: 0 | G28: 0
E29: 0 | F29: 0 | G29: 0
E30: 0 | F30: 0 | G30: 0
E31: 0 | F31: 0 | G31: 0
E32: 0 | F32: 0 | G32: 0
E33: 0 | F33: 0 | G33: 0
E34: 0 | F34: 0 | G34: 0
E35: 0 | F35: 0 | G35: 0
E36: 0 | F36: 0 | G36: 0
E37: 0 | F37: 0 | G37: 0
E38: 0 | F38: 0 | G38: 0
E39: 0 | F39: 0 | G39: 0
E40: 0 | F40: 0 | G40: 0
E41: 0 | F41: 0 | G41: 0
E42: 0 | F42: 0 | G42: 0
E43: 0 | F43: 0 | G43: 0
E44: 0 | F44: 0 | G44: 0
E45: 0 | F45: 0 | G45: 0
E46: 0 | F46: 0 | G46: 0
E47: 0 | F47: 0 | G47: 0
E48: 0 | F48: 0 | G48: 0
E49: 0 | F49: 0 | G49: 0
E50: 0 | F50: 0 | G50: 0
E51: 0 | F51: 0 | G51: 0
E52: 0 | F52: 0 | G52: 0
E53: 0 | F53: 0 | G53: 0
E54: 0 | F54: 0 | G54: 0
E55: 0 | F55: 0 | G55: 0
E56: 0 | F56: 0 | G56: 0
E57: 0 | F57: 0 | G57: 0
E58: 0 | F58: 0 | G58: 0
E59: 0 | F59: 0 | G59: 0
E60: 0 | F60: 0 | G60: 0
E61: 0 | F61: 0 | G61: 0
E62: 0 | F62: 0 | G62: 0
A63: 15 | C63: Useful Life of Facility
A64: =F4 -> 735.7 | C64: Total Facility Investment
A65: =A64/A63 -> 49.04666667 | C65: Annual depreciation

Sheet 6. Seasonality
A1: ='0. Basic Info'!D11 -> ACME 5 Year | D1: Seasonality and Initial Startup Delay in Reaching Sales Goals
A4: 1. Startup Phase - How long for sales to ramp up to expected normal levels?
A5: If your business is a startup or expanding, it usually takes months and possibly a year before your sales
A6: volume increases to the level expected in your business plan. This is a normal situation, and to help
A7: forecast how much extra cash you will need to survive those start-up months until things start picking up, this Rapid Business
A8: Plan financial template allows you to estimate the number of months needed to reach full sales revenues.
A9: Just enter the number of months you think it will take to get up and running with customers buying your product or service.
H11: Enter the number of months until sales reach expected levels | I11: 2
A13: For reference, the sales levels below are from Tab 1 Sales Forecast showing the 'average' typical month.
F14: How many months before sales will be | G14: ='1. Sales Forecast'!C62/12 -> 3000 | H14: per month.?
F15: Or how many months before doing | G15: ='1. Sales Forecast'!C25 -> 152 | H15: transactions per month
A19: 2. Seasonality
A20: Most businesses have some seasonality impacting their sales volumes. A snow plow company sees higher sales in the winter
A21: for example.
A23: The table below is designed to help you easily adjust your monthly sales estimates by entering a multiplier for each month to
A24: indicate how busy that month is for sales.
A26: A '1' indicates it is a 'typical' run of the mill month. Not high or low - just average. If you enter a '2' for a month, that means that
A27: month is double what a 'typical' or average month will generate in terms of sales. You can enter any multiplier you want using
A28: =IF(A36>0,A36-1,A36) -> 0 | B28: =IF(B36>0,B36-1,B36) -> 0 | C28: 0 | D28: 0 | E28: 0 | F28: 0 | G28: 0 | H28: 0 | I28: 0 | J28: 0 | K28: 0 | L28: 0 | M28: =SUM(A28:L28) -> 0
A29: this logic. For example, a retailer might enter a '9' for December to reflect the peak holiday sales 9 times higher than 'average'.
A31: You can also enter a '0' for a month if you think your business will not sell anything during that month.
A35: ='8. P&L and Cashflow'!D6 -> 2016-01-01 | B35: ='8. P&L and Cashflow'!E6 -> 2016-02-01 | C35: ='8. P&L and Cashflow'!F6 -> 2016-03-03 | D35: ='8. P&L and Cashflow'!G6 -> 2016-04-03 | E35: ='8. P&L and Cashflow'!H6 -> 2016-05-04 | F35: ='8. P&L and Cashflow'!I6 -> 2016-06-04 | G35: ='8. P&L and Cashflow'!J6 -> 2016-07-05 | H35: ='8. P&L and Cashflow'!K6 -> 2016-08-05 | I35: ='8. P&L and Cashflow'!L6 -> 2016-09-05 | J35: ='8. P&L and Cashflow'!M6 -> 2016-10-06 | K35: ='8. P&L and Cashflow'!N6 -> 2016-11-06 | L35: ='8. P&L and Cashflow'!O6 -> 2016-12-07
A36: 1 | B36: 1 | C36: 1 | D36: 1 | E36: 1 | F36: 1 | G36: 1 | H36: 1 | I36: 1 | J36: 1 | K36: 1 | L36: 1 | M36: =12-(COUNTIF(A36:L36,0)) -> 12
A37: =A38/$N38 -> 0.08333333333 | B37: 0.08333333333 | C37: 0.08333333333 | D37: 0.08333333333 | E37: 0.08333333333 | F37: 0.08333333333 | G37: 0.08333333333 | H37: 0.08333333333 | I37: 0.08333333333 | J37: 0.08333333333 | K37: 0.08333333333 | L37: 0.08333333333 | M37: =SUM(A37:L37) -> 1
A38: =A$36*$O38 -> 3000 | B38: =B36*$O38 -> 3000 | C38: 3000 | D38: 3000 | E38: 3000 | F38: 3000 | G38: 3000 | H38: 3000 | I38: 3000 | J38: 3000 | K38: 3000 | L38: 3000 | M38: =SUM(A38:L38) -> 36000 | N38: ='1. Sales Forecast'!C62 -> 36000 | O38: =N38/(M$28+M$36) -> 3000
A39: =A$36*$O39 -> 630 | B39: =B$36*$O39 -> 630 | C39: 630 | D39: 630 | E39: 630 | F39: 630 | G39: 630 | H39: 630 | I39: 630 | J39: 630 | K39: 630 | L39: 630 | M39: =SUM(A39:L39) -> 7560 | N39: ='1. Sales Forecast'!C74 -> 7560 | O39: =N39/(M$28+M$36) -> 630
A40: =A38/$N38 -> 0.08333333333 | B40: 0.08333333333 | C40: 0.08333333333 | D40: 0.08333333333 | E40: 0.08333333333 | F40: 0.08333333333 | G40: 0.08333333333 | H40: 0.08333333333 | I40: 0.08333333333 | J40: 0.08333333333 | K40: 0.08333333333 | L40: 0.08333333333 | M40: =SUM(A40:L40) -> 1
A41: =A39/$N39 -> 0.08333333333 | B41: 0.08333333333 | C41: 0.08333333333 | D41: 0.08333333333 | E41: 0.08333333333 | F41: 0.08333333333 | G41: 0.08333333333 | H41: 0.08333333333 | I41: 0.08333333333 | J41: 0.08333333333 | K41: 0.08333333333 | L41: 0.08333333333 | M41: =SUM(A41:L41) -> 1
A46: 1 | B46: 2 | C46: 3 | D46: 4 | E46: 5 | F46: 6 | G46: 7 | H46: 8 | I46: 9 | J46: 10 | K46: 11 | L46: 12
A47: =IF($I$11=0, 1,IF($I$11>A46,A46/$I$11,1)) -> 0.5 | B47: 1 | C47: 1 | D47: 1 | E47: 1 | F47: 1 | G47: 1 | H47: 1 | I47: 1 | J47: 1 | K47: 1 | L47: 1
A48: =A47*A38 -> 1500 | B48: =B47*B38 -> 3000 | C48: 3000 | D48: 3000 | E48: 3000 | F48: 3000 | G48: 3000 | H48: 3000 | I48: 3000 | J48: 3000 | K48: 3000 | L48: 3000 | M48: =SUM(A48:L48) -> 34500
A49: =A47*A39 -> 315 | B49: =B47*B39 -> 630 | C49: 630 | D49: 630 | E49: 630 | F49: 630 | G49: 630 | H49: 630 | I49: 630 | J49: 630 | K49: 630 | L49: 630 | M49: =SUM(A49:L49) -> 7245
A51: =A35 -> 2016-01-01 | B51: =B35 -> 2016-02-01 | C51: 2016-03-03 | D51: 2016-04-03 | E51: 2016-05-04 | F51: 2016-06-04 | G51: 2016-07-05 | H51: 2016-08-05 | I51: 2016-09-05 | J51: 2016-10-06 | K51: 2016-11-06 | L51: 2016-12-07
A52: =A36 -> 1 | B52: 1 | C52: 1 | D52: 1 | E52: 1 | F52: 1 | G52: 1 | H52: 1 | I52: 1 | J52: 1 | K52: 1 | L52: 1 | M52: =12-(COUNTIF(A52:L52,0)) -> 12
A53: =A54/$N54 -> 0.08333333333 | B53: 0.08333333333 | C53: 0.08333333333 | D53: 0.08333333333 | E53: 0.08333333333 | F53: 0.08333333333 | G53: 0.08333333333 | H53: 0.08333333333 | I53: 0.08333333333 | J53: 0.08333333333 | K53: 0.08333333333 | L53: 0.08333333333 | M53: =SUM(A53:L53) -> 1
A54: =A$36*$O54 -> 3340 | B54: =B52*$O54 -> 3340 | C54: 3340 | D54: 3340 | E54: 3340 | F54: 3340 | G54: 3340 | H54: 3340 | I54: 3340 | J54: 3340 | K54: 3340 | L54: 3340 | M54: =SUM(A54:L54) -> 40080 | N54: ='1. Sales Forecast'!D62 -> 40080 | O54: =N54/(M$28+M$36) -> 3340
A55: =A$36*$O55 -> 701.4 | B55: =B$36*$O55 -> 701.4 | C55: 701.4 | D55: 701.4 | E55: 701.4 | F55: 701.4 | G55: 701.4 | H55: 701.4 | I55: 701.4 | J55: 701.4 | K55: 701.4 | L55: 701.4 | M55: =SUM(A55:L55) -> 8416.8 | N55: ='1. Sales Forecast'!D74 -> 8416.8 | O55: =N55/(M$28+M$36) -> 701.4
A56: =A54/$N54 -> 0.08333333333 | B56: 0.08333333333 | C56: 0.08333333333 | D56: 0.08333333333 | E56: 0.08333333333 | F56: 0.08333333333 | G56: 0.08333333333 | H56: 0.08333333333 | I56: 0.08333333333 | J56: 0.08333333333 | K56: 0.08333333333 | L56: 0.08333333333 | M56: =SUM(A56:L56) -> 1
A57: 0.08333333333 | B57: 0.08333333333 | C57: 0.08333333333 | D57: 0.08333333333 | E57: 0.08333333333 | F57: 0.08333333333 | G57: 0.08333333333 | H57: 0.08333333333 | I57: 0.08333333333 | J57: 0.08333333333 | K57: 0.08333333333 | L57: 0.08333333333 | M57: =SUM(A57:L57) -> 1
A62: 1 | B62: 2 | C62: 3 | D62: 4 | E62: 5 | F62: 6 | G62: 7 | H62: 8 | I62: 9 | J62: 10 | K62: 11 | L62: 12
A63: =IF($I$11=0, 1,IF($I$11>A62,A62/$I$11,1)) -> 0.5 | B63: 1 | C63: 1 | D63: 1 | E63: 1 | F63: 1 | G63: 1 | H63: 1 | I63: 1 | J63: 1 | K63: 1 | L63: 1
A64: =A63*A54 -> 1670 | B64: =B63*B54 -> 3340 | C64: 3340 | D64: 3340 | E64: 3340 | F64: 3340 | G64: 3340 | H64: 3340 | I64: 3340 | J64: 3340 | K64: 3340 | L64: 3340 | M64: =SUM(A64:L64) -> 38410
A65: =A63*A55 -> 350.7 | B65: =B63*B55 -> 701.4 | C65: 701.4 | D65: 701.4 | E65: 701.4 | F65: 701.4 | G65: 701.4 | H65: 701.4 | I65: 701.4 | J65: 701.4 | K65: 701.4 | L65: 701.4 | M65: =SUM(A65:L65) -> 8066.1

Sheet 7. Funding Plan
A1: ='0. Basic Info'!D11 -> ACME 5 Year
A3: Funding Plan - Cash Requirements and Funding Strategy
A5: Startup Expenses and Investment | C5: Total | D5: Owner Paid | E5: Needed
A6: Business Startup | C6: ='3. Startup Costs'!F3 -> 760 | D6: ='3. Startup Costs'!G3 -> 460 | E6: =C6-D6 -> 300
A7: Equipment | C7: ='4. Equipment & Vehicle Costs'!F4 -> 1744 | D7: ='4. Equipment & Vehicle Costs'!G4 -> 1150 | E7: =C7-D7 -> 594
A8: Facilities | C8: ='5. Facility Costs'!F4 -> 735.7 | D8: 0 | E8: 0
A9: Existing Credit Card Debt or Loan | C9: =D9 -> 0 | D9: =C18 -> 0
A10: Working Capital Reserve | B10: 3 | C10: =IF(B10=0,0,('8. P&L and Cashflow'!P53/12*B10)-('8. P&L and Cashflow'!P51/12)) -> 6455.523254 | E10: 6455.523254
A11: Total Required | C11: =ROUND(SUM(C6:C10),0) -> 9695 | D11: =ROUND(SUM(D6:D10),0) -> 1610 | E11: 8085
A13: Funding Sources | B13: % of Total | C13: Amount
A14: Grants | B14: =C14/C$24 -> 0 | C14: 0
A15: Owner Cash | B15: =C15/C$24 -> 0.09350163628 | C15: 1000
A16: Owner Prior Purchases | B16: 0.1505376344 | C16: =D11 -> 1610 | F16: Monthly | G16: Monthly
A17: Investor/Other Owner | B17: 0 | C17: 0 | D17: Interest Rate | E17: Term | F17: Payment | G17: Interest
A18: Existing Line or CC Balances | B18: 0 | D18: =D19 -> 0.15 | E18: N/A | F18: N/A | G18: N/A
A19: New Line or CC Limit | B19: 0 | D19: 0.15 | E19: N/A | F19: N/A | G19: N/A
A22: Term Loan 1 | B22: 0.7559607293 | C22: 8085 | D22: 0.065 | E22: 3 | F22: =PMT(D22/12,E22*12,C22)*-1 -> 247.7971883 | G22: =IPMT(D22/12,1,E22*12,C22)*-1 -> 43.79375
A23: Term Loan 2 | B23: 0 | C23: 0 | D23: 0.05 | E23: 10 | F23: =PMT(D23/12,E23*12,C23)*-1 -> 0 | G23: =IPMT(D23/12,1,E23*12,C23)*-1 -> 0
A24: Total Funding | C24: =ROUND(SUM(C14:C23),0) -> 10695
A25: Total Required | C25: =C11 -> 9695
B26: =IF(C26<0,"Additional Funding Required","Surplus of Funding") -> Surplus of Funding | C26: =C24-C25 -> 1000
B27: Starting Cash Balance | C27: =IF(C26>=0,C26+C10,0) -> 7455.523254
A30: Additional Line of Credit | B30: ='0. Basic Info'!D16 -> 2016
A31: Borrowed | B31: ='8. P&L and Cashflow'!P68+'8. P&L and Cashflow'!P70 -> 3200
A32: Repaid | B32: ='8. P&L and Cashflow'!P74+'8. P&L and Cashflow'!P75 -> 600
A33: Ending Balance Owed | B33: ='8. P&L and Cashflow'!C75 -> 600

Sheet 8. P&L and Cashflow
A1: ='0. Basic Info'!D11 -> ACME 5 Year
B2: SNAPSHOT | C2: =C6 -> Annual | D2: =D6 -> 2016-01-01 | E2: =E6 -> 2016-02-01 | F2: 2016-03-03 | G2: 2016-04-03 | H2: 2016-05-04 | I2: 2016-06-04 | J2: 2016-07-05 | K2: 2016-08-05 | L2: 2016-09-05 | M2: 2016-10-06 | N2: 2016-11-06 | O2: 2016-12-07 | P2: 2016 | Q2: =Q6 -> 2017-01-01 | R2: =R6 -> 2017-02-01 | S2: 2017-03-01 | T2: 2017-04-01 | U2: 2017-05-01 | V2: 2017-06-01 | W2: 2017-07-01 | X2: 2017-08-01 | Y2: 2017-09-01 | Z2: 2017-10-01 | AA2: 2017-11-01 | AB2: 2017-12-01 | AC2: 2017 | AD2: 2018 | AE2: 2019 | AF2: 2020
B3: Net Profit | C3: =C60 -> 678.3528767 | D3: =D60 -> -847.042877 | E3: =E60 -> 140.5334221 | F3: 127.6550865 | G3: 135.4712177 | H3: 136.5125678 | I3: 137.5595584 | J3: 138.6122203 | K3: 139.670584 | L3: 140.7346806 | M3: 141.8045411 | N3: 142.8801966 | O3: 143.9616786 | P3: 678.3528767 | Q3: =Q60 -> 354.6964041 | R3: =R60 -> 355.7896338 | S3: 356.8887853 | T3: 357.9938904 | U3: 359.1049816 | V3: 360.2220911 | W3: 361.3452517 | X3: 362.4744961 | Y3: 363.6098572 | Z3: 364.7513681 | AA3: 365.8990623 | AB3: 367.0529731 | AC3: 3969.179701 | AD3: 6771.798926 | AE3: 9747.215605 | AF3: 12971.34508
B4: Ending Cash Balance | C4: =P4 -> 10139.23691 | D4: =D79 -> 8058.802812 | E4: =E79 -> 9219.076904 | F4: 10565.36166 | G4: 10518.34552 | H4: 10471.24766 | I4: 10424.06763 | J4: 10376.80499 | K4: 10329.4593 | L4: 10282.0301 | M4: 10234.51694 | N4: 10186.91936 | O4: 10139.23691 | P4: 10139.23691 | Q4: =Q79 -> 10301.11651 | R4: =R79 -> 10462.91033 | S4: 10624.61788 | T4: 10786.2387 | U4: 10947.77233 | V4: 11109.2183 | W4: 11270.57612 | X4: 11431.84531 | Y4: 11593.02541 | Z4: 11754.11593 | AA4: 11915.11638 | AB4: 12076.02627 | AC4: 12076.02627 | AD4: 16274.54917 | AE4: 26319.9543 | AF4: 39589.4889
B6: P&L Income Statement | C6: Annual | D6: =DATE('0. Basic Info'!D16,'0. Basic Info'!D17,1) -> 2016-01-01 | E6: =D6+31 -> 2016-02-01 | F6: =E6+31 -> 2016-03-03 | G6: =F6+31 -> 2016-04-03 | H6: =G6+31 -> 2016-05-04 | I6: 2016-06-04 | J6: 2016-07-05 | K6: 2016-08-05 | L6: 2016-09-05 | M6: 2016-10-06 | N6: 2016-11-06 | O6: 2016-12-07 | P6: =IF('0. Basic Info'!D17=1,'0. Basic Info'!D16,"Year 1") -> 2016 | Q6: =DATE('0. Basic Info'!$D$16+1,'0. Basic Info'!$D$17,1) -> 2017-01-01 | R6: =DATE('0. Basic Info'!$D$16+1,'0. Basic Info'!$D$17+1,1) -> 2017-02-01 | S6: =DATE('0. Basic Info'!$D$16+1,'0. Basic Info'!$D$17+2,1) -> 2017-03-01 | T6: =DATE('0. Basic Info'!$D$16+1,'0. Basic Info'!$D$17+3,1) -> 2017-04-01 | U6: =DATE('0. Basic Info'!$D$16+1,'0. Basic Info'!$D$17+4,1) -> 2017-05-01 | V6: =DATE('0. Basic Info'!$D$16+1,'0. Basic Info'!$D$17+5,1) -> 2017-06-01 | W6: =DATE('0. Basic Info'!$D$16+1,'0. Basic Info'!$D$17+6,1) -> 2017-07-01 | X6: =DATE('0. Basic Info'!$D$16+1,'0. Basic Info'!$D$17+7,1) -> 2017-08-01 | Y6: =DATE('0. Basic Info'!$D$16+1,'0. Basic Info'!$D$17+8,1) -> 2017-09-01 | Z6: =DATE('0. Basic Info'!$D$16+1,'0. Basic Info'!$D$17+9,1) -> 2017-10-01 | AA6: =DATE('0. Basic Info'!$D$16+1,'0. Basic Info'!$D$17+10,1) -> 2017-11-01 | AB6: =DATE('0. Basic Info'!$D$16+1,'0. Basic Info'!$D$17+11,1) -> 2017-12-01 | AC6: =IF('0. Basic Info'!$D17=1,'0. Basic Info'!$D16+1,"Year 2") -> 2017 | AD6: =IF('0. Basic Info'!$D17=1,'0. Basic Info'!$D16+2,"Year 3") -> 2018 | AE6: =IF('0. Basic Info'!$D17=1,'0. Basic Info'!$D16+3,"Year 4") -> 2019 | AF6: =IF('0. Basic Info'!$D17=1,'0. Basic Info'!$D16+4,"Year 5") -> 2020
B7: SALES | C7: ='6. Seasonality'!M48 -> 34500 | D7: ='6. Seasonality'!A48 -> 1500 | E7: ='6. Seasonality'!B48 -> 3000 | F7: ='6. Seasonality'!C48 -> 3000 | G7: ='6. Seasonality'!D48 -> 3000 | H7: ='6. Seasonality'!E48 -> 3000 | I7: ='6. Seasonality'!F48 -> 3000 | J7: ='6. Seasonality'!G48 -> 3000 | K7: ='6. Seasonality'!H48 -> 3000 | L7: ='6. Seasonality'!I48 -> 3000 | M7: ='6. Seasonality'!J48 -> 3000 | N7: ='6. Seasonality'!K48 -> 3000 | O7: ='6. Seasonality'!L48 -> 3000 | P7: =SUM(D7:O7) -> 34500 | Q7: ='6. Seasonality'!A54 -> 3340 | R7: ='6. Seasonality'!B54 -> 3340 | S7: ='6. Seasonality'!C54 -> 3340 | T7: ='6. Seasonality'!D54 -> 3340 | U7: ='6. Seasonality'!E54 -> 3340 | V7: ='6. Seasonality'!F54 -> 3340 | W7: ='6. Seasonality'!G54 -> 3340 | X7: ='6. Seasonality'!H54 -> 3340 | Y7: ='6. Seasonality'!I54 -> 3340 | Z7: ='6. Seasonality'!J54 -> 3340 | AA7: ='6. Seasonality'!K54 -> 3340 | AB7: ='6. Seasonality'!L54 -> 3340 | AC7: =SUM(Q7:AB7) -> 40080 | AD7: ='1. Sales Forecast'!E62 -> 44640 | AE7: ='1. Sales Forecast'!F62 -> 49738.8 | AF7: ='1. Sales Forecast'!G62 -> 55442.7
B8: COGS | C8: ='6. Seasonality'!M49 -> 7245 | D8: ='6. Seasonality'!A49 -> 315 | E8: ='6. Seasonality'!B49 -> 630 | F8: ='6. Seasonality'!C49 -> 630 | G8: ='6. Seasonality'!D49 -> 630 | H8: ='6. Seasonality'!E49 -> 630 | I8: ='6. Seasonality'!F49 -> 630 | J8: ='6. Seasonality'!G49 -> 630 | K8: ='6. Seasonality'!H49 -> 630 | L8: ='6. Seasonality'!I49 -> 630 | M8: ='6. Seasonality'!J49 -> 630 | N8: ='6. Seasonality'!K49 -> 630 | O8: ='6. Seasonality'!L49 -> 630 | P8: =SUM(D8:O8) -> 7245 | Q8: ='6. Seasonality'!A55 -> 701.4 | R8: ='6. Seasonality'!B55 -> 701.4 | S8: ='6. Seasonality'!C55 -> 701.4 | T8: ='6. Seasonality'!D55 -> 701.4 | U8: ='6. Seasonality'!E55 -> 701.4 | V8: ='6. Seasonality'!F55 -> 701.4 | W8: ='6. Seasonality'!G55 -> 701.4 | X8: ='6. Seasonality'!H55 -> 701.4 | Y8: ='6. Seasonality'!I55 -> 701.4 | Z8: ='6. Seasonality'!J55 -> 701.4 | AA8: ='6. Seasonality'!K55 -> 701.4 | AB8: ='6. Seasonality'!L55 -> 701.4 | AC8: =SUM(Q8:AB8) -> 8416.8 | AD8: ='1. Sales Forecast'!E74 -> 9374.4 | AE8: ='1. Sales Forecast'!F74 -> 10445.148 | AF8: ='1. Sales Forecast'!G74 -> 11642.967
B9: Gross Profit | C9: =C7-C8 -> 27255 | D9: =D7-D8 -> 1185 | E9: =E7-E8 -> 2370 | F9: =F7-F8 -> 2370 | G9: 2370 | H9: 2370 | I9: 2370 | J9: 2370 | K9: 2370 | L9: 2370 | M9: 2370 | N9: 2370 | O9: 2370 | P9: 27255 | Q9: =Q7-Q8 -> 2638.6 | R9: =R7-R8 -> 2638.6 | S9: =S7-S8 -> 2638.6 | T9: 2638.6 | U9: 2638.6 | V9: 2638.6 | W9: 2638.6 | X9: 2638.6 | Y9: 2638.6 | Z9: 2638.6 | AA9: 2638.6 | AB9: 2638.6 | AC9: 31663.2 | AD9: 35265.6 | AE9: 39293.652 | AF9: 43799.733
B12: EXPENSES | C12: =C6 -> Annual | D12: 2016-01-01 | E12: 2016-02-01 | F12: 2016-03-03 | G12: 2016-04-03 | H12: 2016-05-04 | I12: =I6 -> 2016-06-04 | J12: =J6 -> 2016-07-05 | K12: 2016-08-05 | L12: 2016-09-05 | M12: 2016-10-06 | N12: 2016-11-06 | O12: 2016-12-07 | P12: 2016 | Q12: 2017-01-01 | R12: 2017-02-01 | S12: 2017-03-01 | T12: 2017-04-01 | U12: 2017-05-01 | V12: =V6 -> 2017-06-01 | W12: =W6 -> 2017-07-01 | X12: 2017-08-01 | Y12: 2017-09-01 | Z12: 2017-10-01 | AA12: 2017-11-01 | AB12: 2017-12-01 | AC12: 2017 | AD12: 2018 | AE12: 2019 | AF12: 2020
B13: =IF('2. Operating Budget'!A7="","",'2. Operating Budget'!A7) -> Worker Wages | C13: ='2. Operating Budget'!K7 -> 0 | D13: =IF('2. Operating Budget'!$D7>0,$C13/12,'2. Operating Budget'!$B7*4.3+'2. Operating Budget'!$C7+'2. Operating Budget'!$E7*D$7) -> 0 | E13: =IF('2. Operating Budget'!$D7>0,$C13/12,'2. Operating Budget'!$B7*4.3+'2. Operating Budget'!$C7+'2. Operating Budget'!$E7*E$7) -> 0 | F13: =IF('2. Operating Budget'!$D7>0,$C13/12,'2. Operating Budget'!$B7*4.3+'2. Operating Budget'!$C7+'2. Operating Budget'!$E7*F$7) -> 0 | G13: =IF('2. Operating Budget'!$D7>0,$C13/12,'2. Operating Budget'!$B7*4.3+'2. Operating Budget'!$C7+'2. Operating Budget'!$E7*G$7) -> 0 | H13: =IF('2. Operating Budget'!$D7>0,$C13/12,'2. Operating Budget'!$B7*4.3+'2. Operating Budget'!$C7+'2. Operating Budget'!$E7*H$7) -> 0 | I13: =IF('2. Operating Budget'!$D7>0,$C13/12,'2. Operating Budget'!$B7*4.3+'2. Operating Budget'!$C7+'2. Operating Budget'!$E7*I$7) -> 0 | J13: =IF('2. Operating Budget'!$D7>0,$C13/12,'2. Operating Budget'!$B7*4.3+'2. Operating Budget'!$C7+'2. Operating Budget'!$E7*J$7) -> 0 | K13: =IF('2. Operating Budget'!$D7>0,$C13/12,'2. Operating Budget'!$B7*4.3+'2. Operating Budget'!$C7+'2. Operating Budget'!$E7*K$7) -> 0 | L13: =IF('2. Operating Budget'!$D7>0,$C13/12,'2. Operating Budget'!$B7*4.3+'2. Operating Budget'!$C7+'2. Operating Budget'!$E7*L$7) -> 0 | M13: =IF('2. Operating Budget'!$D7>0,$C13/12,'2. Operating Budget'!$B7*4.3+'2. Operating Budget'!$C7+'2. Operating Budget'!$E7*M$7) -> 0 | N13: =IF('2. Operating Budget'!$D7>0,$C13/12,'2. Operating Budget'!$B7*4.3+'2. Operating Budget'!$C7+'2. Operating Budget'!$E7*N$7) -> 0 | O13: =IF('2. Operating Budget'!$D7>0,$C13/12,'2. Operating Budget'!$B7*4.3+'2. Operating Budget'!$C7+'2. Operating Budget'!$E7*O$7) -> 0 | P13: =SUM(D13:O13) -> 0 | Q13: =IF('2. Operating Budget'!$D7>0,$C13/12,'2. Operating Budget'!$B7*4.3+'2. Operating Budget'!$C7+'2. Operating Budget'!$E7*Q$7) -> 0 | R13: =IF('2. Operating Budget'!$D7>0,$C13/12,'2. Operating Budget'!$B7*4.3+'2. Operating Budget'!$C7+'2. Operating Budget'!$E7*R$7) -> 0 | S13: =IF('2. Operating Budget'!$D7>0,$C13/12,'2. Operating Budget'!$B7*4.3+'2. Operating Budget'!$C7+'2. Operating Budget'!$E7*S$7) -> 0 | T13: =IF('2. Operating Budget'!$D7>0,$C13/12,'2. Operating Budget'!$B7*4.3+'2. Operating Budget'!$C7+'2. Operating Budget'!$E7*T$7) -> 0 | U13: =IF('2. Operating Budget'!$D7>0,$C13/12,'2. Operating Budget'!$B7*4.3+'2. Operating Budget'!$C7+'2. Operating Budget'!$E7*U$7) -> 0 | V13: =IF('2. Operating Budget'!$D7>0,$C13/12,'2. Operating Budget'!$B7*4.3+'2. Operating Budget'!$C7+'2. Operating Budget'!$E7*V$7) -> 0 | W13: =IF('2. Operating Budget'!$D7>0,$C13/12,'2. Operating Budget'!$B7*4.3+'2. Operating Budget'!$C7+'2. Operating Budget'!$E7*W$7) -> 0 | X13: =IF('2. Operating Budget'!$D7>0,$C13/12,'2. Operating Budget'!$B7*4.3+'2. Operating Budget'!$C7+'2. Operating Budget'!$E7*X$7) -> 0 | Y13: =IF('2. Operating Budget'!$D7>0,$C13/12,'2. Operating Budget'!$B7*4.3+'2. Operating Budget'!$C7+'2. Operating Budget'!$E7*Y$7) -> 0 | Z13: =IF('2. Operating Budget'!$D7>0,$C13/12,'2. Operating Budget'!$B7*4.3+'2. Operating Budget'!$C7+'2. Operating Budget'!$E7*Z$7) -> 0 | AA13: =IF('2. Operating Budget'!$D7>0,$C13/12,'2. Operating Budget'!$B7*4.3+'2. Operating Budget'!$C7+'2. Operating Budget'!$E7*AA$7) -> 0 | AB13: =IF('2. Operating Budget'!$D7>0,$C13/12,'2. Operating Budget'!$B7*4.3+'2. Operating Budget'!$C7+'2. Operating Budget'!$E7*AB$7) -> 0 | AC13: =SUM(Q13:AB13) -> 0 | AD13: =IF('2. Operating Budget'!$E7>0,'2. Operating Budget'!$E7*'8. P&L and Cashflow'!AD$7,'2. Operating Budget'!$K7) -> 0 | AE13: =IF('2. Operating Budget'!$E7>0,'2. Operating Budget'!$E7*'8. P&L and Cashflow'!AE$7,'2. Operating Budget'!$K7) -> 0 | AF13: =IF('2. Operating Budget'!$E7>0,'2. Operating Budget'!$E7*'8. P&L and Cashflow'!AF$7,'2. Operating Budget'!$K7) -> 0
B14: =IF('2. Operating Budget'!A8="","",'2. Operating Budget'!A8) -> Owner Pay | C14: ='2. Operating Budget'!K8 -> 11892 | D14: =IF('2. Operating Budget'!$D8>0,$C14/12,'2. Operating Budget'!$B8*4.3+'2. Operating Budget'!$C8+'2. Operating Budget'!$E8*D$7) -> 991 | E14: =IF('2. Operating Budget'!$D8>0,$C14/12,'2. Operating Budget'!$B8*4.3+'2. Operating Budget'!$C8+'2. Operating Budget'!$E8*E$7) -> 991 | F14: =IF('2. Operating Budget'!$D8>0,$C14/12,'2. Operating Budget'!$B8*4.3+'2. Operating Budget'!$C8+'2. Operating Budget'!$E8*F$7) -> 991 | G14: =IF('2. Operating Budget'!$D8>0,$C14/12,'2. Operating Budget'!$B8*4.3+'2. Operating Budget'!$C8+'2. Operating Budget'!$E8*G$7) -> 991 | H14: =IF('2. Operating Budget'!$D8>0,$C14/12,'2. Operating Budget'!$B8*4.3+'2. Operating Budget'!$C8+'2. Operating Budget'!$E8*H$7) -> 991 | I14: =IF('2. Operating Budget'!$D8>0,$C14/12,'2. Operating Budget'!$B8*4.3+'2. Operating Budget'!$C8+'2. Operating Budget'!$E8*I$7) -> 991 | J14: =IF('2. Operating Budget'!$D8>0,$C14/12,'2. Operating Budget'!$B8*4.3+'2. Operating Budget'!$C8+'2. Operating Budget'!$E8*J$7) -> 991 | K14: =IF('2. Operating Budget'!$D8>0,$C14/12,'2. Operating Budget'!$B8*4.3+'2. Operating Budget'!$C8+'2. Operating Budget'!$E8*K$7) -> 991 | L14: =IF('2. Operating Budget'!$D8>0,$C14/12,'2. Operating Budget'!$B8*4.3+'2. Operating Budget'!$C8+'2. Operating Budget'!$E8*L$7) -> 991 | M14: =IF('2. Operating Budget'!$D8>0,$C14/12,'2. Operating Budget'!$B8*4.3+'2. Operating Budget'!$C8+'2. Operating Budget'!$E8*M$7) -> 991 | N14: =IF('2. Operating Budget'!$D8>0,$C14/12,'2. Operating Budget'!$B8*4.3+'2. Operating Budget'!$C8+'2. Operating Budget'!$E8*N$7) -> 991 | O14: =IF('2. Operating Budget'!$D8>0,$C14/12,'2. Operating Budget'!$B8*4.3+'2. Operating Budget'!$C8+'2. Operating Budget'!$E8*O$7) -> 991 | P14: =SUM(D14:O14) -> 11892 | Q14: =IF('2. Operating Budget'!$D8>0,$C14/12,'2. Operating Budget'!$B8*4.3+'2. Operating Budget'!$C8+'2. Operating Budget'!$E8*Q$7) -> 991 | R14: =IF('2. Operating Budget'!$D8>0,$C14/12,'2. Operating Budget'!$B8*4.3+'2. Operating Budget'!$C8+'2. Operating Budget'!$E8*R$7) -> 991 | S14: =IF('2. Operating Budget'!$D8>0,$C14/12,'2. Operating Budget'!$B8*4.3+'2. Operating Budget'!$C8+'2. Operating Budget'!$E8*S$7) -> 991 | T14: =IF('2. Operating Budget'!$D8>0,$C14/12,'2. Operating Budget'!$B8*4.3+'2. Operating Budget'!$C8+'2. Operating Budget'!$E8*T$7) -> 991 | U14: =IF('2. Operating Budget'!$D8>0,$C14/12,'2. Operating Budget'!$B8*4.3+'2. Operating Budget'!$C8+'2. Operating Budget'!$E8*U$7) -> 991 | V14: =IF('2. Operating Budget'!$D8>0,$C14/12,'2. Operating Budget'!$B8*4.3+'2. Operating Budget'!$C8+'2. Operating Budget'!$E8*V$7) -> 991 | W14: =IF('2. Operating Budget'!$D8>0,$C14/12,'2. Operating Budget'!$B8*4.3+'2. Operating Budget'!$C8+'2. Operating Budget'!$E8*W$7) -> 991 | X14: =IF('2. Operating Budget'!$D8>0,$C14/12,'2. Operating Budget'!$B8*4.3+'2. Operating Budget'!$C8+'2. Operating Budget'!$E8*X$7) -> 991 | Y14: =IF('2. Operating Budget'!$D8>0,$C14/12,'2. Operating Budget'!$B8*4.3+'2. Operating Budget'!$C8+'2. Operating Budget'!$E8*Y$7) -> 991 | Z14: =IF('2. Operating Budget'!$D8>0,$C14/12,'2. Operating Budget'!$B8*4.3+'2. Operating Budget'!$C8+'2. Operating Budget'!$E8*Z$7) -> 991 | AA14: =IF('2. Operating Budget'!$D8>0,$C14/12,'2. Operating Budget'!$B8*4.3+'2. Operating Budget'!$C8+'2. Operating Budget'!$E8*AA$7) -> 991 | AB14: =IF('2. Operating Budget'!$D8>0,$C14/12,'2. Operating Budget'!$B8*4.3+'2. Operating Budget'!$C8+'2. Operating Budget'!$E8*AB$7) -> 991 | AC14: =SUM(Q14:AB14) -> 11892 | AD14: =IF('2. Operating Budget'!$D8>0,$C14,'2. Operating Budget'!$B8*52+'2. Operating Budget'!$C8*12+'2. Operating Budget'!$E8*AD$7) -> 11892 | AE14: =IF('2. Operating Budget'!$D8>0,$C14,'2. Operating Budget'!$B8*52+'2. Operating Budget'!$C8*12+'2. Operating Budget'!$E8*AE$7) -> 11892 | AF14: =IF('2. Operating Budget'!$D8>0,$C14,'2. Operating Budget'!$B8*52+'2. Operating Budget'!$C8*12+'2. Operating Budget'!$E8*AF$7) -> 11892
B15: ='2. Operating Budget'!A9 -> 0.15 | C15: ='2. Operating Budget'!K9 -> 1783.8 | D15: =0.15*(D13+D14) -> 148.65 | E15: =0.15*(E13+E14) -> 148.65 | F15: =0.15*(F13+F14) -> 148.65 | G15: 148.65 | H15: 148.65 | I15: 148.65 | J15: 148.65 | K15: 148.65 | L15: 148.65 | M15: 148.65 | N15: 148.65 | O15: 148.65 | P15: =SUM(D15:O15) -> 1783.8 | Q15: =0.15*(Q13+Q14) -> 148.65 | R15: =0.15*(R13+R14) -> 148.65 | S15: =0.15*(S13+S14) -> 148.65 | T15: 148.65 | U15: 148.65 | V15: 148.65 | W15: 148.65 | X15: 148.65 | Y15: 148.65 | Z15: 148.65 | AA15: 148.65 | AB15: 148.65 | AC15: =SUM(Q15:AB15) -> 1783.8 | AD15: 1783.8 | AE15: 1783.8 | AF15: 1783.8
B16: ='2. Operating Budget'!A10 -> Workers Comp | C16: =P13/100*'2. Operating Budget'!$E$10 -> 0 | D16: =C16/12 -> 0 | E16: =D16 -> 0 | F16: 0 | G16: =F16 -> 0 | H16: 0 | I16: 0 | J16: 0 | K16: 0 | L16: 0 | M16: 0 | N16: 0 | O16: 0 | P16: 0 | Q16: =AC13/100*'2. Operating Budget'!E10/12 -> 0 | R16: =Q16 -> 0 | S16: 0 | T16: 0 | U16: 0 | V16: 0 | W16: 0 | X16: 0 | Y16: 0 | Z16: 0 | AA16: 0 | AB16: 0 | AC16: 0 | AD16: =AD13/100*'2. Operating Budget'!$E10 -> 0 | AE16: =AE13/100*'2. Operating Budget'!$E10 -> 0 | AF16: =AF13/100*'2. Operating Budget'!$E10 -> 0
B17: =IF('2. Operating Budget'!A11="","",'2. Operating Budget'!A11) -> Rent | C17: ='2. Operating Budget'!K11 -> 4800 | D17: =IF('2. Operating Budget'!$D11>0,$C17/12,'2. Operating Budget'!$B11*4.3+'2. Operating Budget'!$C11+'2. Operating Budget'!$E11*D$7) -> 400 | E17: =IF('2. Operating Budget'!$D11>0,$C17/12,'2. Operating Budget'!$B11*4.3+'2. Operating Budget'!$C11+'2. Operating Budget'!$E11*E$7) -> 400 | F17: =IF('2. Operating Budget'!$D11>0,$C17/12,'2. Operating Budget'!$B11*4.3+'2. Operating Budget'!$C11+'2. Operating Budget'!$E11*F$7) -> 400 | G17: =IF('2. Operating Budget'!$D11>0,$C17/12,'2. Operating Budget'!$B11*4.3+'2. Operating Budget'!$C11+'2. Operating Budget'!$E11*G$7) -> 400 | H17: =IF('2. Operating Budget'!$D11>0,$C17/12,'2. Operating Budget'!$B11*4.3+'2. Operating Budget'!$C11+'2. Operating Budget'!$E11*H$7) -> 400 | I17: =IF('2. Operating Budget'!$D11>0,$C17/12,'2. Operating Budget'!$B11*4.3+'2. Operating Budget'!$C11+'2. Operating Budget'!$E11*I$7) -> 400 | J17: =IF('2. Operating Budget'!$D11>0,$C17/12,'2. Operating Budget'!$B11*4.3+'2. Operating Budget'!$C11+'2. Operating Budget'!$E11*J$7) -> 400 | K17: =IF('2. Operating Budget'!$D11>0,$C17/12,'2. Operating Budget'!$B11*4.3+'2. Operating Budget'!$C11+'2. Operating Budget'!$E11*K$7) -> 400 | L17: =IF('2. Operating Budget'!$D11>0,$C17/12,'2. Operating Budget'!$B11*4.3+'2. Operating Budget'!$C11+'2. Operating Budget'!$E11*L$7) -> 400 | M17: =IF('2. Operating Budget'!$D11>0,$C17/12,'2. Operating Budget'!$B11*4.3+'2. Operating Budget'!$C11+'2. Operating Budget'!$E11*M$7) -> 400 | N17: =IF('2. Operating Budget'!$D11>0,$C17/12,'2. Operating Budget'!$B11*4.3+'2. Operating Budget'!$C11+'2. Operating Budget'!$E11*N$7) -> 400 | O17: =IF('2. Operating Budget'!$D11>0,$C17/12,'2. Operating Budget'!$B11*4.3+'2. Operating Budget'!$C11+'2. Operating Budget'!$E11*O$7) -> 400 | P17: =SUM(D17:O17) -> 4800 | Q17: =IF('2. Operating Budget'!$D11>0,$C17/12,'2. Operating Budget'!$B11*4.3+'2. Operating Budget'!$C11+'2. Operating Budget'!$E11*Q$7) -> 400 | R17: =IF('2. Operating Budget'!$D11>0,$C17/12,'2. Operating Budget'!$B11*4.3+'2. Operating Budget'!$C11+'2. Operating Budget'!$E11*R$7) -> 400 | S17: =IF('2. Operating Budget'!$D11>0,$C17/12,'2. Operating Budget'!$B11*4.3+'2. Operating Budget'!$C11+'2. Operating Budget'!$E11*S$7) -> 400 | T17: =IF('2. Operating Budget'!$D11>0,$C17/12,'2. Operating Budget'!$B11*4.3+'2. Operating Budget'!$C11+'2. Operating Budget'!$E11*T$7) -> 400 | U17: =IF('2. Operating Budget'!$D11>0,$C17/12,'2. Operating Budget'!$B11*4.3+'2. Operating Budget'!$C11+'2. Operating Budget'!$E11*U$7) -> 400 | V17: =IF('2. Operating Budget'!$D11>0,$C17/12,'2. Operating Budget'!$B11*4.3+'2. Operating Budget'!$C11+'2. Operating Budget'!$E11*V$7) -> 400 | W17: =IF('2. Operating Budget'!$D11>0,$C17/12,'2. Operating Budget'!$B11*4.3+'2. Operating Budget'!$C11+'2. Operating Budget'!$E11*W$7) -> 400 | X17: =IF('2. Operating Budget'!$D11>0,$C17/12,'2. Operating Budget'!$B11*4.3+'2. Operating Budget'!$C11+'2. Operating Budget'!$E11*X$7) -> 400 | Y17: =IF('2. Operating Budget'!$D11>0,$C17/12,'2. Operating Budget'!$B11*4.3+'2. Operating Budget'!$C11+'2. Operating Budget'!$E11*Y$7) -> 400 | Z17: =IF('2. Operating Budget'!$D11>0,$C17/12,'2. Operating Budget'!$B11*4.3+'2. Operating Budget'!$C11+'2. Operating Budget'!$E11*Z$7) -> 400 | AA17: =IF('2. Operating Budget'!$D11>0,$C17/12,'2. Operating Budget'!$B11*4.3+'2. Operating Budget'!$C11+'2. Operating Budget'!$E11*AA$7) -> 400 | AB17: =IF('2. Operating Budget'!$D11>0,$C17/12,'2. Operating Budget'!$B11*4.3+'2. Operating Budget'!$C11+'2. Operating Budget'!$E11*AB$7) -> 400 | AC17: =SUM(Q17:AB17) -> 4800 | AD17: =IF('2. Operating Budget'!$E11>0,'2. Operating Budget'!$E11*'8. P&L and Cashflow'!AD$7,'2. Operating Budget'!$K11) -> 4800 | AE17: =IF('2. Operating Budget'!$E11>0,'2. Operating Budget'!$E11*'8. P&L and Cashflow'!AE$7,'2. Operating Budget'!$K11) -> 4800 | AF17: =IF('2. Operating Budget'!$E11>0,'2. Operating Budget'!$E11*'8. P&L and Cashflow'!AF$7,'2. Operating Budget'!$K11) -> 4800
B18: =IF('2. Operating Budget'!A12="","",'2. Operating Budget'!A12) -> Phone/Internet/Cell | C18: ='2. Operating Budget'!K12 -> 1800 | D18: =IF('2. Operating Budget'!$D12>0,$C18/12,'2. Operating Budget'!$B12*4.3+'2. Operating Budget'!$C12+'2. Operating Budget'!$E12*D$7) -> 150 | E18: =IF('2. Operating Budget'!$D12>0,$C18/12,'2. Operating Budget'!$B12*4.3+'2. Operating Budget'!$C12+'2. Operating Budget'!$E12*E$7) -> 150 | F18: =IF('2. Operating Budget'!$D12>0,$C18/12,'2. Operating Budget'!$B12*4.3+'2. Operating Budget'!$C12+'2. Operating Budget'!$E12*F$7) -> 150 | G18: =IF('2. Operating Budget'!$D12>0,$C18/12,'2. Operating Budget'!$B12*4.3+'2. Operating Budget'!$C12+'2. Operating Budget'!$E12*G$7) -> 150 | H18: =IF('2. Operating Budget'!$D12>0,$C18/12,'2. Operating Budget'!$B12*4.3+'2. Operating Budget'!$C12+'2. Operating Budget'!$E12*H$7) -> 150 | I18: =IF('2. Operating Budget'!$D12>0,$C18/12,'2. Operating Budget'!$B12*4.3+'2. Operating Budget'!$C12+'2. Operating Budget'!$E12*I$7) -> 150 | J18: =IF('2. Operating Budget'!$D12>0,$C18/12,'2. Operating Budget'!$B12*4.3+'2. Operating Budget'!$C12+'2. Operating Budget'!$E12*J$7) -> 150 | K18: =IF('2. Operating Budget'!$D12>0,$C18/12,'2. Operating Budget'!$B12*4.3+'2. Operating Budget'!$C12+'2. Operating Budget'!$E12*K$7) -> 150 | L18: =IF('2. Operating Budget'!$D12>0,$C18/12,'2. Operating Budget'!$B12*4.3+'2. Operating Budget'!$C12+'2. Operating Budget'!$E12*L$7) -> 150 | M18: =IF('2. Operating Budget'!$D12>0,$C18/12,'2. Operating Budget'!$B12*4.3+'2. Operating Budget'!$C12+'2. Operating Budget'!$E12*M$7) -> 150 | N18: =IF('2. Operating Budget'!$D12>0,$C18/12,'2. Operating Budget'!$B12*4.3+'2. Operating Budget'!$C12+'2. Operating Budget'!$E12*N$7) -> 150 | O18: =IF('2. Operating Budget'!$D12>0,$C18/12,'2. Operating Budget'!$B12*4.3+'2. Operating Budget'!$C12+'2. Operating Budget'!$E12*O$7) -> 150 | P18: =SUM(D18:O18) -> 1800 | Q18: =IF('2. Operating Budget'!$D12>0,$C18/12,'2. Operating Budget'!$B12*4.3+'2. Operating Budget'!$C12+'2. Operating Budget'!$E12*Q$7) -> 150 | R18: =IF('2. Operating Budget'!$D12>0,$C18/12,'2. Operating Budget'!$B12*4.3+'2. Operating Budget'!$C12+'2. Operating Budget'!$E12*R$7) -> 150 | S18: =IF('2. Operating Budget'!$D12>0,$C18/12,'2. Operating Budget'!$B12*4.3+'2. Operating Budget'!$C12+'2. Operating Budget'!$E12*S$7) -> 150 | T18: =IF('2. Operating Budget'!$D12>0,$C18/12,'2. Operating Budget'!$B12*4.3+'2. Operating Budget'!$C12+'2. Operating Budget'!$E12*T$7) -> 150 | U18: =IF('2. Operating Budget'!$D12>0,$C18/12,'2. Operating Budget'!$B12*4.3+'2. Operating Budget'!$C12+'2. Operating Budget'!$E12*U$7) -> 150 | V18: =IF('2. Operating Budget'!$D12>0,$C18/12,'2. Operating Budget'!$B12*4.3+'2. Operating Budget'!$C12+'2. Operating Budget'!$E12*V$7) -> 150 | W18: =IF('2. Operating Budget'!$D12>0,$C18/12,'2. Operating Budget'!$B12*4.3+'2. Operating Budget'!$C12+'2. Operating Budget'!$E12*W$7) -> 150 | X18: =IF('2. Operating Budget'!$D12>0,$C18/12,'2. Operating Budget'!$B12*4.3+'2. Operating Budget'!$C12+'2. Operating Budget'!$E12*X$7) -> 150 | Y18: =IF('2. Operating Budget'!$D12>0,$C18/12,'2. Operating Budget'!$B12*4.3+'2. Operating Budget'!$C12+'2. Operating Budget'!$E12*Y$7) -> 150 | Z18: =IF('2. Operating Budget'!$D12>0,$C18/12,'2. Operating Budget'!$B12*4.3+'2. Operating Budget'!$C12+'2. Operating Budget'!$E12*Z$7) -> 150 | AA18: =IF('2. Operating Budget'!$D12>0,$C18/12,'2. Operating Budget'!$B12*4.3+'2. Operating Budget'!$C12+'2. Operating Budget'!$E12*AA$7) -> 150 | AB18: =IF('2. Operating Budget'!$D12>0,$C18/12,'2. Operating Budget'!$B12*4.3+'2. Operating Budget'!$C12+'2. Operating Budget'!$E12*AB$7) -> 150 | AC18: =SUM(Q18:AB18) -> 1800 | AD18: =IF('2. Operating Budget'!$E12>0,'2. Operating Budget'!$E12*'8. P&L and Cashflow'!AD$7,'2. Operating Budget'!$K12) -> 1800 | AE18: =IF('2. Operating Budget'!$E12>0,'2. Operating Budget'!$E12*'8. P&L and Cashflow'!AE$7,'2. Operating Budget'!$K12) -> 1800 | AF18: =IF('2. Operating Budget'!$E12>0,'2. Operating Budget'!$E12*'8. P&L and Cashflow'!AF$7,'2. Operating Budget'!$K12) -> 1800
B19: =IF('2. Operating Budget'!A13="","",'2. Operating Budget'!A13) -> Electricity | C19: ='2. Operating Budget'!K13 -> 0 | D19: =IF('2. Operating Budget'!$D13>0,$C19/12,'2. Operating Budget'!$B13*4.3+'2. Operating Budget'!$C13+'2. Operating Budget'!$E13*D$7) -> 0 | E19: =IF('2. Operating Budget'!$D13>0,$C19/12,'2. Operating Budget'!$B13*4.3+'2. Operating Budget'!$C13+'2. Operating Budget'!$E13*E$7) -> 0 | F19: =IF('2. Operating Budget'!$D13>0,$C19/12,'2. Operating Budget'!$B13*4.3+'2. Operating Budget'!$C13+'2. Operating Budget'!$E13*F$7) -> 0 | G19: =IF('2. Operating Budget'!$D13>0,$C19/12,'2. Operating Budget'!$B13*4.3+'2. Operating Budget'!$C13+'2. Operating Budget'!$E13*G$7) -> 0 | H19: =IF('2. Operating Budget'!$D13>0,$C19/12,'2. Operating Budget'!$B13*4.3+'2. Operating Budget'!$C13+'2. Operating Budget'!$E13*H$7) -> 0 | I19: =IF('2. Operating Budget'!$D13>0,$C19/12,'2. Operating Budget'!$B13*4.3+'2. Operating Budget'!$C13+'2. Operating Budget'!$E13*I$7) -> 0 | J19: =IF('2. Operating Budget'!$D13>0,$C19/12,'2. Operating Budget'!$B13*4.3+'2. Operating Budget'!$C13+'2. Operating Budget'!$E13*J$7) -> 0 | K19: =IF('2. Operating Budget'!$D13>0,$C19/12,'2. Operating Budget'!$B13*4.3+'2. Operating Budget'!$C13+'2. Operating Budget'!$E13*K$7) -> 0 | L19: =IF('2. Operating Budget'!$D13>0,$C19/12,'2. Operating Budget'!$B13*4.3+'2. Operating Budget'!$C13+'2. Operating Budget'!$E13*L$7) -> 0 | M19: =IF('2. Operating Budget'!$D13>0,$C19/12,'2. Operating Budget'!$B13*4.3+'2. Operating Budget'!$C13+'2. Operating Budget'!$E13*M$7) -> 0 | N19: =IF('2. Operating Budget'!$D13>0,$C19/12,'2. Operating Budget'!$B13*4.3+'2. Operating Budget'!$C13+'2. Operating Budget'!$E13*N$7) -> 0 | O19: =IF('2. Operating Budget'!$D13>0,$C19/12,'2. Operating Budget'!$B13*4.3+'2. Operating Budget'!$C13+'2. Operating Budget'!$E13*O$7) -> 0 | P19: 0 | Q19: =IF('2. Operating Budget'!$D13>0,$C19/12,'2. Operating Budget'!$B13*4.3+'2. Operating Budget'!$C13+'2. Operating Budget'!$E13*Q$7) -> 0 | R19: =IF('2. Operating Budget'!$D13>0,$C19/12,'2. Operating Budget'!$B13*4.3+'2. Operating Budget'!$C13+'2. Operating Budget'!$E13*R$7) -> 0 | S19: =IF('2. Operating Budget'!$D13>0,$C19/12,'2. Operating Budget'!$B13*4.3+'2. Operating Budget'!$C13+'2. Operating Budget'!$E13*S$7) -> 0 | T19: =IF('2. Operating Budget'!$D13>0,$C19/12,'2. Operating Budget'!$B13*4.3+'2. Operating Budget'!$C13+'2. Operating Budget'!$E13*T$7) -> 0 | U19: =IF('2. Operating Budget'!$D13>0,$C19/12,'2. Operating Budget'!$B13*4.3+'2. Operating Budget'!$C13+'2. Operating Budget'!$E13*U$7) -> 0 | V19: =IF('2. Operating Budget'!$D13>0,$C19/12,'2. Operating Budget'!$B13*4.3+'2. Operating Budget'!$C13+'2. Operating Budget'!$E13*V$7) -> 0 | W19: =IF('2. Operating Budget'!$D13>0,$C19/12,'2. Operating Budget'!$B13*4.3+'2. Operating Budget'!$C13+'2. Operating Budget'!$E13*W$7) -> 0 | X19: =IF('2. Operating Budget'!$D13>0,$C19/12,'2. Operating Budget'!$B13*4.3+'2. Operating Budget'!$C13+'2. Operating Budget'!$E13*X$7) -> 0 | Y19: =IF('2. Operating Budget'!$D13>0,$C19/12,'2. Operating Budget'!$B13*4.3+'2. Operating Budget'!$C13+'2. Operating Budget'!$E13*Y$7) -> 0 | Z19: =IF('2. Operating Budget'!$D13>0,$C19/12,'2. Operating Budget'!$B13*4.3+'2. Operating Budget'!$C13+'2. Operating Budget'!$E13*Z$7) -> 0 | AA19: =IF('2. Operating Budget'!$D13>0,$C19/12,'2. Operating Budget'!$B13*4.3+'2. Operating Budget'!$C13+'2. Operating Budget'!$E13*AA$7) -> 0 | AB19: =IF('2. Operating Budget'!$D13>0,$C19/12,'2. Operating Budget'!$B13*4.3+'2. Operating Budget'!$C13+'2. Operating Budget'!$E13*AB$7) -> 0 | AC19: 0 | AD19: =IF('2. Operating Budget'!$E13>0,'2. Operating Budget'!$E13*'8. P&L and Cashflow'!AD$7,'2. Operating Budget'!$K13) -> 0 | AE19: =IF('2. Operating Budget'!$E13>0,'2. Operating Budget'!$E13*'8. P&L and Cashflow'!AE$7,'2. Operating Budget'!$K13) -> 0 | AF19: =IF('2. Operating Budget'!$E13>0,'2. Operating Budget'!$E13*'8. P&L and Cashflow'!AF$7,'2. Operating Budget'!$K13) -> 0
B20: =IF('2. Operating Budget'!A14="","",'2. Operating Budget'!A14) -> Dumpster/Waste | C20: ='2. Operating Budget'!K14 -> 0 | D20: =IF('2. Operating Budget'!$D14>0,$C20/12,'2. Operating Budget'!$B14*4.3+'2. Operating Budget'!$C14+'2. Operating Budget'!$E14*D$7) -> 0 | E20: =IF('2. Operating Budget'!$D14>0,$C20/12,'2. Operating Budget'!$B14*4.3+'2. Operating Budget'!$C14+'2. Operating Budget'!$E14*E$7) -> 0 | F20: =IF('2. Operating Budget'!$D14>0,$C20/12,'2. Operating Budget'!$B14*4.3+'2. Operating Budget'!$C14+'2. Operating Budget'!$E14*F$7) -> 0 | G20: =IF('2. Operating Budget'!$D14>0,$C20/12,'2. Operating Budget'!$B14*4.3+'2. Operating Budget'!$C14+'2. Operating Budget'!$E14*G$7) -> 0 | H20: =IF('2. Operating Budget'!$D14>0,$C20/12,'2. Operating Budget'!$B14*4.3+'2. Operating Budget'!$C14+'2. Operating Budget'!$E14*H$7) -> 0 | I20: =IF('2. Operating Budget'!$D14>0,$C20/12,'2. Operating Budget'!$B14*4.3+'2. Operating Budget'!$C14+'2. Operating Budget'!$E14*I$7) -> 0 | J20: =IF('2. Operating Budget'!$D14>0,$C20/12,'2. Operating Budget'!$B14*4.3+'2. Operating Budget'!$C14+'2. Operating Budget'!$E14*J$7) -> 0 | K20: =IF('2. Operating Budget'!$D14>0,$C20/12,'2. Operating Budget'!$B14*4.3+'2. Operating Budget'!$C14+'2. Operating Budget'!$E14*K$7) -> 0 | L20: =IF('2. Operating Budget'!$D14>0,$C20/12,'2. Operating Budget'!$B14*4.3+'2. Operating Budget'!$C14+'2. Operating Budget'!$E14*L$7) -> 0 | M20: =IF('2. Operating Budget'!$D14>0,$C20/12,'2. Operating Budget'!$B14*4.3+'2. Operating Budget'!$C14+'2. Operating Budget'!$E14*M$7) -> 0 | N20: =IF('2. Operating Budget'!$D14>0,$C20/12,'2. Operating Budget'!$B14*4.3+'2. Operating Budget'!$C14+'2. Operating Budget'!$E14*N$7) -> 0 | O20: =IF('2. Operating Budget'!$D14>0,$C20/12,'2. Operating Budget'!$B14*4.3+'2. Operating Budget'!$C14+'2. Operating Budget'!$E14*O$7) -> 0 | P20: 0 | Q20: =IF('2. Operating Budget'!$D14>0,$C20/12,'2. Operating Budget'!$B14*4.3+'2. Operating Budget'!$C14+'2. Operating Budget'!$E14*Q$7) -> 0 | R20: =IF('2. Operating Budget'!$D14>0,$C20/12,'2. Operating Budget'!$B14*4.3+'2. Operating Budget'!$C14+'2. Operating Budget'!$E14*R$7) -> 0 | S20: =IF('2. Operating Budget'!$D14>0,$C20/12,'2. Operating Budget'!$B14*4.3+'2. Operating Budget'!$C14+'2. Operating Budget'!$E14*S$7) -> 0 | T20: =IF('2. Operating Budget'!$D14>0,$C20/12,'2. Operating Budget'!$B14*4.3+'2. Operating Budget'!$C14+'2. Operating Budget'!$E14*T$7) -> 0 | U20: =IF('2. Operating Budget'!$D14>0,$C20/12,'2. Operating Budget'!$B14*4.3+'2. Operating Budget'!$C14+'2. Operating Budget'!$E14*U$7) -> 0 | V20: =IF('2. Operating Budget'!$D14>0,$C20/12,'2. Operating Budget'!$B14*4.3+'2. Operating Budget'!$C14+'2. Operating Budget'!$E14*V$7) -> 0 | W20: =IF('2. Operating Budget'!$D14>0,$C20/12,'2. Operating Budget'!$B14*4.3+'2. Operating Budget'!$C14+'2. Operating Budget'!$E14*W$7) -> 0 | X20: =IF('2. Operating Budget'!$D14>0,$C20/12,'2. Operating Budget'!$B14*4.3+'2. Operating Budget'!$C14+'2. Operating Budget'!$E14*X$7) -> 0 | Y20: =IF('2. Operating Budget'!$D14>0,$C20/12,'2. Operating Budget'!$B14*4.3+'2. Operating Budget'!$C14+'2. Operating Budget'!$E14*Y$7) -> 0 | Z20: =IF('2. Operating Budget'!$D14>0,$C20/12,'2. Operating Budget'!$B14*4.3+'2. Operating Budget'!$C14+'2. Operating Budget'!$E14*Z$7) -> 0 | AA20: =IF('2. Operating Budget'!$D14>0,$C20/12,'2. Operating Budget'!$B14*4.3+'2. Operating Budget'!$C14+'2. Operating Budget'!$E14*AA$7) -> 0 | AB20: =IF('2. Operating Budget'!$D14>0,$C20/12,'2. Operating Budget'!$B14*4.3+'2. Operating Budget'!$C14+'2. Operating Budget'!$E14*AB$7) -> 0 | AC20: 0 | AD20: =IF('2. Operating Budget'!$E14>0,'2. Operating Budget'!$E14*'8. P&L and Cashflow'!AD$7,'2. Operating Budget'!$K14) -> 0 | AE20: =IF('2. Operating Budget'!$E14>0,'2. Operating Budget'!$E14*'8. P&L and Cashflow'!AE$7,'2. Operating Budget'!$K14) -> 0 | AF20: =IF('2. Operating Budget'!$E14>0,'2. Operating Budget'!$E14*'8. P&L and Cashflow'!AF$7,'2. Operating Budget'!$K14) -> 0
B21: =IF('2. Operating Budget'!A15="","",'2. Operating Budget'!A15) -> Liability Insurance | C21: ='2. Operating Budget'!K15 -> 500 | D21: =IF('2. Operating Budget'!$D15>0,$C21/12,'2. Operating Budget'!$B15*4.3+'2. Operating Budget'!$C15+'2. Operating Budget'!$E15*D$7) -> 41.66666667 | E21: =IF('2. Operating Budget'!$D15>0,$C21/12,'2. Operating Budget'!$B15*4.3+'2. Operating Budget'!$C15+'2. Operating Budget'!$E15*E$7) -> 41.66666667 | F21: =IF('2. Operating Budget'!$D15>0,$C21/12,'2. Operating Budget'!$B15*4.3+'2. Operating Budget'!$C15+'2. Operating Budget'!$E15*F$7) -> 41.66666667 | G21: =IF('2. Operating Budget'!$D15>0,$C21/12,'2. Operating Budget'!$B15*4.3+'2. Operating Budget'!$C15+'2. Operating Budget'!$E15*G$7) -> 41.66666667 | H21: =IF('2. Operating Budget'!$D15>0,$C21/12,'2. Operating Budget'!$B15*4.3+'2. Operating Budget'!$C15+'2. Operating Budget'!$E15*H$7) -> 41.66666667 | I21: =IF('2. Operating Budget'!$D15>0,$C21/12,'2. Operating Budget'!$B15*4.3+'2. Operating Budget'!$C15+'2. Operating Budget'!$E15*I$7) -> 41.66666667 | J21: =IF('2. Operating Budget'!$D15>0,$C21/12,'2. Operating Budget'!$B15*4.3+'2. Operating Budget'!$C15+'2. Operating Budget'!$E15*J$7) -> 41.66666667 | K21: =IF('2. Operating Budget'!$D15>0,$C21/12,'2. Operating Budget'!$B15*4.3+'2. Operating Budget'!$C15+'2. Operating Budget'!$E15*K$7) -> 41.66666667 | L21: =IF('2. Operating Budget'!$D15>0,$C21/12,'2. Operating Budget'!$B15*4.3+'2. Operating Budget'!$C15+'2. Operating Budget'!$E15*L$7) -> 41.66666667 | M21: =IF('2. Operating Budget'!$D15>0,$C21/12,'2. Operating Budget'!$B15*4.3+'2. Operating Budget'!$C15+'2. Operating Budget'!$E15*M$7) -> 41.66666667 | N21: =IF('2. Operating Budget'!$D15>0,$C21/12,'2. Operating Budget'!$B15*4.3+'2. Operating Budget'!$C15+'2. Operating Budget'!$E15*N$7) -> 41.66666667 | O21: =IF('2. Operating Budget'!$D15>0,$C21/12,'2. Operating Budget'!$B15*4.3+'2. Operating Budget'!$C15+'2. Operating Budget'!$E15*O$7) -> 41.66666667 | P21: 500 | Q21: =IF('2. Operating Budget'!$D15>0,$C21/12,'2. Operating Budget'!$B15*4.3+'2. Operating Budget'!$C15+'2. Operating Budget'!$E15*Q$7) -> 41.66666667 | R21: =IF('2. Operating Budget'!$D15>0,$C21/12,'2. Operating Budget'!$B15*4.3+'2. Operating Budget'!$C15+'2. Operating Budget'!$E15*R$7) -> 41.66666667 | S21: =IF('2. Operating Budget'!$D15>0,$C21/12,'2. Operating Budget'!$B15*4.3+'2. Operating Budget'!$C15+'2. Operating Budget'!$E15*S$7) -> 41.66666667 | T21: =IF('2. Operating Budget'!$D15>0,$C21/12,'2. Operating Budget'!$B15*4.3+'2. Operating Budget'!$C15+'2. Operating Budget'!$E15*T$7) -> 41.66666667 | U21: =IF('2. Operating Budget'!$D15>0,$C21/12,'2. Operating Budget'!$B15*4.3+'2. Operating Budget'!$C15+'2. Operating Budget'!$E15*U$7) -> 41.66666667 | V21: =IF('2. Operating Budget'!$D15>0,$C21/12,'2. Operating Budget'!$B15*4.3+'2. Operating Budget'!$C15+'2. Operating Budget'!$E15*V$7) -> 41.66666667 | W21: =IF('2. Operating Budget'!$D15>0,$C21/12,'2. Operating Budget'!$B15*4.3+'2. Operating Budget'!$C15+'2. Operating Budget'!$E15*W$7) -> 41.66666667 | X21: =IF('2. Operating Budget'!$D15>0,$C21/12,'2. Operating Budget'!$B15*4.3+'2. Operating Budget'!$C15+'2. Operating Budget'!$E15*X$7) -> 41.66666667 | Y21: =IF('2. Operating Budget'!$D15>0,$C21/12,'2. Operating Budget'!$B15*4.3+'2. Operating Budget'!$C15+'2. Operating Budget'!$E15*Y$7) -> 41.66666667 | Z21: =IF('2. Operating Budget'!$D15>0,$C21/12,'2. Operating Budget'!$B15*4.3+'2. Operating Budget'!$C15+'2. Operating Budget'!$E15*Z$7) -> 41.66666667 | AA21: =IF('2. Operating Budget'!$D15>0,$C21/12,'2. Operating Budget'!$B15*4.3+'2. Operating Budget'!$C15+'2. Operating Budget'!$E15*AA$7) -> 41.66666667 | AB21: =IF('2. Operating Budget'!$D15>0,$C21/12,'2. Operating Budget'!$B15*4.3+'2. Operating Budget'!$C15+'2. Operating Budget'!$E15*AB$7) -> 41.66666667 | AC21: 500 | AD21: =IF('2. Operating Budget'!$E15>0,'2. Operating Budget'!$E15*'8. P&L and Cashflow'!AD$7,'2. Operating Budget'!$K15) -> 500 | AE21: =IF('2. Operating Budget'!$E15>0,'2. Operating Budget'!$E15*'8. P&L and Cashflow'!AE$7,'2. Operating Budget'!$K15) -> 500 | AF21: =IF('2. Operating Budget'!$E15>0,'2. Operating Budget'!$E15*'8. P&L and Cashflow'!AF$7,'2. Operating Budget'!$K15) -> 500
B22: =IF('2. Operating Budget'!A16="","",'2. Operating Budget'!A16) ->  | C22: ='2. Operating Budget'!K16 -> 0 | D22: =IF('2. Operating Budget'!$D16>0,$C22/12,'2. Operating Budget'!$B16*4.3+'2. Operating Budget'!$C16+'2. Operating Budget'!$E16*D$7) -> 0 | E22: =IF('2. Operating Budget'!$D16>0,$C22/12,'2. Operating Budget'!$B16*4.3+'2. Operating Budget'!$C16+'2. Operating Budget'!$E16*E$7) -> 0 | F22: =IF('2. Operating Budget'!$D16>0,$C22/12,'2. Operating Budget'!$B16*4.3+'2. Operating Budget'!$C16+'2. Operating Budget'!$E16*F$7) -> 0 | G22: =IF('2. Operating Budget'!$D16>0,$C22/12,'2. Operating Budget'!$B16*4.3+'2. Operating Budget'!$C16+'2. Operating Budget'!$E16*G$7) -> 0 | H22: =IF('2. Operating Budget'!$D16>0,$C22/12,'2. Operating Budget'!$B16*4.3+'2. Operating Budget'!$C16+'2. Operating Budget'!$E16*H$7) -> 0 | I22: =IF('2. Operating Budget'!$D16>0,$C22/12,'2. Operating Budget'!$B16*4.3+'2. Operating Budget'!$C16+'2. Operating Budget'!$E16*I$7) -> 0 | J22: =IF('2. Operating Budget'!$D16>0,$C22/12,'2. Operating Budget'!$B16*4.3+'2. Operating Budget'!$C16+'2. Operating Budget'!$E16*J$7) -> 0 | K22: =IF('2. Operating Budget'!$D16>0,$C22/12,'2. Operating Budget'!$B16*4.3+'2. Operating Budget'!$C16+'2. Operating Budget'!$E16*K$7) -> 0 | L22: =IF('2. Operating Budget'!$D16>0,$C22/12,'2. Operating Budget'!$B16*4.3+'2. Operating Budget'!$C16+'2. Operating Budget'!$E16*L$7) -> 0 | M22: =IF('2. Operating Budget'!$D16>0,$C22/12,'2. Operating Budget'!$B16*4.3+'2. Operating Budget'!$C16+'2. Operating Budget'!$E16*M$7) -> 0 | N22: =IF('2. Operating Budget'!$D16>0,$C22/12,'2. Operating Budget'!$B16*4.3+'2. Operating Budget'!$C16+'2. Operating Budget'!$E16*N$7) -> 0 | O22: =IF('2. Operating Budget'!$D16>0,$C22/12,'2. Operating Budget'!$B16*4.3+'2. Operating Budget'!$C16+'2. Operating Budget'!$E16*O$7) -> 0 | P22: 0 | Q22: =IF('2. Operating Budget'!$D16>0,$C22/12,'2. Operating Budget'!$B16*4.3+'2. Operating Budget'!$C16+'2. Operating Budget'!$E16*Q$7) -> 0 | R22: =IF('2. Operating Budget'!$D16>0,$C22/12,'2. Operating Budget'!$B16*4.3+'2. Operating Budget'!$C16+'2. Operating Budget'!$E16*R$7) -> 0 | S22: =IF('2. Operating Budget'!$D16>0,$C22/12,'2. Operating Budget'!$B16*4.3+'2. Operating Budget'!$C16+'2. Operating Budget'!$E16*S$7) -> 0 | T22: =IF('2. Operating Budget'!$D16>0,$C22/12,'2. Operating Budget'!$B16*4.3+'2. Operating Budget'!$C16+'2. Operating Budget'!$E16*T$7) -> 0 | U22: =IF('2. Operating Budget'!$D16>0,$C22/12,'2. Operating Budget'!$B16*4.3+'2. Operating Budget'!$C16+'2. Operating Budget'!$E16*U$7) -> 0 | V22: =IF('2. Operating Budget'!$D16>0,$C22/12,'2. Operating Budget'!$B16*4.3+'2. Operating Budget'!$C16+'2. Operating Budget'!$E16*V$7) -> 0 | W22: =IF('2. Operating Budget'!$D16>0,$C22/12,'2. Operating Budget'!$B16*4.3+'2. Operating Budget'!$C16+'2. Operating Budget'!$E16*W$7) -> 0 | X22: =IF('2. Operating Budget'!$D16>0,$C22/12,'2. Operating Budget'!$B16*4.3+'2. Operating Budget'!$C16+'2. Operating Budget'!$E16*X$7) -> 0 | Y22: =IF('2. Operating Budget'!$D16>0,$C22/12,'2. Operating Budget'!$B16*4.3+'2. Operating Budget'!$C16+'2. Operating Budget'!$E16*Y$7) -> 0 | Z22: =IF('2. Operating Budget'!$D16>0,$C22/12,'2. Operating Budget'!$B16*4.3+'2. Operating Budget'!$C16+'2. Operating Budget'!$E16*Z$7) -> 0 | AA22: =IF('2. Operating Budget'!$D16>0,$C22/12,'2. Operating Budget'!$B16*4.3+'2. Operating Budget'!$C16+'2. Operating Budget'!$E16*AA$7) -> 0 | AB22: =IF('2. Operating Budget'!$D16>0,$C22/12,'2. Operating Budget'!$B16*4.3+'2. Operating Budget'!$C16+'2. Operating Budget'!$E16*AB$7) -> 0 | AC22: 0 | AD22: =IF('2. Operating Budget'!$E16>0,'2. Operating Budget'!$E16*'8. P&L and Cashflow'!AD$7,'2. Operating Budget'!$K16) -> 0 | AE22: =IF('2. Operating Budget'!$E16>0,'2. Operating Budget'!$E16*'8. P&L and Cashflow'!AE$7,'2. Operating Budget'!$K16) -> 0 | AF22: =IF('2. Operating Budget'!$E16>0,'2. Operating Budget'!$E16*'8. P&L and Cashflow'!AF$7,'2. Operating Budget'!$K16) -> 0
B23: =IF('2. Operating Budget'!A17="","",'2. Operating Budget'!A17) ->  | C23: ='2. Operating Budget'!K17 -> 0 | D23: =IF('2. Operating Budget'!$D17>0,$C23/12,'2. Operating Budget'!$B17*4.3+'2. Operating Budget'!$C17+'2. Operating Budget'!$E17*D$7) -> 0 | E23: =IF('2. Operating Budget'!$D17>0,$C23/12,'2. Operating Budget'!$B17*4.3+'2. Operating Budget'!$C17+'2. Operating Budget'!$E17*E$7) -> 0 | F23: =IF('2. Operating Budget'!$D17>0,$C23/12,'2. Operating Budget'!$B17*4.3+'2. Operating Budget'!$C17+'2. Operating Budget'!$E17*F$7) -> 0 | G23: =IF('2. Operating Budget'!$D17>0,$C23/12,'2. Operating Budget'!$B17*4.3+'2. Operating Budget'!$C17+'2. Operating Budget'!$E17*G$7) -> 0 | H23: =IF('2. Operating Budget'!$D17>0,$C23/12,'2. Operating Budget'!$B17*4.3+'2. Operating Budget'!$C17+'2. Operating Budget'!$E17*H$7) -> 0 | I23: =IF('2. Operating Budget'!$D17>0,$C23/12,'2. Operating Budget'!$B17*4.3+'2. Operating Budget'!$C17+'2. Operating Budget'!$E17*I$7) -> 0 | J23: =IF('2. Operating Budget'!$D17>0,$C23/12,'2. Operating Budget'!$B17*4.3+'2. Operating Budget'!$C17+'2. Operating Budget'!$E17*J$7) -> 0 | K23: =IF('2. Operating Budget'!$D17>0,$C23/12,'2. Operating Budget'!$B17*4.3+'2. Operating Budget'!$C17+'2. Operating Budget'!$E17*K$7) -> 0 | L23: =IF('2. Operating Budget'!$D17>0,$C23/12,'2. Operating Budget'!$B17*4.3+'2. Operating Budget'!$C17+'2. Operating Budget'!$E17*L$7) -> 0 | M23: =IF('2. Operating Budget'!$D17>0,$C23/12,'2. Operating Budget'!$B17*4.3+'2. Operating Budget'!$C17+'2. Operating Budget'!$E17*M$7) -> 0 | N23: =IF('2. Operating Budget'!$D17>0,$C23/12,'2. Operating Budget'!$B17*4.3+'2. Operating Budget'!$C17+'2. Operating Budget'!$E17*N$7) -> 0 | O23: =IF('2. Operating Budget'!$D17>0,$C23/12,'2. Operating Budget'!$B17*4.3+'2. Operating Budget'!$C17+'2. Operating Budget'!$E17*O$7) -> 0 | P23: 0 | Q23: =IF('2. Operating Budget'!$D17>0,$C23/12,'2. Operating Budget'!$B17*4.3+'2. Operating Budget'!$C17+'2. Operating Budget'!$E17*Q$7) -> 0 | R23: =IF('2. Operating Budget'!$D17>0,$C23/12,'2. Operating Budget'!$B17*4.3+'2. Operating Budget'!$C17+'2. Operating Budget'!$E17*R$7) -> 0 | S23: =IF('2. Operating Budget'!$D17>0,$C23/12,'2. Operating Budget'!$B17*4.3+'2. Operating Budget'!$C17+'2. Operating Budget'!$E17*S$7) -> 0 | T23: =IF('2. Operating Budget'!$D17>0,$C23/12,'2. Operating Budget'!$B17*4.3+'2. Operating Budget'!$C17+'2. Operating Budget'!$E17*T$7) -> 0 | U23: =IF('2. Operating Budget'!$D17>0,$C23/12,'2. Operating Budget'!$B17*4.3+'2. Operating Budget'!$C17+'2. Operating Budget'!$E17*U$7) -> 0 | V23: =IF('2. Operating Budget'!$D17>0,$C23/12,'2. Operating Budget'!$B17*4.3+'2. Operating Budget'!$C17+'2. Operating Budget'!$E17*V$7) -> 0 | W23: =IF('2. Operating Budget'!$D17>0,$C23/12,'2. Operating Budget'!$B17*4.3+'2. Operating Budget'!$C17+'2. Operating Budget'!$E17*W$7) -> 0 | X23: =IF('2. Operating Budget'!$D17>0,$C23/12,'2. Operating Budget'!$B17*4.3+'2. Operating Budget'!$C17+'2. Operating Budget'!$E17*X$7) -> 0 | Y23: =IF('2. Operating Budget'!$D17>0,$C23/12,'2. Operating Budget'!$B17*4.3+'2. Operating Budget'!$C17+'2. Operating Budget'!$E17*Y$7) -> 0 | Z23: =IF('2. Operating Budget'!$D17>0,$C23/12,'2. Operating Budget'!$B17*4.3+'2. Operating Budget'!$C17+'2. Operating Budget'!$E17*Z$7) -> 0 | AA23: =IF('2. Operating Budget'!$D17>0,$C23/12,'2. Operating Budget'!$B17*4.3+'2. Operating Budget'!$C17+'2. Operating Budget'!$E17*AA$7) -> 0 | AB23: =IF('2. Operating Budget'!$D17>0,$C23/12,'2. Operating Budget'!$B17*4.3+'2. Operating Budget'!$C17+'2. Operating Budget'!$E17*AB$7) -> 0 | AC23: 0 | AD23: =IF('2. Operating Budget'!$E17>0,'2. Operating Budget'!$E17*'8. P&L and Cashflow'!AD$7,'2. Operating Budget'!$K17) -> 0 | AE23: =IF('2. Operating Budget'!$E17>0,'2. Operating Budget'!$E17*'8. P&L and Cashflow'!AE$7,'2. Operating Budget'!$K17) -> 0 | AF23: =IF('2. Operating Budget'!$E17>0,'2. Operating Budget'!$E17*'8. P&L and Cashflow'!AF$7,'2. Operating Budget'!$K17) -> 0
B24: =IF('2. Operating Budget'!A18="","",'2. Operating Budget'!A18) ->  | C24: ='2. Operating Budget'!K18 -> 0 | D24: =IF('2. Operating Budget'!$D18>0,$C24/12,'2. Operating Budget'!$B18*4.3+'2. Operating Budget'!$C18+'2. Operating Budget'!$E18*D$7) -> 0 | E24: =IF('2. Operating Budget'!$D18>0,$C24/12,'2. Operating Budget'!$B18*4.3+'2. Operating Budget'!$C18+'2. Operating Budget'!$E18*E$7) -> 0 | F24: =IF('2. Operating Budget'!$D18>0,$C24/12,'2. Operating Budget'!$B18*4.3+'2. Operating Budget'!$C18+'2. Operating Budget'!$E18*F$7) -> 0 | G24: =IF('2. Operating Budget'!$D18>0,$C24/12,'2. Operating Budget'!$B18*4.3+'2. Operating Budget'!$C18+'2. Operating Budget'!$E18*G$7) -> 0 | H24: =IF('2. Operating Budget'!$D18>0,$C24/12,'2. Operating Budget'!$B18*4.3+'2. Operating Budget'!$C18+'2. Operating Budget'!$E18*H$7) -> 0 | I24: =IF('2. Operating Budget'!$D18>0,$C24/12,'2. Operating Budget'!$B18*4.3+'2. Operating Budget'!$C18+'2. Operating Budget'!$E18*I$7) -> 0 | J24: =IF('2. Operating Budget'!$D18>0,$C24/12,'2. Operating Budget'!$B18*4.3+'2. Operating Budget'!$C18+'2. Operating Budget'!$E18*J$7) -> 0 | K24: =IF('2. Operating Budget'!$D18>0,$C24/12,'2. Operating Budget'!$B18*4.3+'2. Operating Budget'!$C18+'2. Operating Budget'!$E18*K$7) -> 0 | L24: =IF('2. Operating Budget'!$D18>0,$C24/12,'2. Operating Budget'!$B18*4.3+'2. Operating Budget'!$C18+'2. Operating Budget'!$E18*L$7) -> 0 | M24: =IF('2. Operating Budget'!$D18>0,$C24/12,'2. Operating Budget'!$B18*4.3+'2. Operating Budget'!$C18+'2. Operating Budget'!$E18*M$7) -> 0 | N24: =IF('2. Operating Budget'!$D18>0,$C24/12,'2. Operating Budget'!$B18*4.3+'2. Operating Budget'!$C18+'2. Operating Budget'!$E18*N$7) -> 0 | O24: =IF('2. Operating Budget'!$D18>0,$C24/12,'2. Operating Budget'!$B18*4.3+'2. Operating Budget'!$C18+'2. Operating Budget'!$E18*O$7) -> 0 | P24: 0 | Q24: =IF('2. Operating Budget'!$D18>0,$C24/12,'2. Operating Budget'!$B18*4.3+'2. Operating Budget'!$C18+'2. Operating Budget'!$E18*Q$7) -> 0 | R24: =IF('2. Operating Budget'!$D18>0,$C24/12,'2. Operating Budget'!$B18*4.3+'2. Operating Budget'!$C18+'2. Operating Budget'!$E18*R$7) -> 0 | S24: =IF('2. Operating Budget'!$D18>0,$C24/12,'2. Operating Budget'!$B18*4.3+'2. Operating Budget'!$C18+'2. Operating Budget'!$E18*S$7) -> 0 | T24: =IF('2. Operating Budget'!$D18>0,$C24/12,'2. Operating Budget'!$B18*4.3+'2. Operating Budget'!$C18+'2. Operating Budget'!$E18*T$7) -> 0 | U24: =IF('2. Operating Budget'!$D18>0,$C24/12,'2. Operating Budget'!$B18*4.3+'2. Operating Budget'!$C18+'2. Operating Budget'!$E18*U$7) -> 0 | V24: =IF('2. Operating Budget'!$D18>0,$C24/12,'2. Operating Budget'!$B18*4.3+'2. Operating Budget'!$C18+'2. Operating Budget'!$E18*V$7) -> 0 | W24: =IF('2. Operating Budget'!$D18>0,$C24/12,'2. Operating Budget'!$B18*4.3+'2. Operating Budget'!$C18+'2. Operating Budget'!$E18*W$7) -> 0 | X24: =IF('2. Operating Budget'!$D18>0,$C24/12,'2. Operating Budget'!$B18*4.3+'2. Operating Budget'!$C18+'2. Operating Budget'!$E18*X$7) -> 0 | Y24: =IF('2. Operating Budget'!$D18>0,$C24/12,'2. Operating Budget'!$B18*4.3+'2. Operating Budget'!$C18+'2. Operating Budget'!$E18*Y$7) -> 0 | Z24: =IF('2. Operating Budget'!$D18>0,$C24/12,'2. Operating Budget'!$B18*4.3+'2. Operating Budget'!$C18+'2. Operating Budget'!$E18*Z$7) -> 0 | AA24: =IF('2. Operating Budget'!$D18>0,$C24/12,'2. Operating Budget'!$B18*4.3+'2. Operating Budget'!$C18+'2. Operating Budget'!$E18*AA$7) -> 0 | AB24: =IF('2. Operating Budget'!$D18>0,$C24/12,'2. Operating Budget'!$B18*4.3+'2. Operating Budget'!$C18+'2. Operating Budget'!$E18*AB$7) -> 0 | AC24: 0 | AD24: =IF('2. Operating Budget'!$E18>0,'2. Operating Budget'!$E18*'8. P&L and Cashflow'!AD$7,'2. Operating Budget'!$K18) -> 0 | AE24: =IF('2. Operating Budget'!$E18>0,'2. Operating Budget'!$E18*'8. P&L and Cashflow'!AE$7,'2. Operating Budget'!$K18) -> 0 | AF24: =IF('2. Operating Budget'!$E18>0,'2. Operating Budget'!$E18*'8. P&L and Cashflow'!AF$7,'2. Operating Budget'!$K18) -> 0
B25: =IF('2. Operating Budget'!A19="","",'2. Operating Budget'!A19) -> Licenses | C25: ='2. Operating Budget'!K19 -> 150 | D25: =IF('2. Operating Budget'!$D19>0,$C25/12,'2. Operating Budget'!$B19*4.3+'2. Operating Budget'!$C19+'2. Operating Budget'!$E19*D$7) -> 12.5 | E25: =IF('2. Operating Budget'!$D19>0,$C25/12,'2. Operating Budget'!$B19*4.3+'2. Operating Budget'!$C19+'2. Operating Budget'!$E19*E$7) -> 12.5 | F25: =IF('2. Operating Budget'!$D19>0,$C25/12,'2. Operating Budget'!$B19*4.3+'2. Operating Budget'!$C19+'2. Operating Budget'!$E19*F$7) -> 12.5 | G25: =IF('2. Operating Budget'!$D19>0,$C25/12,'2. Operating Budget'!$B19*4.3+'2. Operating Budget'!$C19+'2. Operating Budget'!$E19*G$7) -> 12.5 | H25: =IF('2. Operating Budget'!$D19>0,$C25/12,'2. Operating Budget'!$B19*4.3+'2. Operating Budget'!$C19+'2. Operating Budget'!$E19*H$7) -> 12.5 | I25: =IF('2. Operating Budget'!$D19>0,$C25/12,'2. Operating Budget'!$B19*4.3+'2. Operating Budget'!$C19+'2. Operating Budget'!$E19*I$7) -> 12.5 | J25: =IF('2. Operating Budget'!$D19>0,$C25/12,'2. Operating Budget'!$B19*4.3+'2. Operating Budget'!$C19+'2. Operating Budget'!$E19*J$7) -> 12.5 | K25: =IF('2. Operating Budget'!$D19>0,$C25/12,'2. Operating Budget'!$B19*4.3+'2. Operating Budget'!$C19+'2. Operating Budget'!$E19*K$7) -> 12.5 | L25: =IF('2. Operating Budget'!$D19>0,$C25/12,'2. Operating Budget'!$B19*4.3+'2. Operating Budget'!$C19+'2. Operating Budget'!$E19*L$7) -> 12.5 | M25: =IF('2. Operating Budget'!$D19>0,$C25/12,'2. Operating Budget'!$B19*4.3+'2. Operating Budget'!$C19+'2. Operating Budget'!$E19*M$7) -> 12.5 | N25: =IF('2. Operating Budget'!$D19>0,$C25/12,'2. Operating Budget'!$B19*4.3+'2. Operating Budget'!$C19+'2. Operating Budget'!$E19*N$7) -> 12.5 | O25: =IF('2. Operating Budget'!$D19>0,$C25/12,'2. Operating Budget'!$B19*4.3+'2. Operating Budget'!$C19+'2. Operating Budget'!$E19*O$7) -> 12.5 | P25: 150 | Q25: =IF('2. Operating Budget'!$D19>0,$C25/12,'2. Operating Budget'!$B19*4.3+'2. Operating Budget'!$C19+'2. Operating Budget'!$E19*Q$7) -> 12.5 | R25: =IF('2. Operating Budget'!$D19>0,$C25/12,'2. Operating Budget'!$B19*4.3+'2. Operating Budget'!$C19+'2. Operating Budget'!$E19*R$7) -> 12.5 | S25: =IF('2. Operating Budget'!$D19>0,$C25/12,'2. Operating Budget'!$B19*4.3+'2. Operating Budget'!$C19+'2. Operating Budget'!$E19*S$7) -> 12.5 | T25: =IF('2. Operating Budget'!$D19>0,$C25/12,'2. Operating Budget'!$B19*4.3+'2. Operating Budget'!$C19+'2. Operating Budget'!$E19*T$7) -> 12.5 | U25: =IF('2. Operating Budget'!$D19>0,$C25/12,'2. Operating Budget'!$B19*4.3+'2. Operating Budget'!$C19+'2. Operating Budget'!$E19*U$7) -> 12.5 | V25: =IF('2. Operating Budget'!$D19>0,$C25/12,'2. Operating Budget'!$B19*4.3+'2. Operating Budget'!$C19+'2. Operating Budget'!$E19*V$7) -> 12.5 | W25: =IF('2. Operating Budget'!$D19>0,$C25/12,'2. Operating Budget'!$B19*4.3+'2. Operating Budget'!$C19+'2. Operating Budget'!$E19*W$7) -> 12.5 | X25: =IF('2. Operating Budget'!$D19>0,$C25/12,'2. Operating Budget'!$B19*4.3+'2. Operating Budget'!$C19+'2. Operating Budget'!$E19*X$7) -> 12.5 | Y25: =IF('2. Operating Budget'!$D19>0,$C25/12,'2. Operating Budget'!$B19*4.3+'2. Operating Budget'!$C19+'2. Operating Budget'!$E19*Y$7) -> 12.5 | Z25: =IF('2. Operating Budget'!$D19>0,$C25/12,'2. Operating Budget'!$B19*4.3+'2. Operating Budget'!$C19+'2. Operating Budget'!$E19*Z$7) -> 12.5 | AA25: =IF('2. Operating Budget'!$D19>0,$C25/12,'2. Operating Budget'!$B19*4.3+'2. Operating Budget'!$C19+'2. Operating Budget'!$E19*AA$7) -> 12.5 | AB25: =IF('2. Operating Budget'!$D19>0,$C25/12,'2. Operating Budget'!$B19*4.3+'2. Operating Budget'!$C19+'2. Operating Budget'!$E19*AB$7) -> 12.5 | AC25: 150 | AD25: =IF('2. Operating Budget'!$E19>0,'2. Operating Budget'!$E19*'8. P&L and Cashflow'!AD$7,'2. Operating Budget'!$K19) -> 150 | AE25: =IF('2. Operating Budget'!$E19>0,'2. Operating Budget'!$E19*'8. P&L and Cashflow'!AE$7,'2. Operating Budget'!$K19) -> 150 | AF25: =IF('2. Operating Budget'!$E19>0,'2. Operating Budget'!$E19*'8. P&L and Cashflow'!AF$7,'2. Operating Budget'!$K19) -> 150
B26: =IF('2. Operating Budget'!A20="","",'2. Operating Budget'!A20) ->  | C26: ='2. Operating Budget'!K20 -> 0 | D26: =IF('2. Operating Budget'!$D20>0,$C26/12,'2. Operating Budget'!$B20*4.3+'2. Operating Budget'!$C20+'2. Operating Budget'!$E20*D$7) -> 0 | E26: =IF('2. Operating Budget'!$D20>0,$C26/12,'2. Operating Budget'!$B20*4.3+'2. Operating Budget'!$C20+'2. Operating Budget'!$E20*E$7) -> 0 | F26: =IF('2. Operating Budget'!$D20>0,$C26/12,'2. Operating Budget'!$B20*4.3+'2. Operating Budget'!$C20+'2. Operating Budget'!$E20*F$7) -> 0 | G26: =IF('2. Operating Budget'!$D20>0,$C26/12,'2. Operating Budget'!$B20*4.3+'2. Operating Budget'!$C20+'2. Operating Budget'!$E20*G$7) -> 0 | H26: =IF('2. Operating Budget'!$D20>0,$C26/12,'2. Operating Budget'!$B20*4.3+'2. Operating Budget'!$C20+'2. Operating Budget'!$E20*H$7) -> 0 | I26: =IF('2. Operating Budget'!$D20>0,$C26/12,'2. Operating Budget'!$B20*4.3+'2. Operating Budget'!$C20+'2. Operating Budget'!$E20*I$7) -> 0 | J26: =IF('2. Operating Budget'!$D20>0,$C26/12,'2. Operating Budget'!$B20*4.3+'2. Operating Budget'!$C20+'2. Operating Budget'!$E20*J$7) -> 0 | K26: =IF('2. Operating Budget'!$D20>0,$C26/12,'2. Operating Budget'!$B20*4.3+'2. Operating Budget'!$C20+'2. Operating Budget'!$E20*K$7) -> 0 | L26: =IF('2. Operating Budget'!$D20>0,$C26/12,'2. Operating Budget'!$B20*4.3+'2. Operating Budget'!$C20+'2. Operating Budget'!$E20*L$7) -> 0 | M26: =IF('2. Operating Budget'!$D20>0,$C26/12,'2. Operating Budget'!$B20*4.3+'2. Operating Budget'!$C20+'2. Operating Budget'!$E20*M$7) -> 0 | N26: =IF('2. Operating Budget'!$D20>0,$C26/12,'2. Operating Budget'!$B20*4.3+'2. Operating Budget'!$C20+'2. Operating Budget'!$E20*N$7) -> 0 | O26: =IF('2. Operating Budget'!$D20>0,$C26/12,'2. Operating Budget'!$B20*4.3+'2. Operating Budget'!$C20+'2. Operating Budget'!$E20*O$7) -> 0 | P26: 0 | Q26: =IF('2. Operating Budget'!$D20>0,$C26/12,'2. Operating Budget'!$B20*4.3+'2. Operating Budget'!$C20+'2. Operating Budget'!$E20*Q$7) -> 0 | R26: =IF('2. Operating Budget'!$D20>0,$C26/12,'2. Operating Budget'!$B20*4.3+'2. Operating Budget'!$C20+'2. Operating Budget'!$E20*R$7) -> 0 | S26: =IF('2. Operating Budget'!$D20>0,$C26/12,'2. Operating Budget'!$B20*4.3+'2. Operating Budget'!$C20+'2. Operating Budget'!$E20*S$7) -> 0 | T26: =IF('2. Operating Budget'!$D20>0,$C26/12,'2. Operating Budget'!$B20*4.3+'2. Operating Budget'!$C20+'2. Operating Budget'!$E20*T$7) -> 0 | U26: =IF('2. Operating Budget'!$D20>0,$C26/12,'2. Operating Budget'!$B20*4.3+'2. Operating Budget'!$C20+'2. Operating Budget'!$E20*U$7) -> 0 | V26: =IF('2. Operating Budget'!$D20>0,$C26/12,'2. Operating Budget'!$B20*4.3+'2. Operating Budget'!$C20+'2. Operating Budget'!$E20*V$7) -> 0 | W26: =IF('2. Operating Budget'!$D20>0,$C26/12,'2. Operating Budget'!$B20*4.3+'2. Operating Budget'!$C20+'2. Operating Budget'!$E20*W$7) -> 0 | X26: =IF('2. Operating Budget'!$D20>0,$C26/12,'2. Operating Budget'!$B20*4.3+'2. Operating Budget'!$C20+'2. Operating Budget'!$E20*X$7) -> 0 | Y26: =IF('2. Operating Budget'!$D20>0,$C26/12,'2. Operating Budget'!$B20*4.3+'2. Operating Budget'!$C20+'2. Operating Budget'!$E20*Y$7) -> 0 | Z26: =IF('2. Operating Budget'!$D20>0,$C26/12,'2. Operating Budget'!$B20*4.3+'2. Operating Budget'!$C20+'2. Operating Budget'!$E20*Z$7) -> 0 | AA26: =IF('2. Operating Budget'!$D20>0,$C26/12,'2. Operating Budget'!$B20*4.3+'2. Operating Budget'!$C20+'2. Operating Budget'!$E20*AA$7) -> 0 | AB26: =IF('2. Operating Budget'!$D20>0,$C26/12,'2. Operating Budget'!$B20*4.3+'2. Operating Budget'!$C20+'2. Operating Budget'!$E20*AB$7) -> 0 | AC26: 0 | AD26: =IF('2. Operating Budget'!$E20>0,'2. Operating Budget'!$E20*'8. P&L and Cashflow'!AD$7,'2. Operating Budget'!$K20) -> 0 | AE26: =IF('2. Operating Budget'!$E20>0,'2. Operating Budget'!$E20*'8. P&L and Cashflow'!AE$7,'2. Operating Budget'!$K20) -> 0 | AF26: =IF('2. Operating Budget'!$E20>0,'2. Operating Budget'!$E20*'8. P&L and Cashflow'!AF$7,'2. Operating Budget'!$K20) -> 0
B27: =IF('2. Operating Budget'!A21="","",'2. Operating Budget'!A21) -> Advertising Expenses | C27: ='2. Operating Budget'!K21 -> 1035 | D27: =IF('2. Operating Budget'!$D21>0,$C27/12,'2. Operating Budget'!$B21*4.3+'2. Operating Budget'!$C21+'2. Operating Budget'!$E21*D$7) -> 45 | E27: =IF('2. Operating Budget'!$D21>0,$C27/12,'2. Operating Budget'!$B21*4.3+'2. Operating Budget'!$C21+'2. Operating Budget'!$E21*E$7) -> 90 | F27: =IF('2. Operating Budget'!$D21>0,$C27/12,'2. Operating Budget'!$B21*4.3+'2. Operating Budget'!$C21+'2. Operating Budget'!$E21*F$7) -> 90 | G27: =IF('2. Operating Budget'!$D21>0,$C27/12,'2. Operating Budget'!$B21*4.3+'2. Operating Budget'!$C21+'2. Operating Budget'!$E21*G$7) -> 90 | H27: =IF('2. Operating Budget'!$D21>0,$C27/12,'2. Operating Budget'!$B21*4.3+'2. Operating Budget'!$C21+'2. Operating Budget'!$E21*H$7) -> 90 | I27: =IF('2. Operating Budget'!$D21>0,$C27/12,'2. Operating Budget'!$B21*4.3+'2. Operating Budget'!$C21+'2. Operating Budget'!$E21*I$7) -> 90 | J27: =IF('2. Operating Budget'!$D21>0,$C27/12,'2. Operating Budget'!$B21*4.3+'2. Operating Budget'!$C21+'2. Operating Budget'!$E21*J$7) -> 90 | K27: =IF('2. Operating Budget'!$D21>0,$C27/12,'2. Operating Budget'!$B21*4.3+'2. Operating Budget'!$C21+'2. Operating Budget'!$E21*K$7) -> 90 | L27: =IF('2. Operating Budget'!$D21>0,$C27/12,'2. Operating Budget'!$B21*4.3+'2. Operating Budget'!$C21+'2. Operating Budget'!$E21*L$7) -> 90 | M27: =IF('2. Operating Budget'!$D21>0,$C27/12,'2. Operating Budget'!$B21*4.3+'2. Operating Budget'!$C21+'2. Operating Budget'!$E21*M$7) -> 90 | N27: =IF('2. Operating Budget'!$D21>0,$C27/12,'2. Operating Budget'!$B21*4.3+'2. Operating Budget'!$C21+'2. Operating Budget'!$E21*N$7) -> 90 | O27: =IF('2. Operating Budget'!$D21>0,$C27/12,'2. Operating Budget'!$B21*4.3+'2. Operating Budget'!$C21+'2. Operating Budget'!$E21*O$7) -> 90 | P27: 1035 | Q27: =IF('2. Operating Budget'!$D21>0,$C27/12,'2. Operating Budget'!$B21*4.3+'2. Operating Budget'!$C21+'2. Operating Budget'!$E21*Q$7) -> 100.2 | R27: =IF('2. Operating Budget'!$D21>0,$C27/12,'2. Operating Budget'!$B21*4.3+'2. Operating Budget'!$C21+'2. Operating Budget'!$E21*R$7) -> 100.2 | S27: =IF('2. Operating Budget'!$D21>0,$C27/12,'2. Operating Budget'!$B21*4.3+'2. Operating Budget'!$C21+'2. Operating Budget'!$E21*S$7) -> 100.2 | T27: =IF('2. Operating Budget'!$D21>0,$C27/12,'2. Operating Budget'!$B21*4.3+'2. Operating Budget'!$C21+'2. Operating Budget'!$E21*T$7) -> 100.2 | U27: =IF('2. Operating Budget'!$D21>0,$C27/12,'2. Operating Budget'!$B21*4.3+'2. Operating Budget'!$C21+'2. Operating Budget'!$E21*U$7) -> 100.2 | V27: =IF('2. Operating Budget'!$D21>0,$C27/12,'2. Operating Budget'!$B21*4.3+'2. Operating Budget'!$C21+'2. Operating Budget'!$E21*V$7) -> 100.2 | W27: =IF('2. Operating Budget'!$D21>0,$C27/12,'2. Operating Budget'!$B21*4.3+'2. Operating Budget'!$C21+'2. Operating Budget'!$E21*W$7) -> 100.2 | X27: =IF('2. Operating Budget'!$D21>0,$C27/12,'2. Operating Budget'!$B21*4.3+'2. Operating Budget'!$C21+'2. Operating Budget'!$E21*X$7) -> 100.2 | Y27: =IF('2. Operating Budget'!$D21>0,$C27/12,'2. Operating Budget'!$B21*4.3+'2. Operating Budget'!$C21+'2. Operating Budget'!$E21*Y$7) -> 100.2 | Z27: =IF('2. Operating Budget'!$D21>0,$C27/12,'2. Operating Budget'!$B21*4.3+'2. Operating Budget'!$C21+'2. Operating Budget'!$E21*Z$7) -> 100.2 | AA27: =IF('2. Operating Budget'!$D21>0,$C27/12,'2. Operating Budget'!$B21*4.3+'2. Operating Budget'!$C21+'2. Operating Budget'!$E21*AA$7) -> 100.2 | AB27: =IF('2. Operating Budget'!$D21>0,$C27/12,'2. Operating Budget'!$B21*4.3+'2. Operating Budget'!$C21+'2. Operating Budget'!$E21*AB$7) -> 100.2 | AC27: 1202.4 | AD27: =IF('2. Operating Budget'!$E21>0,'2. Operating Budget'!$E21*'8. P&L and Cashflow'!AD$7,'2. Operating Budget'!$K21) -> 1339.2 | AE27: =IF('2. Operating Budget'!$E21>0,'2. Operating Budget'!$E21*'8. P&L and Cashflow'!AE$7,'2. Operating Budget'!$K21) -> 1492.164 | AF27: =IF('2. Operating Budget'!$E21>0,'2. Operating Budget'!$E21*'8. P&L and Cashflow'!AF$7,'2. Operating Budget'!$K21) -> 1663.281
B28: =IF('2. Operating Budget'!A22="","",'2. Operating Budget'!A22) ->  | C28: ='2. Operating Budget'!K22 -> 0 | D28: =IF('2. Operating Budget'!$D22>0,$C28/12,'2. Operating Budget'!$B22*4.3+'2. Operating Budget'!$C22+'2. Operating Budget'!$E22*D$7) -> 0 | E28: =IF('2. Operating Budget'!$D22>0,$C28/12,'2. Operating Budget'!$B22*4.3+'2. Operating Budget'!$C22+'2. Operating Budget'!$E22*E$7) -> 0 | F28: =IF('2. Operating Budget'!$D22>0,$C28/12,'2. Operating Budget'!$B22*4.3+'2. Operating Budget'!$C22+'2. Operating Budget'!$E22*F$7) -> 0 | G28: =IF('2. Operating Budget'!$D22>0,$C28/12,'2. Operating Budget'!$B22*4.3+'2. Operating Budget'!$C22+'2. Operating Budget'!$E22*G$7) -> 0 | H28: =IF('2. Operating Budget'!$D22>0,$C28/12,'2. Operating Budget'!$B22*4.3+'2. Operating Budget'!$C22+'2. Operating Budget'!$E22*H$7) -> 0 | I28: =IF('2. Operating Budget'!$D22>0,$C28/12,'2. Operating Budget'!$B22*4.3+'2. Operating Budget'!$C22+'2. Operating Budget'!$E22*I$7) -> 0 | J28: =IF('2. Operating Budget'!$D22>0,$C28/12,'2. Operating Budget'!$B22*4.3+'2. Operating Budget'!$C22+'2. Operating Budget'!$E22*J$7) -> 0 | K28: =IF('2. Operating Budget'!$D22>0,$C28/12,'2. Operating Budget'!$B22*4.3+'2. Operating Budget'!$C22+'2. Operating Budget'!$E22*K$7) -> 0 | L28: =IF('2. Operating Budget'!$D22>0,$C28/12,'2. Operating Budget'!$B22*4.3+'2. Operating Budget'!$C22+'2. Operating Budget'!$E22*L$7) -> 0 | M28: =IF('2. Operating Budget'!$D22>0,$C28/12,'2. Operating Budget'!$B22*4.3+'2. Operating Budget'!$C22+'2. Operating Budget'!$E22*M$7) -> 0 | N28: =IF('2. Operating Budget'!$D22>0,$C28/12,'2. Operating Budget'!$B22*4.3+'2. Operating Budget'!$C22+'2. Operating Budget'!$E22*N$7) -> 0 | O28: =IF('2. Operating Budget'!$D22>0,$C28/12,'2. Operating Budget'!$B22*4.3+'2. Operating Budget'!$C22+'2. Operating Budget'!$E22*O$7) -> 0 | P28: 0 | Q28: =IF('2. Operating Budget'!$D22>0,$C28/12,'2. Operating Budget'!$B22*4.3+'2. Operating Budget'!$C22+'2. Operating Budget'!$E22*Q$7) -> 0 | R28: =IF('2. Operating Budget'!$D22>0,$C28/12,'2. Operating Budget'!$B22*4.3+'2. Operating Budget'!$C22+'2. Operating Budget'!$E22*R$7) -> 0 | S28: =IF('2. Operating Budget'!$D22>0,$C28/12,'2. Operating Budget'!$B22*4.3+'2. Operating Budget'!$C22+'2. Operating Budget'!$E22*S$7) -> 0 | T28: =IF('2. Operating Budget'!$D22>0,$C28/12,'2. Operating Budget'!$B22*4.3+'2. Operating Budget'!$C22+'2. Operating Budget'!$E22*T$7) -> 0 | U28: =IF('2. Operating Budget'!$D22>0,$C28/12,'2. Operating Budget'!$B22*4.3+'2. Operating Budget'!$C22+'2. Operating Budget'!$E22*U$7) -> 0 | V28: =IF('2. Operating Budget'!$D22>0,$C28/12,'2. Operating Budget'!$B22*4.3+'2. Operating Budget'!$C22+'2. Operating Budget'!$E22*V$7) -> 0 | W28: =IF('2. Operating Budget'!$D22>0,$C28/12,'2. Operating Budget'!$B22*4.3+'2. Operating Budget'!$C22+'2. Operating Budget'!$E22*W$7) -> 0 | X28: =IF('2. Operating Budget'!$D22>0,$C28/12,'2. Operating Budget'!$B22*4.3+'2. Operating Budget'!$C22+'2. Operating Budget'!$E22*X$7) -> 0 | Y28: =IF('2. Operating Budget'!$D22>0,$C28/12,'2. Operating Budget'!$B22*4.3+'2. Operating Budget'!$C22+'2. Operating Budget'!$E22*Y$7) -> 0 | Z28: =IF('2. Operating Budget'!$D22>0,$C28/12,'2. Operating Budget'!$B22*4.3+'2. Operating Budget'!$C22+'2. Operating Budget'!$E22*Z$7) -> 0 | AA28: =IF('2. Operating Budget'!$D22>0,$C28/12,'2. Operating Budget'!$B22*4.3+'2. Operating Budget'!$C22+'2. Operating Budget'!$E22*AA$7) -> 0 | AB28: =IF('2. Operating Budget'!$D22>0,$C28/12,'2. Operating Budget'!$B22*4.3+'2. Operating Budget'!$C22+'2. Operating Budget'!$E22*AB$7) -> 0 | AC28: 0 | AD28: =IF('2. Operating Budget'!$E22>0,'2. Operating Budget'!$E22*'8. P&L and Cashflow'!AD$7,'2. Operating Budget'!$K22) -> 0 | AE28: =IF('2. Operating Budget'!$E22>0,'2. Operating Budget'!$E22*'8. P&L and Cashflow'!AE$7,'2. Operating Budget'!$K22) -> 0 | AF28: =IF('2. Operating Budget'!$E22>0,'2. Operating Budget'!$E22*'8. P&L and Cashflow'!AF$7,'2. Operating Budget'!$K22) -> 0
B29: =IF('2. Operating Budget'!A23="","",'2. Operating Budget'!A23) ->  | C29: ='2. Operating Budget'!K23 -> 0 | D29: =IF('2. Operating Budget'!$D23>0,$C29/12,'2. Operating Budget'!$B23*4.3+'2. Operating Budget'!$C23+'2. Operating Budget'!$E23*D$7) -> 0 | E29: =IF('2. Operating Budget'!$D23>0,$C29/12,'2. Operating Budget'!$B23*4.3+'2. Operating Budget'!$C23+'2. Operating Budget'!$E23*E$7) -> 0 | F29: =IF('2. Operating Budget'!$D23>0,$C29/12,'2. Operating Budget'!$B23*4.3+'2. Operating Budget'!$C23+'2. Operating Budget'!$E23*F$7) -> 0 | G29: =IF('2. Operating Budget'!$D23>0,$C29/12,'2. Operating Budget'!$B23*4.3+'2. Operating Budget'!$C23+'2. Operating Budget'!$E23*G$7) -> 0 | H29: =IF('2. Operating Budget'!$D23>0,$C29/12,'2. Operating Budget'!$B23*4.3+'2. Operating Budget'!$C23+'2. Operating Budget'!$E23*H$7) -> 0 | I29: =IF('2. Operating Budget'!$D23>0,$C29/12,'2. Operating Budget'!$B23*4.3+'2. Operating Budget'!$C23+'2. Operating Budget'!$E23*I$7) -> 0 | J29: =IF('2. Operating Budget'!$D23>0,$C29/12,'2. Operating Budget'!$B23*4.3+'2. Operating Budget'!$C23+'2. Operating Budget'!$E23*J$7) -> 0 | K29: =IF('2. Operating Budget'!$D23>0,$C29/12,'2. Operating Budget'!$B23*4.3+'2. Operating Budget'!$C23+'2. Operating Budget'!$E23*K$7) -> 0 | L29: =IF('2. Operating Budget'!$D23>0,$C29/12,'2. Operating Budget'!$B23*4.3+'2. Operating Budget'!$C23+'2. Operating Budget'!$E23*L$7) -> 0 | M29: =IF('2. Operating Budget'!$D23>0,$C29/12,'2. Operating Budget'!$B23*4.3+'2. Operating Budget'!$C23+'2. Operating Budget'!$E23*M$7) -> 0 | N29: =IF('2. Operating Budget'!$D23>0,$C29/12,'2. Operating Budget'!$B23*4.3+'2. Operating Budget'!$C23+'2. Operating Budget'!$E23*N$7) -> 0 | O29: =IF('2. Operating Budget'!$D23>0,$C29/12,'2. Operating Budget'!$B23*4.3+'2. Operating Budget'!$C23+'2. Operating Budget'!$E23*O$7) -> 0 | P29: =SUM(D29:O29) -> 0 | Q29: =IF('2. Operating Budget'!$D23>0,$C29/12,'2. Operating Budget'!$B23*4.3+'2. Operating Budget'!$C23+'2. Operating Budget'!$E23*Q$7) -> 0 | R29: =IF('2. Operating Budget'!$D23>0,$C29/12,'2. Operating Budget'!$B23*4.3+'2. Operating Budget'!$C23+'2. Operating Budget'!$E23*R$7) -> 0 | S29: =IF('2. Operating Budget'!$D23>0,$C29/12,'2. Operating Budget'!$B23*4.3+'2. Operating Budget'!$C23+'2. Operating Budget'!$E23*S$7) -> 0 | T29: =IF('2. Operating Budget'!$D23>0,$C29/12,'2. Operating Budget'!$B23*4.3+'2. Operating Budget'!$C23+'2. Operating Budget'!$E23*T$7) -> 0 | U29: =IF('2. Operating Budget'!$D23>0,$C29/12,'2. Operating Budget'!$B23*4.3+'2. Operating Budget'!$C23+'2. Operating Budget'!$E23*U$7) -> 0 | V29: =IF('2. Operating Budget'!$D23>0,$C29/12,'2. Operating Budget'!$B23*4.3+'2. Operating Budget'!$C23+'2. Operating Budget'!$E23*V$7) -> 0 | W29: =IF('2. Operating Budget'!$D23>0,$C29/12,'2. Operating Budget'!$B23*4.3+'2. Operating Budget'!$C23+'2. Operating Budget'!$E23*W$7) -> 0 | X29: =IF('2. Operating Budget'!$D23>0,$C29/12,'2. Operating Budget'!$B23*4.3+'2. Operating Budget'!$C23+'2. Operating Budget'!$E23*X$7) -> 0 | Y29: =IF('2. Operating Budget'!$D23>0,$C29/12,'2. Operating Budget'!$B23*4.3+'2. Operating Budget'!$C23+'2. Operating Budget'!$E23*Y$7) -> 0 | Z29: =IF('2. Operating Budget'!$D23>0,$C29/12,'2. Operating Budget'!$B23*4.3+'2. Operating Budget'!$C23+'2. Operating Budget'!$E23*Z$7) -> 0 | AA29: =IF('2. Operating Budget'!$D23>0,$C29/12,'2. Operating Budget'!$B23*4.3+'2. Operating Budget'!$C23+'2. Operating Budget'!$E23*AA$7) -> 0 | AB29: =IF('2. Operating Budget'!$D23>0,$C29/12,'2. Operating Budget'!$B23*4.3+'2. Operating Budget'!$C23+'2. Operating Budget'!$E23*AB$7) -> 0 | AC29: 0 | AD29: =IF('2. Operating Budget'!$E23>0,'2. Operating Budget'!$E23*'8. P&L and Cashflow'!AD$7,'2. Operating Budget'!$K23) -> 0 | AE29: =IF('2. Operating Budget'!$E23>0,'2. Operating Budget'!$E23*'8. P&L and Cashflow'!AE$7,'2. Operating Budget'!$K23) -> 0 | AF29: =IF('2. Operating Budget'!$E23>0,'2. Operating Budget'!$E23*'8. P&L and Cashflow'!AF$7,'2. Operating Budget'!$K23) -> 0
B30: =IF('2. Operating Budget'!A24="","",'2. Operating Budget'!A24) ->  | C30: ='2. Operating Budget'!K24 -> 0 | D30: =IF('2. Operating Budget'!$D24>0,$C30/12,'2. Operating Budget'!$B24*4.3+'2. Operating Budget'!$C24+'2. Operating Budget'!$E24*D$7) -> 0 | E30: =IF('2. Operating Budget'!$D24>0,$C30/12,'2. Operating Budget'!$B24*4.3+'2. Operating Budget'!$C24+'2. Operating Budget'!$E24*E$7) -> 0 | F30: =IF('2. Operating Budget'!$D24>0,$C30/12,'2. Operating Budget'!$B24*4.3+'2. Operating Budget'!$C24+'2. Operating Budget'!$E24*F$7) -> 0 | G30: =IF('2. Operating Budget'!$D24>0,$C30/12,'2. Operating Budget'!$B24*4.3+'2. Operating Budget'!$C24+'2. Operating Budget'!$E24*G$7) -> 0 | H30: =IF('2. Operating Budget'!$D24>0,$C30/12,'2. Operating Budget'!$B24*4.3+'2. Operating Budget'!$C24+'2. Operating Budget'!$E24*H$7) -> 0 | I30: =IF('2. Operating Budget'!$D24>0,$C30/12,'2. Operating Budget'!$B24*4.3+'2. Operating Budget'!$C24+'2. Operating Budget'!$E24*I$7) -> 0 | J30: =IF('2. Operating Budget'!$D24>0,$C30/12,'2. Operating Budget'!$B24*4.3+'2. Operating Budget'!$C24+'2. Operating Budget'!$E24*J$7) -> 0 | K30: =IF('2. Operating Budget'!$D24>0,$C30/12,'2. Operating Budget'!$B24*4.3+'2. Operating Budget'!$C24+'2. Operating Budget'!$E24*K$7) -> 0 | L30: =IF('2. Operating Budget'!$D24>0,$C30/12,'2. Operating Budget'!$B24*4.3+'2. Operating Budget'!$C24+'2. Operating Budget'!$E24*L$7) -> 0 | M30: =IF('2. Operating Budget'!$D24>0,$C30/12,'2. Operating Budget'!$B24*4.3+'2. Operating Budget'!$C24+'2. Operating Budget'!$E24*M$7) -> 0 | N30: =IF('2. Operating Budget'!$D24>0,$C30/12,'2. Operating Budget'!$B24*4.3+'2. Operating Budget'!$C24+'2. Operating Budget'!$E24*N$7) -> 0 | O30: =IF('2. Operating Budget'!$D24>0,$C30/12,'2. Operating Budget'!$B24*4.3+'2. Operating Budget'!$C24+'2. Operating Budget'!$E24*O$7) -> 0 | P30: 0 | Q30: =IF('2. Operating Budget'!$D24>0,$C30/12,'2. Operating Budget'!$B24*4.3+'2. Operating Budget'!$C24+'2. Operating Budget'!$E24*Q$7) -> 0 | R30: =IF('2. Operating Budget'!$D24>0,$C30/12,'2. Operating Budget'!$B24*4.3+'2. Operating Budget'!$C24+'2. Operating Budget'!$E24*R$7) -> 0 | S30: =IF('2. Operating Budget'!$D24>0,$C30/12,'2. Operating Budget'!$B24*4.3+'2. Operating Budget'!$C24+'2. Operating Budget'!$E24*S$7) -> 0 | T30: =IF('2. Operating Budget'!$D24>0,$C30/12,'2. Operating Budget'!$B24*4.3+'2. Operating Budget'!$C24+'2. Operating Budget'!$E24*T$7) -> 0 | U30: =IF('2. Operating Budget'!$D24>0,$C30/12,'2. Operating Budget'!$B24*4.3+'2. Operating Budget'!$C24+'2. Operating Budget'!$E24*U$7) -> 0 | V30: =IF('2. Operating Budget'!$D24>0,$C30/12,'2. Operating Budget'!$B24*4.3+'2. Operating Budget'!$C24+'2. Operating Budget'!$E24*V$7) -> 0 | W30: =IF('2. Operating Budget'!$D24>0,$C30/12,'2. Operating Budget'!$B24*4.3+'2. Operating Budget'!$C24+'2. Operating Budget'!$E24*W$7) -> 0 | X30: =IF('2. Operating Budget'!$D24>0,$C30/12,'2. Operating Budget'!$B24*4.3+'2. Operating Budget'!$C24+'2. Operating Budget'!$E24*X$7) -> 0 | Y30: =IF('2. Operating Budget'!$D24>0,$C30/12,'2. Operating Budget'!$B24*4.3+'2. Operating Budget'!$C24+'2. Operating Budget'!$E24*Y$7) -> 0 | Z30: =IF('2. Operating Budget'!$D24>0,$C30/12,'2. Operating Budget'!$B24*4.3+'2. Operating Budget'!$C24+'2. Operating Budget'!$E24*Z$7) -> 0 | AA30: =IF('2. Operating Budget'!$D24>0,$C30/12,'2. Operating Budget'!$B24*4.3+'2. Operating Budget'!$C24+'2. Operating Budget'!$E24*AA$7) -> 0 | AB30: =IF('2. Operating Budget'!$D24>0,$C30/12,'2. Operating Budget'!$B24*4.3+'2. Operating Budget'!$C24+'2. Operating Budget'!$E24*AB$7) -> 0 | AC30: 0 | AD30: =IF('2. Operating Budget'!$E24>0,'2. Operating Budget'!$E24*'8. P&L and Cashflow'!AD$7,'2. Operating Budget'!$K24) -> 0 | AE30: =IF('2. Operating Budget'!$E24>0,'2. Operating Budget'!$E24*'8. P&L and Cashflow'!AE$7,'2. Operating Budget'!$K24) -> 0 | AF30: =IF('2. Operating Budget'!$E24>0,'2. Operating Budget'!$E24*'8. P&L and Cashflow'!AF$7,'2. Operating Budget'!$K24) -> 0
B31: =IF('2. Operating Budget'!A25="","",'2. Operating Budget'!A25) ->  | C31: ='2. Operating Budget'!K25 -> 0 | D31: =IF('2. Operating Budget'!$D25>0,$C31/12,'2. Operating Budget'!$B25*4.3+'2. Operating Budget'!$C25+'2. Operating Budget'!$E25*D$7) -> 0 | E31: =IF('2. Operating Budget'!$D25>0,$C31/12,'2. Operating Budget'!$B25*4.3+'2. Operating Budget'!$C25+'2. Operating Budget'!$E25*E$7) -> 0 | F31: =IF('2. Operating Budget'!$D25>0,$C31/12,'2. Operating Budget'!$B25*4.3+'2. Operating Budget'!$C25+'2. Operating Budget'!$E25*F$7) -> 0 | G31: =IF('2. Operating Budget'!$D25>0,$C31/12,'2. Operating Budget'!$B25*4.3+'2. Operating Budget'!$C25+'2. Operating Budget'!$E25*G$7) -> 0 | H31: =IF('2. Operating Budget'!$D25>0,$C31/12,'2. Operating Budget'!$B25*4.3+'2. Operating Budget'!$C25+'2. Operating Budget'!$E25*H$7) -> 0 | I31: =IF('2. Operating Budget'!$D25>0,$C31/12,'2. Operating Budget'!$B25*4.3+'2. Operating Budget'!$C25+'2. Operating Budget'!$E25*I$7) -> 0 | J31: =IF('2. Operating Budget'!$D25>0,$C31/12,'2. Operating Budget'!$B25*4.3+'2. Operating Budget'!$C25+'2. Operating Budget'!$E25*J$7) -> 0 | K31: =IF('2. Operating Budget'!$D25>0,$C31/12,'2. Operating Budget'!$B25*4.3+'2. Operating Budget'!$C25+'2. Operating Budget'!$E25*K$7) -> 0 | L31: =IF('2. Operating Budget'!$D25>0,$C31/12,'2. Operating Budget'!$B25*4.3+'2. Operating Budget'!$C25+'2. Operating Budget'!$E25*L$7) -> 0 | M31: =IF('2. Operating Budget'!$D25>0,$C31/12,'2. Operating Budget'!$B25*4.3+'2. Operating Budget'!$C25+'2. Operating Budget'!$E25*M$7) -> 0 | N31: =IF('2. Operating Budget'!$D25>0,$C31/12,'2. Operating Budget'!$B25*4.3+'2. Operating Budget'!$C25+'2. Operating Budget'!$E25*N$7) -> 0 | O31: =IF('2. Operating Budget'!$D25>0,$C31/12,'2. Operating Budget'!$B25*4.3+'2. Operating Budget'!$C25+'2. Operating Budget'!$E25*O$7) -> 0 | P31: 0 | Q31: =IF('2. Operating Budget'!$D25>0,$C31/12,'2. Operating Budget'!$B25*4.3+'2. Operating Budget'!$C25+'2. Operating Budget'!$E25*Q$7) -> 0 | R31: =IF('2. Operating Budget'!$D25>0,$C31/12,'2. Operating Budget'!$B25*4.3+'2. Operating Budget'!$C25+'2. Operating Budget'!$E25*R$7) -> 0 | S31: =IF('2. Operating Budget'!$D25>0,$C31/12,'2. Operating Budget'!$B25*4.3+'2. Operating Budget'!$C25+'2. Operating Budget'!$E25*S$7) -> 0 | T31: =IF('2. Operating Budget'!$D25>0,$C31/12,'2. Operating Budget'!$B25*4.3+'2. Operating Budget'!$C25+'2. Operating Budget'!$E25*T$7) -> 0 | U31: =IF('2. Operating Budget'!$D25>0,$C31/12,'2. Operating Budget'!$B25*4.3+'2. Operating Budget'!$C25+'2. Operating Budget'!$E25*U$7) -> 0 | V31: =IF('2. Operating Budget'!$D25>0,$C31/12,'2. Operating Budget'!$B25*4.3+'2. Operating Budget'!$C25+'2. Operating Budget'!$E25*V$7) -> 0 | W31: =IF('2. Operating Budget'!$D25>0,$C31/12,'2. Operating Budget'!$B25*4.3+'2. Operating Budget'!$C25+'2. Operating Budget'!$E25*W$7) -> 0 | X31: =IF('2. Operating Budget'!$D25>0,$C31/12,'2. Operating Budget'!$B25*4.3+'2. Operating Budget'!$C25+'2. Operating Budget'!$E25*X$7) -> 0 | Y31: =IF('2. Operating Budget'!$D25>0,$C31/12,'2. Operating Budget'!$B25*4.3+'2. Operating Budget'!$C25+'2. Operating Budget'!$E25*Y$7) -> 0 | Z31: =IF('2. Operating Budget'!$D25>0,$C31/12,'2. Operating Budget'!$B25*4.3+'2. Operating Budget'!$C25+'2. Operating Budget'!$E25*Z$7) -> 0 | AA31: =IF('2. Operating Budget'!$D25>0,$C31/12,'2. Operating Budget'!$B25*4.3+'2. Operating Budget'!$C25+'2. Operating Budget'!$E25*AA$7) -> 0 | AB31: =IF('2. Operating Budget'!$D25>0,$C31/12,'2. Operating Budget'!$B25*4.3+'2. Operating Budget'!$C25+'2. Operating Budget'!$E25*AB$7) -> 0 | AC31: 0 | AD31: =IF('2. Operating Budget'!$E25>0,'2. Operating Budget'!$E25*'8. P&L and Cashflow'!AD$7,'2. Operating Budget'!$K25) -> 0 | AE31: =IF('2. Operating Budget'!$E25>0,'2. Operating Budget'!$E25*'8. P&L and Cashflow'!AE$7,'2. Operating Budget'!$K25) -> 0 | AF31: =IF('2. Operating Budget'!$E25>0,'2. Operating Budget'!$E25*'8. P&L and Cashflow'!AF$7,'2. Operating Budget'!$K25) -> 0
B32: =IF('2. Operating Budget'!A26="","",'2. Operating Budget'!A26) ->  | C32: ='2. Operating Budget'!K26 -> 0 | D32: =IF('2. Operating Budget'!$D26>0,$C32/12,'2. Operating Budget'!$B26*4.3+'2. Operating Budget'!$C26+'2. Operating Budget'!$E26*D$7) -> 0 | E32: =IF('2. Operating Budget'!$D26>0,$C32/12,'2. Operating Budget'!$B26*4.3+'2. Operating Budget'!$C26+'2. Operating Budget'!$E26*E$7) -> 0 | F32: =IF('2. Operating Budget'!$D26>0,$C32/12,'2. Operating Budget'!$B26*4.3+'2. Operating Budget'!$C26+'2. Operating Budget'!$E26*F$7) -> 0 | G32: =IF('2. Operating Budget'!$D26>0,$C32/12,'2. Operating Budget'!$B26*4.3+'2. Operating Budget'!$C26+'2. Operating Budget'!$E26*G$7) -> 0 | H32: =IF('2. Operating Budget'!$D26>0,$C32/12,'2. Operating Budget'!$B26*4.3+'2. Operating Budget'!$C26+'2. Operating Budget'!$E26*H$7) -> 0 | I32: =IF('2. Operating Budget'!$D26>0,$C32/12,'2. Operating Budget'!$B26*4.3+'2. Operating Budget'!$C26+'2. Operating Budget'!$E26*I$7) -> 0 | J32: =IF('2. Operating Budget'!$D26>0,$C32/12,'2. Operating Budget'!$B26*4.3+'2. Operating Budget'!$C26+'2. Operating Budget'!$E26*J$7) -> 0 | K32: =IF('2. Operating Budget'!$D26>0,$C32/12,'2. Operating Budget'!$B26*4.3+'2. Operating Budget'!$C26+'2. Operating Budget'!$E26*K$7) -> 0 | L32: =IF('2. Operating Budget'!$D26>0,$C32/12,'2. Operating Budget'!$B26*4.3+'2. Operating Budget'!$C26+'2. Operating Budget'!$E26*L$7) -> 0 | M32: =IF('2. Operating Budget'!$D26>0,$C32/12,'2. Operating Budget'!$B26*4.3+'2. Operating Budget'!$C26+'2. Operating Budget'!$E26*M$7) -> 0 | N32: =IF('2. Operating Budget'!$D26>0,$C32/12,'2. Operating Budget'!$B26*4.3+'2. Operating Budget'!$C26+'2. Operating Budget'!$E26*N$7) -> 0 | O32: =IF('2. Operating Budget'!$D26>0,$C32/12,'2. Operating Budget'!$B26*4.3+'2. Operating Budget'!$C26+'2. Operating Budget'!$E26*O$7) -> 0 | P32: 0 | Q32: =IF('2. Operating Budget'!$D26>0,$C32/12,'2. Operating Budget'!$B26*4.3+'2. Operating Budget'!$C26+'2. Operating Budget'!$E26*Q$7) -> 0 | R32: =IF('2. Operating Budget'!$D26>0,$C32/12,'2. Operating Budget'!$B26*4.3+'2. Operating Budget'!$C26+'2. Operating Budget'!$E26*R$7) -> 0 | S32: =IF('2. Operating Budget'!$D26>0,$C32/12,'2. Operating Budget'!$B26*4.3+'2. Operating Budget'!$C26+'2. Operating Budget'!$E26*S$7) -> 0 | T32: =IF('2. Operating Budget'!$D26>0,$C32/12,'2. Operating Budget'!$B26*4.3+'2. Operating Budget'!$C26+'2. Operating Budget'!$E26*T$7) -> 0 | U32: =IF('2. Operating Budget'!$D26>0,$C32/12,'2. Operating Budget'!$B26*4.3+'2. Operating Budget'!$C26+'2. Operating Budget'!$E26*U$7) -> 0 | V32: =IF('2. Operating Budget'!$D26>0,$C32/12,'2. Operating Budget'!$B26*4.3+'2. Operating Budget'!$C26+'2. Operating Budget'!$E26*V$7) -> 0 | W32: =IF('2. Operating Budget'!$D26>0,$C32/12,'2. Operating Budget'!$B26*4.3+'2. Operating Budget'!$C26+'2. Operating Budget'!$E26*W$7) -> 0 | X32: =IF('2. Operating Budget'!$D26>0,$C32/12,'2. Operating Budget'!$B26*4.3+'2. Operating Budget'!$C26+'2. Operating Budget'!$E26*X$7) -> 0 | Y32: =IF('2. Operating Budget'!$D26>0,$C32/12,'2. Operating Budget'!$B26*4.3+'2. Operating Budget'!$C26+'2. Operating Budget'!$E26*Y$7) -> 0 | Z32: =IF('2. Operating Budget'!$D26>0,$C32/12,'2. Operating Budget'!$B26*4.3+'2. Operating Budget'!$C26+'2. Operating Budget'!$E26*Z$7) -> 0 | AA32: =IF('2. Operating Budget'!$D26>0,$C32/12,'2. Operating Budget'!$B26*4.3+'2. Operating Budget'!$C26+'2. Operating Budget'!$E26*AA$7) -> 0 | AB32: =IF('2. Operating Budget'!$D26>0,$C32/12,'2. Operating Budget'!$B26*4.3+'2. Operating Budget'!$C26+'2. Operating Budget'!$E26*AB$7) -> 0 | AC32: 0 | AD32: =IF('2. Operating Budget'!$E26>0,'2. Operating Budget'!$E26*'8. P&L and Cashflow'!AD$7,'2. Operating Budget'!$K26) -> 0 | AE32: =IF('2. Operating Budget'!$E26>0,'2. Operating Budget'!$E26*'8. P&L and Cashflow'!AE$7,'2. Operating Budget'!$K26) -> 0 | AF32: =IF('2. Operating Budget'!$E26>0,'2. Operating Budget'!$E26*'8. P&L and Cashflow'!AF$7,'2. Operating Budget'!$K26) -> 0
B33: =IF('2. Operating Budget'!A27="","",'2. Operating Budget'!A27) -> Delivery Expense (Fuel, S&H) | C33: ='2. Operating Budget'!K27 -> 2070 | D33: =IF('2. Operating Budget'!$D27>0,$C33/12,'2. Operating Budget'!$B27*4.3+'2. Operating Budget'!$C27+'2. Operating Budget'!$E27*D$7) -> 90 | E33: =IF('2. Operating Budget'!$D27>0,$C33/12,'2. Operating Budget'!$B27*4.3+'2. Operating Budget'!$C27+'2. Operating Budget'!$E27*E$7) -> 180 | F33: =IF('2. Operating Budget'!$D27>0,$C33/12,'2. Operating Budget'!$B27*4.3+'2. Operating Budget'!$C27+'2. Operating Budget'!$E27*F$7) -> 180 | G33: =IF('2. Operating Budget'!$D27>0,$C33/12,'2. Operating Budget'!$B27*4.3+'2. Operating Budget'!$C27+'2. Operating Budget'!$E27*G$7) -> 180 | H33: =IF('2. Operating Budget'!$D27>0,$C33/12,'2. Operating Budget'!$B27*4.3+'2. Operating Budget'!$C27+'2. Operating Budget'!$E27*H$7) -> 180 | I33: =IF('2. Operating Budget'!$D27>0,$C33/12,'2. Operating Budget'!$B27*4.3+'2. Operating Budget'!$C27+'2. Operating Budget'!$E27*I$7) -> 180 | J33: =IF('2. Operating Budget'!$D27>0,$C33/12,'2. Operating Budget'!$B27*4.3+'2. Operating Budget'!$C27+'2. Operating Budget'!$E27*J$7) -> 180 | K33: =IF('2. Operating Budget'!$D27>0,$C33/12,'2. Operating Budget'!$B27*4.3+'2. Operating Budget'!$C27+'2. Operating Budget'!$E27*K$7) -> 180 | L33: =IF('2. Operating Budget'!$D27>0,$C33/12,'2. Operating Budget'!$B27*4.3+'2. Operating Budget'!$C27+'2. Operating Budget'!$E27*L$7) -> 180 | M33: =IF('2. Operating Budget'!$D27>0,$C33/12,'2. Operating Budget'!$B27*4.3+'2. Operating Budget'!$C27+'2. Operating Budget'!$E27*M$7) -> 180 | N33: =IF('2. Operating Budget'!$D27>0,$C33/12,'2. Operating Budget'!$B27*4.3+'2. Operating Budget'!$C27+'2. Operating Budget'!$E27*N$7) -> 180 | O33: =IF('2. Operating Budget'!$D27>0,$C33/12,'2. Operating Budget'!$B27*4.3+'2. Operating Budget'!$C27+'2. Operating Budget'!$E27*O$7) -> 180 | P33: 2070 | Q33: =IF('2. Operating Budget'!$D27>0,$C33/12,'2. Operating Budget'!$B27*4.3+'2. Operating Budget'!$C27+'2. Operating Budget'!$E27*Q$7) -> 200.4 | R33: =IF('2. Operating Budget'!$D27>0,$C33/12,'2. Operating Budget'!$B27*4.3+'2. Operating Budget'!$C27+'2. Operating Budget'!$E27*R$7) -> 200.4 | S33: =IF('2. Operating Budget'!$D27>0,$C33/12,'2. Operating Budget'!$B27*4.3+'2. Operating Budget'!$C27+'2. Operating Budget'!$E27*S$7) -> 200.4 | T33: =IF('2. Operating Budget'!$D27>0,$C33/12,'2. Operating Budget'!$B27*4.3+'2. Operating Budget'!$C27+'2. Operating Budget'!$E27*T$7) -> 200.4 | U33: =IF('2. Operating Budget'!$D27>0,$C33/12,'2. Operating Budget'!$B27*4.3+'2. Operating Budget'!$C27+'2. Operating Budget'!$E27*U$7) -> 200.4 | V33: =IF('2. Operating Budget'!$D27>0,$C33/12,'2. Operating Budget'!$B27*4.3+'2. Operating Budget'!$C27+'2. Operating Budget'!$E27*V$7) -> 200.4 | W33: =IF('2. Operating Budget'!$D27>0,$C33/12,'2. Operating Budget'!$B27*4.3+'2. Operating Budget'!$C27+'2. Operating Budget'!$E27*W$7) -> 200.4 | X33: =IF('2. Operating Budget'!$D27>0,$C33/12,'2. Operating Budget'!$B27*4.3+'2. Operating Budget'!$C27+'2. Operating Budget'!$E27*X$7) -> 200.4 | Y33: =IF('2. Operating Budget'!$D27>0,$C33/12,'2. Operating Budget'!$B27*4.3+'2. Operating Budget'!$C27+'2. Operating Budget'!$E27*Y$7) -> 200.4 | Z33: =IF('2. Operating Budget'!$D27>0,$C33/12,'2. Operating Budget'!$B27*4.3+'2. Operating Budget'!$C27+'2. Operating Budget'!$E27*Z$7) -> 200.4 | AA33: =IF('2. Operating Budget'!$D27>0,$C33/12,'2. Operating Budget'!$B27*4.3+'2. Operating Budget'!$C27+'2. Operating Budget'!$E27*AA$7) -> 200.4 | AB33: =IF('2. Operating Budget'!$D27>0,$C33/12,'2. Operating Budget'!$B27*4.3+'2. Operating Budget'!$C27+'2. Operating Budget'!$E27*AB$7) -> 200.4 | AC33: 2404.8 | AD33: =IF('2. Operating Budget'!$E27>0,'2. Operating Budget'!$E27*'8. P&L and Cashflow'!AD$7,'2. Operating Budget'!$K27) -> 2678.4 | AE33: =IF('2. Operating Budget'!$E27>0,'2. Operating Budget'!$E27*'8. P&L and Cashflow'!AE$7,'2. Operating Budget'!$K27) -> 2984.328 | AF33: =IF('2. Operating Budget'!$E27>0,'2. Operating Budget'!$E27*'8. P&L and Cashflow'!AF$7,'2. Operating Budget'!$K27) -> 3326.562
B34: =IF('2. Operating Budget'!A28="","",'2. Operating Budget'!A28) ->  | C34: ='2. Operating Budget'!K28 -> 0 | D34: =IF('2. Operating Budget'!$D28>0,$C34/12,'2. Operating Budget'!$B28*4.3+'2. Operating Budget'!$C28+'2. Operating Budget'!$E28*D$7) -> 0 | E34: =IF('2. Operating Budget'!$D28>0,$C34/12,'2. Operating Budget'!$B28*4.3+'2. Operating Budget'!$C28+'2. Operating Budget'!$E28*E$7) -> 0 | F34: =IF('2. Operating Budget'!$D28>0,$C34/12,'2. Operating Budget'!$B28*4.3+'2. Operating Budget'!$C28+'2. Operating Budget'!$E28*F$7) -> 0 | G34: =IF('2. Operating Budget'!$D28>0,$C34/12,'2. Operating Budget'!$B28*4.3+'2. Operating Budget'!$C28+'2. Operating Budget'!$E28*G$7) -> 0 | H34: =IF('2. Operating Budget'!$D28>0,$C34/12,'2. Operating Budget'!$B28*4.3+'2. Operating Budget'!$C28+'2. Operating Budget'!$E28*H$7) -> 0 | I34: =IF('2. Operating Budget'!$D28>0,$C34/12,'2. Operating Budget'!$B28*4.3+'2. Operating Budget'!$C28+'2. Operating Budget'!$E28*I$7) -> 0 | J34: =IF('2. Operating Budget'!$D28>0,$C34/12,'2. Operating Budget'!$B28*4.3+'2. Operating Budget'!$C28+'2. Operating Budget'!$E28*J$7) -> 0 | K34: =IF('2. Operating Budget'!$D28>0,$C34/12,'2. Operating Budget'!$B28*4.3+'2. Operating Budget'!$C28+'2. Operating Budget'!$E28*K$7) -> 0 | L34: =IF('2. Operating Budget'!$D28>0,$C34/12,'2. Operating Budget'!$B28*4.3+'2. Operating Budget'!$C28+'2. Operating Budget'!$E28*L$7) -> 0 | M34: =IF('2. Operating Budget'!$D28>0,$C34/12,'2. Operating Budget'!$B28*4.3+'2. Operating Budget'!$C28+'2. Operating Budget'!$E28*M$7) -> 0 | N34: =IF('2. Operating Budget'!$D28>0,$C34/12,'2. Operating Budget'!$B28*4.3+'2. Operating Budget'!$C28+'2. Operating Budget'!$E28*N$7) -> 0 | O34: =IF('2. Operating Budget'!$D28>0,$C34/12,'2. Operating Budget'!$B28*4.3+'2. Operating Budget'!$C28+'2. Operating Budget'!$E28*O$7) -> 0 | P34: 0 | Q34: =IF('2. Operating Budget'!$D28>0,$C34/12,'2. Operating Budget'!$B28*4.3+'2. Operating Budget'!$C28+'2. Operating Budget'!$E28*Q$7) -> 0 | R34: =IF('2. Operating Budget'!$D28>0,$C34/12,'2. Operating Budget'!$B28*4.3+'2. Operating Budget'!$C28+'2. Operating Budget'!$E28*R$7) -> 0 | S34: =IF('2. Operating Budget'!$D28>0,$C34/12,'2. Operating Budget'!$B28*4.3+'2. Operating Budget'!$C28+'2. Operating Budget'!$E28*S$7) -> 0 | T34: =IF('2. Operating Budget'!$D28>0,$C34/12,'2. Operating Budget'!$B28*4.3+'2. Operating Budget'!$C28+'2. Operating Budget'!$E28*T$7) -> 0 | U34: =IF('2. Operating Budget'!$D28>0,$C34/12,'2. Operating Budget'!$B28*4.3+'2. Operating Budget'!$C28+'2. Operating Budget'!$E28*U$7) -> 0 | V34: =IF('2. Operating Budget'!$D28>0,$C34/12,'2. Operating Budget'!$B28*4.3+'2. Operating Budget'!$C28+'2. Operating Budget'!$E28*V$7) -> 0 | W34: =IF('2. Operating Budget'!$D28>0,$C34/12,'2. Operating Budget'!$B28*4.3+'2. Operating Budget'!$C28+'2. Operating Budget'!$E28*W$7) -> 0 | X34: =IF('2. Operating Budget'!$D28>0,$C34/12,'2. Operating Budget'!$B28*4.3+'2. Operating Budget'!$C28+'2. Operating Budget'!$E28*X$7) -> 0 | Y34: =IF('2. Operating Budget'!$D28>0,$C34/12,'2. Operating Budget'!$B28*4.3+'2. Operating Budget'!$C28+'2. Operating Budget'!$E28*Y$7) -> 0 | Z34: =IF('2. Operating Budget'!$D28>0,$C34/12,'2. Operating Budget'!$B28*4.3+'2. Operating Budget'!$C28+'2. Operating Budget'!$E28*Z$7) -> 0 | AA34: =IF('2. Operating Budget'!$D28>0,$C34/12,'2. Operating Budget'!$B28*4.3+'2. Operating Budget'!$C28+'2. Operating Budget'!$E28*AA$7) -> 0 | AB34: =IF('2. Operating Budget'!$D28>0,$C34/12,'2. Operating Budget'!$B28*4.3+'2. Operating Budget'!$C28+'2. Operating Budget'!$E28*AB$7) -> 0 | AC34: 0 | AD34: =IF('2. Operating Budget'!$E28>0,'2. Operating Budget'!$E28*'8. P&L and Cashflow'!AD$7,'2. Operating Budget'!$K28) -> 0 | AE34: =IF('2. Operating Budget'!$E28>0,'2. Operating Budget'!$E28*'8. P&L and Cashflow'!AE$7,'2. Operating Budget'!$K28) -> 0 | AF34: =IF('2. Operating Budget'!$E28>0,'2. Operating Budget'!$E28*'8. P&L and Cashflow'!AF$7,'2. Operating Budget'!$K28) -> 0
B35: =IF('2. Operating Budget'!A29="","",'2. Operating Budget'!A29) -> Accounting Services | C35: ='2. Operating Budget'!K29 -> 300 | D35: =IF('2. Operating Budget'!$D29>0,$C35/12,'2. Operating Budget'!$B29*4.3+'2. Operating Budget'!$C29+'2. Operating Budget'!$E29*D$7) -> 25 | E35: =IF('2. Operating Budget'!$D29>0,$C35/12,'2. Operating Budget'!$B29*4.3+'2. Operating Budget'!$C29+'2. Operating Budget'!$E29*E$7) -> 25 | F35: =IF('2. Operating Budget'!$D29>0,$C35/12,'2. Operating Budget'!$B29*4.3+'2. Operating Budget'!$C29+'2. Operating Budget'!$E29*F$7) -> 25 | G35: =IF('2. Operating Budget'!$D29>0,$C35/12,'2. Operating Budget'!$B29*4.3+'2. Operating Budget'!$C29+'2. Operating Budget'!$E29*G$7) -> 25 | H35: =IF('2. Operating Budget'!$D29>0,$C35/12,'2. Operating Budget'!$B29*4.3+'2. Operating Budget'!$C29+'2. Operating Budget'!$E29*H$7) -> 25 | I35: =IF('2. Operating Budget'!$D29>0,$C35/12,'2. Operating Budget'!$B29*4.3+'2. Operating Budget'!$C29+'2. Operating Budget'!$E29*I$7) -> 25 | J35: =IF('2. Operating Budget'!$D29>0,$C35/12,'2. Operating Budget'!$B29*4.3+'2. Operating Budget'!$C29+'2. Operating Budget'!$E29*J$7) -> 25 | K35: =IF('2. Operating Budget'!$D29>0,$C35/12,'2. Operating Budget'!$B29*4.3+'2. Operating Budget'!$C29+'2. Operating Budget'!$E29*K$7) -> 25 | L35: =IF('2. Operating Budget'!$D29>0,$C35/12,'2. Operating Budget'!$B29*4.3+'2. Operating Budget'!$C29+'2. Operating Budget'!$E29*L$7) -> 25 | M35: =IF('2. Operating Budget'!$D29>0,$C35/12,'2. Operating Budget'!$B29*4.3+'2. Operating Budget'!$C29+'2. Operating Budget'!$E29*M$7) -> 25 | N35: =IF('2. Operating Budget'!$D29>0,$C35/12,'2. Operating Budget'!$B29*4.3+'2. Operating Budget'!$C29+'2. Operating Budget'!$E29*N$7) -> 25 | O35: =IF('2. Operating Budget'!$D29>0,$C35/12,'2. Operating Budget'!$B29*4.3+'2. Operating Budget'!$C29+'2. Operating Budget'!$E29*O$7) -> 25 | P35: 300 | Q35: =IF('2. Operating Budget'!$D29>0,$C35/12,'2. Operating Budget'!$B29*4.3+'2. Operating Budget'!$C29+'2. Operating Budget'!$E29*Q$7) -> 25 | R35: =IF('2. Operating Budget'!$D29>0,$C35/12,'2. Operating Budget'!$B29*4.3+'2. Operating Budget'!$C29+'2. Operating Budget'!$E29*R$7) -> 25 | S35: =IF('2. Operating Budget'!$D29>0,$C35/12,'2. Operating Budget'!$B29*4.3+'2. Operating Budget'!$C29+'2. Operating Budget'!$E29*S$7) -> 25 | T35: =IF('2. Operating Budget'!$D29>0,$C35/12,'2. Operating Budget'!$B29*4.3+'2. Operating Budget'!$C29+'2. Operating Budget'!$E29*T$7) -> 25 | U35: =IF('2. Operating Budget'!$D29>0,$C35/12,'2. Operating Budget'!$B29*4.3+'2. Operating Budget'!$C29+'2. Operating Budget'!$E29*U$7) -> 25 | V35: =IF('2. Operating Budget'!$D29>0,$C35/12,'2. Operating Budget'!$B29*4.3+'2. Operating Budget'!$C29+'2. Operating Budget'!$E29*V$7) -> 25 | W35: =IF('2. Operating Budget'!$D29>0,$C35/12,'2. Operating Budget'!$B29*4.3+'2. Operating Budget'!$C29+'2. Operating Budget'!$E29*W$7) -> 25 | X35: =IF('2. Operating Budget'!$D29>0,$C35/12,'2. Operating Budget'!$B29*4.3+'2. Operating Budget'!$C29+'2. Operating Budget'!$E29*X$7) -> 25 | Y35: =IF('2. Operating Budget'!$D29>0,$C35/12,'2. Operating Budget'!$B29*4.3+'2. Operating Budget'!$C29+'2. Operating Budget'!$E29*Y$7) -> 25 | Z35: =IF('2. Operating Budget'!$D29>0,$C35/12,'2. Operating Budget'!$B29*4.3+'2. Operating Budget'!$C29+'2. Operating Budget'!$E29*Z$7) -> 25 | AA35: =IF('2. Operating Budget'!$D29>0,$C35/12,'2. Operating Budget'!$B29*4.3+'2. Operating Budget'!$C29+'2. Operating Budget'!$E29*AA$7) -> 25 | AB35: =IF('2. Operating Budget'!$D29>0,$C35/12,'2. Operating Budget'!$B29*4.3+'2. Operating Budget'!$C29+'2. Operating Budget'!$E29*AB$7) -> 25 | AC35: 300 | AD35: =IF('2. Operating Budget'!$E29>0,'2. Operating Budget'!$E29*'8. P&L and Cashflow'!AD$7,'2. Operating Budget'!$K29) -> 300 | AE35: =IF('2. Operating Budget'!$E29>0,'2. Operating Budget'!$E29*'8. P&L and Cashflow'!AE$7,'2. Operating Budget'!$K29) -> 300 | AF35: =IF('2. Operating Budget'!$E29>0,'2. Operating Budget'!$E29*'8. P&L and Cashflow'!AF$7,'2. Operating Budget'!$K29) -> 300
B36: =IF('2. Operating Budget'!A30="","",'2. Operating Budget'!A30) -> Banking Fees | C36: ='2. Operating Budget'!K30 -> 85 | D36: =IF('2. Operating Budget'!$D30>0,$C36/12,'2. Operating Budget'!$B30*4.3+'2. Operating Budget'!$C30+'2. Operating Budget'!$E30*D$7) -> 7.083333333 | E36: =IF('2. Operating Budget'!$D30>0,$C36/12,'2. Operating Budget'!$B30*4.3+'2. Operating Budget'!$C30+'2. Operating Budget'!$E30*E$7) -> 7.083333333 | F36: =IF('2. Operating Budget'!$D30>0,$C36/12,'2. Operating Budget'!$B30*4.3+'2. Operating Budget'!$C30+'2. Operating Budget'!$E30*F$7) -> 7.083333333 | G36: =IF('2. Operating Budget'!$D30>0,$C36/12,'2. Operating Budget'!$B30*4.3+'2. Operating Budget'!$C30+'2. Operating Budget'!$E30*G$7) -> 7.083333333 | H36: =IF('2. Operating Budget'!$D30>0,$C36/12,'2. Operating Budget'!$B30*4.3+'2. Operating Budget'!$C30+'2. Operating Budget'!$E30*H$7) -> 7.083333333 | I36: =IF('2. Operating Budget'!$D30>0,$C36/12,'2. Operating Budget'!$B30*4.3+'2. Operating Budget'!$C30+'2. Operating Budget'!$E30*I$7) -> 7.083333333 | J36: =IF('2. Operating Budget'!$D30>0,$C36/12,'2. Operating Budget'!$B30*4.3+'2. Operating Budget'!$C30+'2. Operating Budget'!$E30*J$7) -> 7.083333333 | K36: =IF('2. Operating Budget'!$D30>0,$C36/12,'2. Operating Budget'!$B30*4.3+'2. Operating Budget'!$C30+'2. Operating Budget'!$E30*K$7) -> 7.083333333 | L36: =IF('2. Operating Budget'!$D30>0,$C36/12,'2. Operating Budget'!$B30*4.3+'2. Operating Budget'!$C30+'2. Operating Budget'!$E30*L$7) -> 7.083333333 | M36: =IF('2. Operating Budget'!$D30>0,$C36/12,'2. Operating Budget'!$B30*4.3+'2. Operating Budget'!$C30+'2. Operating Budget'!$E30*M$7) -> 7.083333333 | N36: =IF('2. Operating Budget'!$D30>0,$C36/12,'2. Operating Budget'!$B30*4.3+'2. Operating Budget'!$C30+'2. Operating Budget'!$E30*N$7) -> 7.083333333 | O36: =IF('2. Operating Budget'!$D30>0,$C36/12,'2. Operating Budget'!$B30*4.3+'2. Operating Budget'!$C30+'2. Operating Budget'!$E30*O$7) -> 7.083333333 | P36: 85 | Q36: =IF('2. Operating Budget'!$D30>0,$C36/12,'2. Operating Budget'!$B30*4.3+'2. Operating Budget'!$C30+'2. Operating Budget'!$E30*Q$7) -> 7.083333333 | R36: =IF('2. Operating Budget'!$D30>0,$C36/12,'2. Operating Budget'!$B30*4.3+'2. Operating Budget'!$C30+'2. Operating Budget'!$E30*R$7) -> 7.083333333 | S36: =IF('2. Operating Budget'!$D30>0,$C36/12,'2. Operating Budget'!$B30*4.3+'2. Operating Budget'!$C30+'2. Operating Budget'!$E30*S$7) -> 7.083333333 | T36: =IF('2. Operating Budget'!$D30>0,$C36/12,'2. Operating Budget'!$B30*4.3+'2. Operating Budget'!$C30+'2. Operating Budget'!$E30*T$7) -> 7.083333333 | U36: =IF('2. Operating Budget'!$D30>0,$C36/12,'2. Operating Budget'!$B30*4.3+'2. Operating Budget'!$C30+'2. Operating Budget'!$E30*U$7) -> 7.083333333 | V36: =IF('2. Operating Budget'!$D30>0,$C36/12,'2. Operating Budget'!$B30*4.3+'2. Operating Budget'!$C30+'2. Operating Budget'!$E30*V$7) -> 7.083333333 | W36: =IF('2. Operating Budget'!$D30>0,$C36/12,'2. Operating Budget'!$B30*4.3+'2. Operating Budget'!$C30+'2. Operating Budget'!$E30*W$7) -> 7.083333333 | X36: =IF('2. Operating Budget'!$D30>0,$C36/12,'2. Operating Budget'!$B30*4.3+'2. Operating Budget'!$C30+'2. Operating Budget'!$E30*X$7) -> 7.083333333 | Y36: =IF('2. Operating Budget'!$D30>0,$C36/12,'2. Operating Budget'!$B30*4.3+'2. Operating Budget'!$C30+'2. Operating Budget'!$E30*Y$7) -> 7.083333333 | Z36: =IF('2. Operating Budget'!$D30>0,$C36/12,'2. Operating Budget'!$B30*4.3+'2. Operating Budget'!$C30+'2. Operating Budget'!$E30*Z$7) -> 7.083333333 | AA36: =IF('2. Operating Budget'!$D30>0,$C36/12,'2. Operating Budget'!$B30*4.3+'2. Operating Budget'!$C30+'2. Operating Budget'!$E30*AA$7) -> 7.083333333 | AB36: =IF('2. Operating Budget'!$D30>0,$C36/12,'2. Operating Budget'!$B30*4.3+'2. Operating Budget'!$C30+'2. Operating Budget'!$E30*AB$7) -> 7.083333333 | AC36: 85 | AD36: =IF('2. Operating Budget'!$E30>0,'2. Operating Budget'!$E30*'8. P&L and Cashflow'!AD$7,'2. Operating Budget'!$K30) -> 85 | AE36: =IF('2. Operating Budget'!$E30>0,'2. Operating Budget'!$E30*'8. P&L and Cashflow'!AE$7,'2. Operating Budget'!$K30) -> 85 | AF36: =IF('2. Operating Budget'!$E30>0,'2. Operating Budget'!$E30*'8. P&L and Cashflow'!AF$7,'2. Operating Budget'!$K30) -> 85
B37: =IF('2. Operating Budget'!A31="","",'2. Operating Budget'!A31) -> Merchant Account Fee | C37: ='2. Operating Budget'!K31 -> 1207.5 | D37: =IF('2. Operating Budget'!$D31>0,$C37/12,'2. Operating Budget'!$B31*4.3+'2. Operating Budget'!$C31+'2. Operating Budget'!$E31*D$7) -> 52.5 | E37: =IF('2. Operating Budget'!$D31>0,$C37/12,'2. Operating Budget'!$B31*4.3+'2. Operating Budget'!$C31+'2. Operating Budget'!$E31*E$7) -> 105 | F37: =IF('2. Operating Budget'!$D31>0,$C37/12,'2. Operating Budget'!$B31*4.3+'2. Operating Budget'!$C31+'2. Operating Budget'!$E31*F$7) -> 105 | G37: =IF('2. Operating Budget'!$D31>0,$C37/12,'2. Operating Budget'!$B31*4.3+'2. Operating Budget'!$C31+'2. Operating Budget'!$E31*G$7) -> 105 | H37: =IF('2. Operating Budget'!$D31>0,$C37/12,'2. Operating Budget'!$B31*4.3+'2. Operating Budget'!$C31+'2. Operating Budget'!$E31*H$7) -> 105 | I37: =IF('2. Operating Budget'!$D31>0,$C37/12,'2. Operating Budget'!$B31*4.3+'2. Operating Budget'!$C31+'2. Operating Budget'!$E31*I$7) -> 105 | J37: =IF('2. Operating Budget'!$D31>0,$C37/12,'2. Operating Budget'!$B31*4.3+'2. Operating Budget'!$C31+'2. Operating Budget'!$E31*J$7) -> 105 | K37: =IF('2. Operating Budget'!$D31>0,$C37/12,'2. Operating Budget'!$B31*4.3+'2. Operating Budget'!$C31+'2. Operating Budget'!$E31*K$7) -> 105 | L37: =IF('2. Operating Budget'!$D31>0,$C37/12,'2. Operating Budget'!$B31*4.3+'2. Operating Budget'!$C31+'2. Operating Budget'!$E31*L$7) -> 105 | M37: =IF('2. Operating Budget'!$D31>0,$C37/12,'2. Operating Budget'!$B31*4.3+'2. Operating Budget'!$C31+'2. Operating Budget'!$E31*M$7) -> 105 | N37: =IF('2. Operating Budget'!$D31>0,$C37/12,'2. Operating Budget'!$B31*4.3+'2. Operating Budget'!$C31+'2. Operating Budget'!$E31*N$7) -> 105 | O37: =IF('2. Operating Budget'!$D31>0,$C37/12,'2. Operating Budget'!$B31*4.3+'2. Operating Budget'!$C31+'2. Operating Budget'!$E31*O$7) -> 105 | P37: 1207.5 | Q37: =IF('2. Operating Budget'!$D31>0,$C37/12,'2. Operating Budget'!$B31*4.3+'2. Operating Budget'!$C31+'2. Operating Budget'!$E31*Q$7) -> 116.9 | R37: =IF('2. Operating Budget'!$D31>0,$C37/12,'2. Operating Budget'!$B31*4.3+'2. Operating Budget'!$C31+'2. Operating Budget'!$E31*R$7) -> 116.9 | S37: =IF('2. Operating Budget'!$D31>0,$C37/12,'2. Operating Budget'!$B31*4.3+'2. Operating Budget'!$C31+'2. Operating Budget'!$E31*S$7) -> 116.9 | T37: =IF('2. Operating Budget'!$D31>0,$C37/12,'2. Operating Budget'!$B31*4.3+'2. Operating Budget'!$C31+'2. Operating Budget'!$E31*T$7) -> 116.9 | U37: =IF('2. Operating Budget'!$D31>0,$C37/12,'2. Operating Budget'!$B31*4.3+'2. Operating Budget'!$C31+'2. Operating Budget'!$E31*U$7) -> 116.9 | V37: =IF('2. Operating Budget'!$D31>0,$C37/12,'2. Operating Budget'!$B31*4.3+'2. Operating Budget'!$C31+'2. Operating Budget'!$E31*V$7) -> 116.9 | W37: =IF('2. Operating Budget'!$D31>0,$C37/12,'2. Operating Budget'!$B31*4.3+'2. Operating Budget'!$C31+'2. Operating Budget'!$E31*W$7) -> 116.9 | X37: =IF('2. Operating Budget'!$D31>0,$C37/12,'2. Operating Budget'!$B31*4.3+'2. Operating Budget'!$C31+'2. Operating Budget'!$E31*X$7) -> 116.9 | Y37: =IF('2. Operating Budget'!$D31>0,$C37/12,'2. Operating Budget'!$B31*4.3+'2. Operating Budget'!$C31+'2. Operating Budget'!$E31*Y$7) -> 116.9 | Z37: =IF('2. Operating Budget'!$D31>0,$C37/12,'2. Operating Budget'!$B31*4.3+'2. Operating Budget'!$C31+'2. Operating Budget'!$E31*Z$7) -> 116.9 | AA37: =IF('2. Operating Budget'!$D31>0,$C37/12,'2. Operating Budget'!$B31*4.3+'2. Operating Budget'!$C31+'2. Operating Budget'!$E31*AA$7) -> 116.9 | AB37: =IF('2. Operating Budget'!$D31>0,$C37/12,'2. Operating Budget'!$B31*4.3+'2. Operating Budget'!$C31+'2. Operating Budget'!$E31*AB$7) -> 116.9 | AC37: 1402.8 | AD37: =IF('2. Operating Budget'!$E31>0,'2. Operating Budget'!$E31*'8. P&L and Cashflow'!AD$7,'2. Operating Budget'!$K31) -> 1562.4 | AE37: =IF('2. Operating Budget'!$E31>0,'2. Operating Budget'!$E31*'8. P&L and Cashflow'!AE$7,'2. Operating Budget'!$K31) -> 1740.858 | AF37: =IF('2. Operating Budget'!$E31>0,'2. Operating Budget'!$E31*'8. P&L and Cashflow'!AF$7,'2. Operating Budget'!$K31) -> 1940.4945
B38: =IF('2. Operating Budget'!A32="","",'2. Operating Budget'!A32) ->  | C38: ='2. Operating Budget'!K32 -> 0 | D38: =IF('2. Operating Budget'!$D32>0,$C38/12,'2. Operating Budget'!$B32*4.3+'2. Operating Budget'!$C32+'2. Operating Budget'!$E32*D$7) -> 0 | E38: =IF('2. Operating Budget'!$D32>0,$C38/12,'2. Operating Budget'!$B32*4.3+'2. Operating Budget'!$C32+'2. Operating Budget'!$E32*E$7) -> 0 | F38: =IF('2. Operating Budget'!$D32>0,$C38/12,'2. Operating Budget'!$B32*4.3+'2. Operating Budget'!$C32+'2. Operating Budget'!$E32*F$7) -> 0 | G38: =IF('2. Operating Budget'!$D32>0,$C38/12,'2. Operating Budget'!$B32*4.3+'2. Operating Budget'!$C32+'2. Operating Budget'!$E32*G$7) -> 0 | H38: =IF('2. Operating Budget'!$D32>0,$C38/12,'2. Operating Budget'!$B32*4.3+'2. Operating Budget'!$C32+'2. Operating Budget'!$E32*H$7) -> 0 | I38: =IF('2. Operating Budget'!$D32>0,$C38/12,'2. Operating Budget'!$B32*4.3+'2. Operating Budget'!$C32+'2. Operating Budget'!$E32*I$7) -> 0 | J38: =IF('2. Operating Budget'!$D32>0,$C38/12,'2. Operating Budget'!$B32*4.3+'2. Operating Budget'!$C32+'2. Operating Budget'!$E32*J$7) -> 0 | K38: =IF('2. Operating Budget'!$D32>0,$C38/12,'2. Operating Budget'!$B32*4.3+'2. Operating Budget'!$C32+'2. Operating Budget'!$E32*K$7) -> 0 | L38: =IF('2. Operating Budget'!$D32>0,$C38/12,'2. Operating Budget'!$B32*4.3+'2. Operating Budget'!$C32+'2. Operating Budget'!$E32*L$7) -> 0 | M38: =IF('2. Operating Budget'!$D32>0,$C38/12,'2. Operating Budget'!$B32*4.3+'2. Operating Budget'!$C32+'2. Operating Budget'!$E32*M$7) -> 0 | N38: =IF('2. Operating Budget'!$D32>0,$C38/12,'2. Operating Budget'!$B32*4.3+'2. Operating Budget'!$C32+'2. Operating Budget'!$E32*N$7) -> 0 | O38: =IF('2. Operating Budget'!$D32>0,$C38/12,'2. Operating Budget'!$B32*4.3+'2. Operating Budget'!$C32+'2. Operating Budget'!$E32*O$7) -> 0 | P38: 0 | Q38: =IF('2. Operating Budget'!$D32>0,$C38/12,'2. Operating Budget'!$B32*4.3+'2. Operating Budget'!$C32+'2. Operating Budget'!$E32*Q$7) -> 0 | R38: =IF('2. Operating Budget'!$D32>0,$C38/12,'2. Operating Budget'!$B32*4.3+'2. Operating Budget'!$C32+'2. Operating Budget'!$E32*R$7) -> 0 | S38: =IF('2. Operating Budget'!$D32>0,$C38/12,'2. Operating Budget'!$B32*4.3+'2. Operating Budget'!$C32+'2. Operating Budget'!$E32*S$7) -> 0 | T38: =IF('2. Operating Budget'!$D32>0,$C38/12,'2. Operating Budget'!$B32*4.3+'2. Operating Budget'!$C32+'2. Operating Budget'!$E32*T$7) -> 0 | U38: =IF('2. Operating Budget'!$D32>0,$C38/12,'2. Operating Budget'!$B32*4.3+'2. Operating Budget'!$C32+'2. Operating Budget'!$E32*U$7) -> 0 | V38: =IF('2. Operating Budget'!$D32>0,$C38/12,'2. Operating Budget'!$B32*4.3+'2. Operating Budget'!$C32+'2. Operating Budget'!$E32*V$7) -> 0 | W38: =IF('2. Operating Budget'!$D32>0,$C38/12,'2. Operating Budget'!$B32*4.3+'2. Operating Budget'!$C32+'2. Operating Budget'!$E32*W$7) -> 0 | X38: =IF('2. Operating Budget'!$D32>0,$C38/12,'2. Operating Budget'!$B32*4.3+'2. Operating Budget'!$C32+'2. Operating Budget'!$E32*X$7) -> 0 | Y38: =IF('2. Operating Budget'!$D32>0,$C38/12,'2. Operating Budget'!$B32*4.3+'2. Operating Budget'!$C32+'2. Operating Budget'!$E32*Y$7) -> 0 | Z38: =IF('2. Operating Budget'!$D32>0,$C38/12,'2. Operating Budget'!$B32*4.3+'2. Operating Budget'!$C32+'2. Operating Budget'!$E32*Z$7) -> 0 | AA38: =IF('2. Operating Budget'!$D32>0,$C38/12,'2. Operating Budget'!$B32*4.3+'2. Operating Budget'!$C32+'2. Operating Budget'!$E32*AA$7) -> 0 | AB38: =IF('2. Operating Budget'!$D32>0,$C38/12,'2. Operating Budget'!$B32*4.3+'2. Operating Budget'!$C32+'2. Operating Budget'!$E32*AB$7) -> 0 | AC38: 0 | AD38: =IF('2. Operating Budget'!$E32>0,'2. Operating Budget'!$E32*'8. P&L and Cashflow'!AD$7,'2. Operating Budget'!$K32) -> 0 | AE38: =IF('2. Operating Budget'!$E32>0,'2. Operating Budget'!$E32*'8. P&L and Cashflow'!AE$7,'2. Operating Budget'!$K32) -> 0 | AF38: =IF('2. Operating Budget'!$E32>0,'2. Operating Budget'!$E32*'8. P&L and Cashflow'!AF$7,'2. Operating Budget'!$K32) -> 0
B39: =IF('2. Operating Budget'!A33="","",'2. Operating Budget'!A33) ->  | C39: ='2. Operating Budget'!K33 -> 0 | D39: =IF('2. Operating Budget'!$D33>0,$C39/12,'2. Operating Budget'!$B33*4.3+'2. Operating Budget'!$C33+'2. Operating Budget'!$E33*D$7) -> 0 | E39: =IF('2. Operating Budget'!$D33>0,$C39/12,'2. Operating Budget'!$B33*4.3+'2. Operating Budget'!$C33+'2. Operating Budget'!$E33*E$7) -> 0 | F39: =IF('2. Operating Budget'!$D33>0,$C39/12,'2. Operating Budget'!$B33*4.3+'2. Operating Budget'!$C33+'2. Operating Budget'!$E33*F$7) -> 0 | G39: =IF('2. Operating Budget'!$D33>0,$C39/12,'2. Operating Budget'!$B33*4.3+'2. Operating Budget'!$C33+'2. Operating Budget'!$E33*G$7) -> 0 | H39: =IF('2. Operating Budget'!$D33>0,$C39/12,'2. Operating Budget'!$B33*4.3+'2. Operating Budget'!$C33+'2. Operating Budget'!$E33*H$7) -> 0 | I39: =IF('2. Operating Budget'!$D33>0,$C39/12,'2. Operating Budget'!$B33*4.3+'2. Operating Budget'!$C33+'2. Operating Budget'!$E33*I$7) -> 0 | J39: =IF('2. Operating Budget'!$D33>0,$C39/12,'2. Operating Budget'!$B33*4.3+'2. Operating Budget'!$C33+'2. Operating Budget'!$E33*J$7) -> 0 | K39: =IF('2. Operating Budget'!$D33>0,$C39/12,'2. Operating Budget'!$B33*4.3+'2. Operating Budget'!$C33+'2. Operating Budget'!$E33*K$7) -> 0 | L39: =IF('2. Operating Budget'!$D33>0,$C39/12,'2. Operating Budget'!$B33*4.3+'2. Operating Budget'!$C33+'2. Operating Budget'!$E33*L$7) -> 0 | M39: =IF('2. Operating Budget'!$D33>0,$C39/12,'2. Operating Budget'!$B33*4.3+'2. Operating Budget'!$C33+'2. Operating Budget'!$E33*M$7) -> 0 | N39: =IF('2. Operating Budget'!$D33>0,$C39/12,'2. Operating Budget'!$B33*4.3+'2. Operating Budget'!$C33+'2. Operating Budget'!$E33*N$7) -> 0 | O39: =IF('2. Operating Budget'!$D33>0,$C39/12,'2. Operating Budget'!$B33*4.3+'2. Operating Budget'!$C33+'2. Operating Budget'!$E33*O$7) -> 0 | P39: 0 | Q39: =IF('2. Operating Budget'!$D33>0,$C39/12,'2. Operating Budget'!$B33*4.3+'2. Operating Budget'!$C33+'2. Operating Budget'!$E33*Q$7) -> 0 | R39: =IF('2. Operating Budget'!$D33>0,$C39/12,'2. Operating Budget'!$B33*4.3+'2. Operating Budget'!$C33+'2. Operating Budget'!$E33*R$7) -> 0 | S39: =IF('2. Operating Budget'!$D33>0,$C39/12,'2. Operating Budget'!$B33*4.3+'2. Operating Budget'!$C33+'2. Operating Budget'!$E33*S$7) -> 0 | T39: =IF('2. Operating Budget'!$D33>0,$C39/12,'2. Operating Budget'!$B33*4.3+'2. Operating Budget'!$C33+'2. Operating Budget'!$E33*T$7) -> 0 | U39: =IF('2. Operating Budget'!$D33>0,$C39/12,'2. Operating Budget'!$B33*4.3+'2. Operating Budget'!$C33+'2. Operating Budget'!$E33*U$7) -> 0 | V39: =IF('2. Operating Budget'!$D33>0,$C39/12,'2. Operating Budget'!$B33*4.3+'2. Operating Budget'!$C33+'2. Operating Budget'!$E33*V$7) -> 0 | W39: =IF('2. Operating Budget'!$D33>0,$C39/12,'2. Operating Budget'!$B33*4.3+'2. Operating Budget'!$C33+'2. Operating Budget'!$E33*W$7) -> 0 | X39: =IF('2. Operating Budget'!$D33>0,$C39/12,'2. Operating Budget'!$B33*4.3+'2. Operating Budget'!$C33+'2. Operating Budget'!$E33*X$7) -> 0 | Y39: =IF('2. Operating Budget'!$D33>0,$C39/12,'2. Operating Budget'!$B33*4.3+'2. Operating Budget'!$C33+'2. Operating Budget'!$E33*Y$7) -> 0 | Z39: =IF('2. Operating Budget'!$D33>0,$C39/12,'2. Operating Budget'!$B33*4.3+'2. Operating Budget'!$C33+'2. Operating Budget'!$E33*Z$7) -> 0 | AA39: =IF('2. Operating Budget'!$D33>0,$C39/12,'2. Operating Budget'!$B33*4.3+'2. Operating Budget'!$C33+'2. Operating Budget'!$E33*AA$7) -> 0 | AB39: =IF('2. Operating Budget'!$D33>0,$C39/12,'2. Operating Budget'!$B33*4.3+'2. Operating Budget'!$C33+'2. Operating Budget'!$E33*AB$7) -> 0 | AC39: 0 | AD39: =IF('2. Operating Budget'!$E33>0,'2. Operating Budget'!$E33*'8. P&L and Cashflow'!AD$7,'2. Operating Budget'!$K33) -> 0 | AE39: =IF('2. Operating Budget'!$E33>0,'2. Operating Budget'!$E33*'8. P&L and Cashflow'!AE$7,'2. Operating Budget'!$K33) -> 0 | AF39: =IF('2. Operating Budget'!$E33>0,'2. Operating Budget'!$E33*'8. P&L and Cashflow'!AF$7,'2. Operating Budget'!$K33) -> 0
B40: =IF('2. Operating Budget'!A34="","",'2. Operating Budget'!A34) ->  | C40: ='2. Operating Budget'!K34 -> 0 | D40: =IF('2. Operating Budget'!$D34>0,$C40/12,'2. Operating Budget'!$B34*4.3+'2. Operating Budget'!$C34+'2. Operating Budget'!$E34*D$7) -> 0 | E40: =IF('2. Operating Budget'!$D34>0,$C40/12,'2. Operating Budget'!$B34*4.3+'2. Operating Budget'!$C34+'2. Operating Budget'!$E34*E$7) -> 0 | F40: =IF('2. Operating Budget'!$D34>0,$C40/12,'2. Operating Budget'!$B34*4.3+'2. Operating Budget'!$C34+'2. Operating Budget'!$E34*F$7) -> 0 | G40: =IF('2. Operating Budget'!$D34>0,$C40/12,'2. Operating Budget'!$B34*4.3+'2. Operating Budget'!$C34+'2. Operating Budget'!$E34*G$7) -> 0 | H40: =IF('2. Operating Budget'!$D34>0,$C40/12,'2. Operating Budget'!$B34*4.3+'2. Operating Budget'!$C34+'2. Operating Budget'!$E34*H$7) -> 0 | I40: =IF('2. Operating Budget'!$D34>0,$C40/12,'2. Operating Budget'!$B34*4.3+'2. Operating Budget'!$C34+'2. Operating Budget'!$E34*I$7) -> 0 | J40: =IF('2. Operating Budget'!$D34>0,$C40/12,'2. Operating Budget'!$B34*4.3+'2. Operating Budget'!$C34+'2. Operating Budget'!$E34*J$7) -> 0 | K40: =IF('2. Operating Budget'!$D34>0,$C40/12,'2. Operating Budget'!$B34*4.3+'2. Operating Budget'!$C34+'2. Operating Budget'!$E34*K$7) -> 0 | L40: =IF('2. Operating Budget'!$D34>0,$C40/12,'2. Operating Budget'!$B34*4.3+'2. Operating Budget'!$C34+'2. Operating Budget'!$E34*L$7) -> 0 | M40: =IF('2. Operating Budget'!$D34>0,$C40/12,'2. Operating Budget'!$B34*4.3+'2. Operating Budget'!$C34+'2. Operating Budget'!$E34*M$7) -> 0 | N40: =IF('2. Operating Budget'!$D34>0,$C40/12,'2. Operating Budget'!$B34*4.3+'2. Operating Budget'!$C34+'2. Operating Budget'!$E34*N$7) -> 0 | O40: =IF('2. Operating Budget'!$D34>0,$C40/12,'2. Operating Budget'!$B34*4.3+'2. Operating Budget'!$C34+'2. Operating Budget'!$E34*O$7) -> 0 | P40: 0 | Q40: =IF('2. Operating Budget'!$D34>0,$C40/12,'2. Operating Budget'!$B34*4.3+'2. Operating Budget'!$C34+'2. Operating Budget'!$E34*Q$7) -> 0 | R40: =IF('2. Operating Budget'!$D34>0,$C40/12,'2. Operating Budget'!$B34*4.3+'2. Operating Budget'!$C34+'2. Operating Budget'!$E34*R$7) -> 0 | S40: =IF('2. Operating Budget'!$D34>0,$C40/12,'2. Operating Budget'!$B34*4.3+'2. Operating Budget'!$C34+'2. Operating Budget'!$E34*S$7) -> 0 | T40: =IF('2. Operating Budget'!$D34>0,$C40/12,'2. Operating Budget'!$B34*4.3+'2. Operating Budget'!$C34+'2. Operating Budget'!$E34*T$7) -> 0 | U40: =IF('2. Operating Budget'!$D34>0,$C40/12,'2. Operating Budget'!$B34*4.3+'2. Operating Budget'!$C34+'2. Operating Budget'!$E34*U$7) -> 0 | V40: =IF('2. Operating Budget'!$D34>0,$C40/12,'2. Operating Budget'!$B34*4.3+'2. Operating Budget'!$C34+'2. Operating Budget'!$E34*V$7) -> 0 | W40: =IF('2. Operating Budget'!$D34>0,$C40/12,'2. Operating Budget'!$B34*4.3+'2. Operating Budget'!$C34+'2. Operating Budget'!$E34*W$7) -> 0 | X40: =IF('2. Operating Budget'!$D34>0,$C40/12,'2. Operating Budget'!$B34*4.3+'2. Operating Budget'!$C34+'2. Operating Budget'!$E34*X$7) -> 0 | Y40: =IF('2. Operating Budget'!$D34>0,$C40/12,'2. Operating Budget'!$B34*4.3+'2. Operating Budget'!$C34+'2. Operating Budget'!$E34*Y$7) -> 0 | Z40: =IF('2. Operating Budget'!$D34>0,$C40/12,'2. Operating Budget'!$B34*4.3+'2. Operating Budget'!$C34+'2. Operating Budget'!$E34*Z$7) -> 0 | AA40: =IF('2. Operating Budget'!$D34>0,$C40/12,'2. Operating Budget'!$B34*4.3+'2. Operating Budget'!$C34+'2. Operating Budget'!$E34*AA$7) -> 0 | AB40: =IF('2. Operating Budget'!$D34>0,$C40/12,'2. Operating Budget'!$B34*4.3+'2. Operating Budget'!$C34+'2. Operating Budget'!$E34*AB$7) -> 0 | AC40: 0 | AD40: =IF('2. Operating Budget'!$E34>0,'2. Operating Budget'!$E34*'8. P&L and Cashflow'!AD$7,'2. Operating Budget'!$K34) -> 0 | AE40: =IF('2. Operating Budget'!$E34>0,'2. Operating Budget'!$E34*'8. P&L and Cashflow'!AE$7,'2. Operating Budget'!$K34) -> 0 | AF40: =IF('2. Operating Budget'!$E34>0,'2. Operating Budget'!$E34*'8. P&L and Cashflow'!AF$7,'2. Operating Budget'!$K34) -> 0
B41: =IF('2. Operating Budget'!A35="","",'2. Operating Budget'!A35) ->  | C41: ='2. Operating Budget'!K35 -> 0 | D41: =IF('2. Operating Budget'!$D35>0,$C41/12,'2. Operating Budget'!$B35*4.3+'2. Operating Budget'!$C35+'2. Operating Budget'!$E35*D$7) -> 0 | E41: =IF('2. Operating Budget'!$D35>0,$C41/12,'2. Operating Budget'!$B35*4.3+'2. Operating Budget'!$C35+'2. Operating Budget'!$E35*E$7) -> 0 | F41: =IF('2. Operating Budget'!$D35>0,$C41/12,'2. Operating Budget'!$B35*4.3+'2. Operating Budget'!$C35+'2. Operating Budget'!$E35*F$7) -> 0 | G41: =IF('2. Operating Budget'!$D35>0,$C41/12,'2. Operating Budget'!$B35*4.3+'2. Operating Budget'!$C35+'2. Operating Budget'!$E35*G$7) -> 0 | H41: =IF('2. Operating Budget'!$D35>0,$C41/12,'2. Operating Budget'!$B35*4.3+'2. Operating Budget'!$C35+'2. Operating Budget'!$E35*H$7) -> 0 | I41: =IF('2. Operating Budget'!$D35>0,$C41/12,'2. Operating Budget'!$B35*4.3+'2. Operating Budget'!$C35+'2. Operating Budget'!$E35*I$7) -> 0 | J41: =IF('2. Operating Budget'!$D35>0,$C41/12,'2. Operating Budget'!$B35*4.3+'2. Operating Budget'!$C35+'2. Operating Budget'!$E35*J$7) -> 0 | K41: =IF('2. Operating Budget'!$D35>0,$C41/12,'2. Operating Budget'!$B35*4.3+'2. Operating Budget'!$C35+'2. Operating Budget'!$E35*K$7) -> 0 | L41: =IF('2. Operating Budget'!$D35>0,$C41/12,'2. Operating Budget'!$B35*4.3+'2. Operating Budget'!$C35+'2. Operating Budget'!$E35*L$7) -> 0 | M41: =IF('2. Operating Budget'!$D35>0,$C41/12,'2. Operating Budget'!$B35*4.3+'2. Operating Budget'!$C35+'2. Operating Budget'!$E35*M$7) -> 0 | N41: =IF('2. Operating Budget'!$D35>0,$C41/12,'2. Operating Budget'!$B35*4.3+'2. Operating Budget'!$C35+'2. Operating Budget'!$E35*N$7) -> 0 | O41: =IF('2. Operating Budget'!$D35>0,$C41/12,'2. Operating Budget'!$B35*4.3+'2. Operating Budget'!$C35+'2. Operating Budget'!$E35*O$7) -> 0 | P41: 0 | Q41: =IF('2. Operating Budget'!$D35>0,$C41/12,'2. Operating Budget'!$B35*4.3+'2. Operating Budget'!$C35+'2. Operating Budget'!$E35*Q$7) -> 0 | R41: =IF('2. Operating Budget'!$D35>0,$C41/12,'2. Operating Budget'!$B35*4.3+'2. Operating Budget'!$C35+'2. Operating Budget'!$E35*R$7) -> 0 | S41: =IF('2. Operating Budget'!$D35>0,$C41/12,'2. Operating Budget'!$B35*4.3+'2. Operating Budget'!$C35+'2. Operating Budget'!$E35*S$7) -> 0 | T41: =IF('2. Operating Budget'!$D35>0,$C41/12,'2. Operating Budget'!$B35*4.3+'2. Operating Budget'!$C35+'2. Operating Budget'!$E35*T$7) -> 0 | U41: =IF('2. Operating Budget'!$D35>0,$C41/12,'2. Operating Budget'!$B35*4.3+'2. Operating Budget'!$C35+'2. Operating Budget'!$E35*U$7) -> 0 | V41: =IF('2. Operating Budget'!$D35>0,$C41/12,'2. Operating Budget'!$B35*4.3+'2. Operating Budget'!$C35+'2. Operating Budget'!$E35*V$7) -> 0 | W41: =IF('2. Operating Budget'!$D35>0,$C41/12,'2. Operating Budget'!$B35*4.3+'2. Operating Budget'!$C35+'2. Operating Budget'!$E35*W$7) -> 0 | X41: =IF('2. Operating Budget'!$D35>0,$C41/12,'2. Operating Budget'!$B35*4.3+'2. Operating Budget'!$C35+'2. Operating Budget'!$E35*X$7) -> 0 | Y41: =IF('2. Operating Budget'!$D35>0,$C41/12,'2. Operating Budget'!$B35*4.3+'2. Operating Budget'!$C35+'2. Operating Budget'!$E35*Y$7) -> 0 | Z41: =IF('2. Operating Budget'!$D35>0,$C41/12,'2. Operating Budget'!$B35*4.3+'2. Operating Budget'!$C35+'2. Operating Budget'!$E35*Z$7) -> 0 | AA41: =IF('2. Operating Budget'!$D35>0,$C41/12,'2. Operating Budget'!$B35*4.3+'2. Operating Budget'!$C35+'2. Operating Budget'!$E35*AA$7) -> 0 | AB41: =IF('2. Operating Budget'!$D35>0,$C41/12,'2. Operating Budget'!$B35*4.3+'2. Operating Budget'!$C35+'2. Operating Budget'!$E35*AB$7) -> 0 | AC41: 0 | AD41: =IF('2. Operating Budget'!$E35>0,'2. Operating Budget'!$E35*'8. P&L and Cashflow'!AD$7,'2. Operating Budget'!$K35) -> 0 | AE41: =IF('2. Operating Budget'!$E35>0,'2. Operating Budget'!$E35*'8. P&L and Cashflow'!AE$7,'2. Operating Budget'!$K35) -> 0 | AF41: =IF('2. Operating Budget'!$E35>0,'2. Operating Budget'!$E35*'8. P&L and Cashflow'!AF$7,'2. Operating Budget'!$K35) -> 0
B42: =IF('2. Operating Budget'!A36="","",'2. Operating Budget'!A36) ->  | C42: ='2. Operating Budget'!K36 -> 0 | D42: =IF('2. Operating Budget'!$D36>0,$C42/12,'2. Operating Budget'!$B36*4.3+'2. Operating Budget'!$C36+'2. Operating Budget'!$E36*D$7) -> 0 | E42: =IF('2. Operating Budget'!$D36>0,$C42/12,'2. Operating Budget'!$B36*4.3+'2. Operating Budget'!$C36+'2. Operating Budget'!$E36*E$7) -> 0 | F42: =IF('2. Operating Budget'!$D36>0,$C42/12,'2. Operating Budget'!$B36*4.3+'2. Operating Budget'!$C36+'2. Operating Budget'!$E36*F$7) -> 0 | G42: =IF('2. Operating Budget'!$D36>0,$C42/12,'2. Operating Budget'!$B36*4.3+'2. Operating Budget'!$C36+'2. Operating Budget'!$E36*G$7) -> 0 | H42: =IF('2. Operating Budget'!$D36>0,$C42/12,'2. Operating Budget'!$B36*4.3+'2. Operating Budget'!$C36+'2. Operating Budget'!$E36*H$7) -> 0 | I42: =IF('2. Operating Budget'!$D36>0,$C42/12,'2. Operating Budget'!$B36*4.3+'2. Operating Budget'!$C36+'2. Operating Budget'!$E36*I$7) -> 0 | J42: =IF('2. Operating Budget'!$D36>0,$C42/12,'2. Operating Budget'!$B36*4.3+'2. Operating Budget'!$C36+'2. Operating Budget'!$E36*J$7) -> 0 | K42: =IF('2. Operating Budget'!$D36>0,$C42/12,'2. Operating Budget'!$B36*4.3+'2. Operating Budget'!$C36+'2. Operating Budget'!$E36*K$7) -> 0 | L42: =IF('2. Operating Budget'!$D36>0,$C42/12,'2. Operating Budget'!$B36*4.3+'2. Operating Budget'!$C36+'2. Operating Budget'!$E36*L$7) -> 0 | M42: =IF('2. Operating Budget'!$D36>0,$C42/12,'2. Operating Budget'!$B36*4.3+'2. Operating Budget'!$C36+'2. Operating Budget'!$E36*M$7) -> 0 | N42: =IF('2. Operating Budget'!$D36>0,$C42/12,'2. Operating Budget'!$B36*4.3+'2. Operating Budget'!$C36+'2. Operating Budget'!$E36*N$7) -> 0 | O42: =IF('2. Operating Budget'!$D36>0,$C42/12,'2. Operating Budget'!$B36*4.3+'2. Operating Budget'!$C36+'2. Operating Budget'!$E36*O$7) -> 0 | P42: 0 | Q42: =IF('2. Operating Budget'!$D36>0,$C42/12,'2. Operating Budget'!$B36*4.3+'2. Operating Budget'!$C36+'2. Operating Budget'!$E36*Q$7) -> 0 | R42: =IF('2. Operating Budget'!$D36>0,$C42/12,'2. Operating Budget'!$B36*4.3+'2. Operating Budget'!$C36+'2. Operating Budget'!$E36*R$7) -> 0 | S42: =IF('2. Operating Budget'!$D36>0,$C42/12,'2. Operating Budget'!$B36*4.3+'2. Operating Budget'!$C36+'2. Operating Budget'!$E36*S$7) -> 0 | T42: =IF('2. Operating Budget'!$D36>0,$C42/12,'2. Operating Budget'!$B36*4.3+'2. Operating Budget'!$C36+'2. Operating Budget'!$E36*T$7) -> 0 | U42: =IF('2. Operating Budget'!$D36>0,$C42/12,'2. Operating Budget'!$B36*4.3+'2. Operating Budget'!$C36+'2. Operating Budget'!$E36*U$7) -> 0 | V42: =IF('2. Operating Budget'!$D36>0,$C42/12,'2. Operating Budget'!$B36*4.3+'2. Operating Budget'!$C36+'2. Operating Budget'!$E36*V$7) -> 0 | W42: =IF('2. Operating Budget'!$D36>0,$C42/12,'2. Operating Budget'!$B36*4.3+'2. Operating Budget'!$C36+'2. Operating Budget'!$E36*W$7) -> 0 | X42: =IF('2. Operating Budget'!$D36>0,$C42/12,'2. Operating Budget'!$B36*4.3+'2. Operating Budget'!$C36+'2. Operating Budget'!$E36*X$7) -> 0 | Y42: =IF('2. Operating Budget'!$D36>0,$C42/12,'2. Operating Budget'!$B36*4.3+'2. Operating Budget'!$C36+'2. Operating Budget'!$E36*Y$7) -> 0 | Z42: =IF('2. Operating Budget'!$D36>0,$C42/12,'2. Operating Budget'!$B36*4.3+'2. Operating Budget'!$C36+'2. Operating Budget'!$E36*Z$7) -> 0 | AA42: =IF('2. Operating Budget'!$D36>0,$C42/12,'2. Operating Budget'!$B36*4.3+'2. Operating Budget'!$C36+'2. Operating Budget'!$E36*AA$7) -> 0 | AB42: =IF('2. Operating Budget'!$D36>0,$C42/12,'2. Operating Budget'!$B36*4.3+'2. Operating Budget'!$C36+'2. Operating Budget'!$E36*AB$7) -> 0 | AC42: 0 | AD42: =IF('2. Operating Budget'!$E36>0,'2. Operating Budget'!$E36*'8. P&L and Cashflow'!AD$7,'2. Operating Budget'!$K36) -> 0 | AE42: =IF('2. Operating Budget'!$E36>0,'2. Operating Budget'!$E36*'8. P&L and Cashflow'!AE$7,'2. Operating Budget'!$K36) -> 0 | AF42: =IF('2. Operating Budget'!$E36>0,'2. Operating Budget'!$E36*'8. P&L and Cashflow'!AF$7,'2. Operating Budget'!$K36) -> 0
B43: =IF('2. Operating Budget'!A37="","",'2. Operating Budget'!A37) ->  | C43: ='2. Operating Budget'!K37 -> 0 | D43: =IF('2. Operating Budget'!$D37>0,$C43/12,'2. Operating Budget'!$B37*4.3+'2. Operating Budget'!$C37+'2. Operating Budget'!$E37*D$7) -> 0 | E43: =IF('2. Operating Budget'!$D37>0,$C43/12,'2. Operating Budget'!$B37*4.3+'2. Operating Budget'!$C37+'2. Operating Budget'!$E37*E$7) -> 0 | F43: =IF('2. Operating Budget'!$D37>0,$C43/12,'2. Operating Budget'!$B37*4.3+'2. Operating Budget'!$C37+'2. Operating Budget'!$E37*F$7) -> 0 | G43: =IF('2. Operating Budget'!$D37>0,$C43/12,'2. Operating Budget'!$B37*4.3+'2. Operating Budget'!$C37+'2. Operating Budget'!$E37*G$7) -> 0 | H43: =IF('2. Operating Budget'!$D37>0,$C43/12,'2. Operating Budget'!$B37*4.3+'2. Operating Budget'!$C37+'2. Operating Budget'!$E37*H$7) -> 0 | I43: =IF('2. Operating Budget'!$D37>0,$C43/12,'2. Operating Budget'!$B37*4.3+'2. Operating Budget'!$C37+'2. Operating Budget'!$E37*I$7) -> 0 | J43: =IF('2. Operating Budget'!$D37>0,$C43/12,'2. Operating Budget'!$B37*4.3+'2. Operating Budget'!$C37+'2. Operating Budget'!$E37*J$7) -> 0 | K43: =IF('2. Operating Budget'!$D37>0,$C43/12,'2. Operating Budget'!$B37*4.3+'2. Operating Budget'!$C37+'2. Operating Budget'!$E37*K$7) -> 0 | L43: =IF('2. Operating Budget'!$D37>0,$C43/12,'2. Operating Budget'!$B37*4.3+'2. Operating Budget'!$C37+'2. Operating Budget'!$E37*L$7) -> 0 | M43: =IF('2. Operating Budget'!$D37>0,$C43/12,'2. Operating Budget'!$B37*4.3+'2. Operating Budget'!$C37+'2. Operating Budget'!$E37*M$7) -> 0 | N43: =IF('2. Operating Budget'!$D37>0,$C43/12,'2. Operating Budget'!$B37*4.3+'2. Operating Budget'!$C37+'2. Operating Budget'!$E37*N$7) -> 0 | O43: =IF('2. Operating Budget'!$D37>0,$C43/12,'2. Operating Budget'!$B37*4.3+'2. Operating Budget'!$C37+'2. Operating Budget'!$E37*O$7) -> 0 | P43: 0 | Q43: =IF('2. Operating Budget'!$D37>0,$C43/12,'2. Operating Budget'!$B37*4.3+'2. Operating Budget'!$C37+'2. Operating Budget'!$E37*Q$7) -> 0 | R43: =IF('2. Operating Budget'!$D37>0,$C43/12,'2. Operating Budget'!$B37*4.3+'2. Operating Budget'!$C37+'2. Operating Budget'!$E37*R$7) -> 0 | S43: =IF('2. Operating Budget'!$D37>0,$C43/12,'2. Operating Budget'!$B37*4.3+'2. Operating Budget'!$C37+'2. Operating Budget'!$E37*S$7) -> 0 | T43: =IF('2. Operating Budget'!$D37>0,$C43/12,'2. Operating Budget'!$B37*4.3+'2. Operating Budget'!$C37+'2. Operating Budget'!$E37*T$7) -> 0 | U43: =IF('2. Operating Budget'!$D37>0,$C43/12,'2. Operating Budget'!$B37*4.3+'2. Operating Budget'!$C37+'2. Operating Budget'!$E37*U$7) -> 0 | V43: =IF('2. Operating Budget'!$D37>0,$C43/12,'2. Operating Budget'!$B37*4.3+'2. Operating Budget'!$C37+'2. Operating Budget'!$E37*V$7) -> 0 | W43: =IF('2. Operating Budget'!$D37>0,$C43/12,'2. Operating Budget'!$B37*4.3+'2. Operating Budget'!$C37+'2. Operating Budget'!$E37*W$7) -> 0 | X43: =IF('2. Operating Budget'!$D37>0,$C43/12,'2. Operating Budget'!$B37*4.3+'2. Operating Budget'!$C37+'2. Operating Budget'!$E37*X$7) -> 0 | Y43: =IF('2. Operating Budget'!$D37>0,$C43/12,'2. Operating Budget'!$B37*4.3+'2. Operating Budget'!$C37+'2. Operating Budget'!$E37*Y$7) -> 0 | Z43: =IF('2. Operating Budget'!$D37>0,$C43/12,'2. Operating Budget'!$B37*4.3+'2. Operating Budget'!$C37+'2. Operating Budget'!$E37*Z$7) -> 0 | AA43: =IF('2. Operating Budget'!$D37>0,$C43/12,'2. Operating Budget'!$B37*4.3+'2. Operating Budget'!$C37+'2. Operating Budget'!$E37*AA$7) -> 0 | AB43: =IF('2. Operating Budget'!$D37>0,$C43/12,'2. Operating Budget'!$B37*4.3+'2. Operating Budget'!$C37+'2. Operating Budget'!$E37*AB$7) -> 0 | AC43: 0 | AD43: =IF('2. Operating Budget'!$E37>0,'2. Operating Budget'!$E37*'8. P&L and Cashflow'!AD$7,'2. Operating Budget'!$K37) -> 0 | AE43: =IF('2. Operating Budget'!$E37>0,'2. Operating Budget'!$E37*'8. P&L and Cashflow'!AE$7,'2. Operating Budget'!$K37) -> 0 | AF43: =IF('2. Operating Budget'!$E37>0,'2. Operating Budget'!$E37*'8. P&L and Cashflow'!AF$7,'2. Operating Budget'!$K37) -> 0
B44: =IF('2. Operating Budget'!A38="","",'2. Operating Budget'!A38) ->  | C44: ='2. Operating Budget'!K38 -> 0 | D44: =IF('2. Operating Budget'!$D38>0,$C44/12,'2. Operating Budget'!$B38*4.3+'2. Operating Budget'!$C38+'2. Operating Budget'!$E38*D$7) -> 0 | E44: =IF('2. Operating Budget'!$D38>0,$C44/12,'2. Operating Budget'!$B38*4.3+'2. Operating Budget'!$C38+'2. Operating Budget'!$E38*E$7) -> 0 | F44: =IF('2. Operating Budget'!$D38>0,$C44/12,'2. Operating Budget'!$B38*4.3+'2. Operating Budget'!$C38+'2. Operating Budget'!$E38*F$7) -> 0 | G44: =IF('2. Operating Budget'!$D38>0,$C44/12,'2. Operating Budget'!$B38*4.3+'2. Operating Budget'!$C38+'2. Operating Budget'!$E38*G$7) -> 0 | H44: =IF('2. Operating Budget'!$D38>0,$C44/12,'2. Operating Budget'!$B38*4.3+'2. Operating Budget'!$C38+'2. Operating Budget'!$E38*H$7) -> 0 | I44: =IF('2. Operating Budget'!$D38>0,$C44/12,'2. Operating Budget'!$B38*4.3+'2. Operating Budget'!$C38+'2. Operating Budget'!$E38*I$7) -> 0 | J44: =IF('2. Operating Budget'!$D38>0,$C44/12,'2. Operating Budget'!$B38*4.3+'2. Operating Budget'!$C38+'2. Operating Budget'!$E38*J$7) -> 0 | K44: =IF('2. Operating Budget'!$D38>0,$C44/12,'2. Operating Budget'!$B38*4.3+'2. Operating Budget'!$C38+'2. Operating Budget'!$E38*K$7) -> 0 | L44: =IF('2. Operating Budget'!$D38>0,$C44/12,'2. Operating Budget'!$B38*4.3+'2. Operating Budget'!$C38+'2. Operating Budget'!$E38*L$7) -> 0 | M44: =IF('2. Operating Budget'!$D38>0,$C44/12,'2. Operating Budget'!$B38*4.3+'2. Operating Budget'!$C38+'2. Operating Budget'!$E38*M$7) -> 0 | N44: =IF('2. Operating Budget'!$D38>0,$C44/12,'2. Operating Budget'!$B38*4.3+'2. Operating Budget'!$C38+'2. Operating Budget'!$E38*N$7) -> 0 | O44: =IF('2. Operating Budget'!$D38>0,$C44/12,'2. Operating Budget'!$B38*4.3+'2. Operating Budget'!$C38+'2. Operating Budget'!$E38*O$7) -> 0 | P44: 0 | Q44: =IF('2. Operating Budget'!$D38>0,$C44/12,'2. Operating Budget'!$B38*4.3+'2. Operating Budget'!$C38+'2. Operating Budget'!$E38*Q$7) -> 0 | R44: =IF('2. Operating Budget'!$D38>0,$C44/12,'2. Operating Budget'!$B38*4.3+'2. Operating Budget'!$C38+'2. Operating Budget'!$E38*R$7) -> 0 | S44: =IF('2. Operating Budget'!$D38>0,$C44/12,'2. Operating Budget'!$B38*4.3+'2. Operating Budget'!$C38+'2. Operating Budget'!$E38*S$7) -> 0 | T44: =IF('2. Operating Budget'!$D38>0,$C44/12,'2. Operating Budget'!$B38*4.3+'2. Operating Budget'!$C38+'2. Operating Budget'!$E38*T$7) -> 0 | U44: =IF('2. Operating Budget'!$D38>0,$C44/12,'2. Operating Budget'!$B38*4.3+'2. Operating Budget'!$C38+'2. Operating Budget'!$E38*U$7) -> 0 | V44: =IF('2. Operating Budget'!$D38>0,$C44/12,'2. Operating Budget'!$B38*4.3+'2. Operating Budget'!$C38+'2. Operating Budget'!$E38*V$7) -> 0 | W44: =IF('2. Operating Budget'!$D38>0,$C44/12,'2. Operating Budget'!$B38*4.3+'2. Operating Budget'!$C38+'2. Operating Budget'!$E38*W$7) -> 0 | X44: =IF('2. Operating Budget'!$D38>0,$C44/12,'2. Operating Budget'!$B38*4.3+'2. Operating Budget'!$C38+'2. Operating Budget'!$E38*X$7) -> 0 | Y44: =IF('2. Operating Budget'!$D38>0,$C44/12,'2. Operating Budget'!$B38*4.3+'2. Operating Budget'!$C38+'2. Operating Budget'!$E38*Y$7) -> 0 | Z44: =IF('2. Operating Budget'!$D38>0,$C44/12,'2. Operating Budget'!$B38*4.3+'2. Operating Budget'!$C38+'2. Operating Budget'!$E38*Z$7) -> 0 | AA44: =IF('2. Operating Budget'!$D38>0,$C44/12,'2. Operating Budget'!$B38*4.3+'2. Operating Budget'!$C38+'2. Operating Budget'!$E38*AA$7) -> 0 | AB44: =IF('2. Operating Budget'!$D38>0,$C44/12,'2. Operating Budget'!$B38*4.3+'2. Operating Budget'!$C38+'2. Operating Budget'!$E38*AB$7) -> 0 | AC44: 0 | AD44: =IF('2. Operating Budget'!$E38>0,'2. Operating Budget'!$E38*'8. P&L and Cashflow'!AD$7,'2. Operating Budget'!$K38) -> 0 | AE44: =IF('2. Operating Budget'!$E38>0,'2. Operating Budget'!$E38*'8. P&L and Cashflow'!AE$7,'2. Operating Budget'!$K38) -> 0 | AF44: =IF('2. Operating Budget'!$E38>0,'2. Operating Budget'!$E38*'8. P&L and Cashflow'!AF$7,'2. Operating Budget'!$K38) -> 0
B45: =IF('2. Operating Budget'!A39="","",'2. Operating Budget'!A39) ->  | C45: ='2. Operating Budget'!K39 -> 0 | D45: =IF('2. Operating Budget'!$D39>0,$C45/12,'2. Operating Budget'!$B39*4.3+'2. Operating Budget'!$C39+'2. Operating Budget'!$E39*D$7) -> 0 | E45: =IF('2. Operating Budget'!$D39>0,$C45/12,'2. Operating Budget'!$B39*4.3+'2. Operating Budget'!$C39+'2. Operating Budget'!$E39*E$7) -> 0 | F45: =IF('2. Operating Budget'!$D39>0,$C45/12,'2. Operating Budget'!$B39*4.3+'2. Operating Budget'!$C39+'2. Operating Budget'!$E39*F$7) -> 0 | G45: =IF('2. Operating Budget'!$D39>0,$C45/12,'2. Operating Budget'!$B39*4.3+'2. Operating Budget'!$C39+'2. Operating Budget'!$E39*G$7) -> 0 | H45: =IF('2. Operating Budget'!$D39>0,$C45/12,'2. Operating Budget'!$B39*4.3+'2. Operating Budget'!$C39+'2. Operating Budget'!$E39*H$7) -> 0 | I45: =IF('2. Operating Budget'!$D39>0,$C45/12,'2. Operating Budget'!$B39*4.3+'2. Operating Budget'!$C39+'2. Operating Budget'!$E39*I$7) -> 0 | J45: =IF('2. Operating Budget'!$D39>0,$C45/12,'2. Operating Budget'!$B39*4.3+'2. Operating Budget'!$C39+'2. Operating Budget'!$E39*J$7) -> 0 | K45: =IF('2. Operating Budget'!$D39>0,$C45/12,'2. Operating Budget'!$B39*4.3+'2. Operating Budget'!$C39+'2. Operating Budget'!$E39*K$7) -> 0 | L45: =IF('2. Operating Budget'!$D39>0,$C45/12,'2. Operating Budget'!$B39*4.3+'2. Operating Budget'!$C39+'2. Operating Budget'!$E39*L$7) -> 0 | M45: =IF('2. Operating Budget'!$D39>0,$C45/12,'2. Operating Budget'!$B39*4.3+'2. Operating Budget'!$C39+'2. Operating Budget'!$E39*M$7) -> 0 | N45: =IF('2. Operating Budget'!$D39>0,$C45/12,'2. Operating Budget'!$B39*4.3+'2. Operating Budget'!$C39+'2. Operating Budget'!$E39*N$7) -> 0 | O45: =IF('2. Operating Budget'!$D39>0,$C45/12,'2. Operating Budget'!$B39*4.3+'2. Operating Budget'!$C39+'2. Operating Budget'!$E39*O$7) -> 0 | P45: 0 | Q45: =IF('2. Operating Budget'!$D39>0,$C45/12,'2. Operating Budget'!$B39*4.3+'2. Operating Budget'!$C39+'2. Operating Budget'!$E39*Q$7) -> 0 | R45: =IF('2. Operating Budget'!$D39>0,$C45/12,'2. Operating Budget'!$B39*4.3+'2. Operating Budget'!$C39+'2. Operating Budget'!$E39*R$7) -> 0 | S45: =IF('2. Operating Budget'!$D39>0,$C45/12,'2. Operating Budget'!$B39*4.3+'2. Operating Budget'!$C39+'2. Operating Budget'!$E39*S$7) -> 0 | T45: =IF('2. Operating Budget'!$D39>0,$C45/12,'2. Operating Budget'!$B39*4.3+'2. Operating Budget'!$C39+'2. Operating Budget'!$E39*T$7) -> 0 | U45: =IF('2. Operating Budget'!$D39>0,$C45/12,'2. Operating Budget'!$B39*4.3+'2. Operating Budget'!$C39+'2. Operating Budget'!$E39*U$7) -> 0 | V45: =IF('2. Operating Budget'!$D39>0,$C45/12,'2. Operating Budget'!$B39*4.3+'2. Operating Budget'!$C39+'2. Operating Budget'!$E39*V$7) -> 0 | W45: =IF('2. Operating Budget'!$D39>0,$C45/12,'2. Operating Budget'!$B39*4.3+'2. Operating Budget'!$C39+'2. Operating Budget'!$E39*W$7) -> 0 | X45: =IF('2. Operating Budget'!$D39>0,$C45/12,'2. Operating Budget'!$B39*4.3+'2. Operating Budget'!$C39+'2. Operating Budget'!$E39*X$7) -> 0 | Y45: =IF('2. Operating Budget'!$D39>0,$C45/12,'2. Operating Budget'!$B39*4.3+'2. Operating Budget'!$C39+'2. Operating Budget'!$E39*Y$7) -> 0 | Z45: =IF('2. Operating Budget'!$D39>0,$C45/12,'2. Operating Budget'!$B39*4.3+'2. Operating Budget'!$C39+'2. Operating Budget'!$E39*Z$7) -> 0 | AA45: =IF('2. Operating Budget'!$D39>0,$C45/12,'2. Operating Budget'!$B39*4.3+'2. Operating Budget'!$C39+'2. Operating Budget'!$E39*AA$7) -> 0 | AB45: =IF('2. Operating Budget'!$D39>0,$C45/12,'2. Operating Budget'!$B39*4.3+'2. Operating Budget'!$C39+'2. Operating Budget'!$E39*AB$7) -> 0 | AC45: 0 | AD45: =IF('2. Operating Budget'!$E39>0,'2. Operating Budget'!$E39*'8. P&L and Cashflow'!AD$7,'2. Operating Budget'!$K39) -> 0 | AE45: =IF('2. Operating Budget'!$E39>0,'2. Operating Budget'!$E39*'8. P&L and Cashflow'!AE$7,'2. Operating Budget'!$K39) -> 0 | AF45: =IF('2. Operating Budget'!$E39>0,'2. Operating Budget'!$E39*'8. P&L and Cashflow'!AF$7,'2. Operating Budget'!$K39) -> 0
B46: =IF('2. Operating Budget'!A40="","",'2. Operating Budget'!A40) ->  | C46: ='2. Operating Budget'!K40 -> 0 | D46: =IF('2. Operating Budget'!$D40>0,$C46/12,'2. Operating Budget'!$B40*4.3+'2. Operating Budget'!$C40+'2. Operating Budget'!$E40*D$7) -> 0 | E46: =IF('2. Operating Budget'!$D40>0,$C46/12,'2. Operating Budget'!$B40*4.3+'2. Operating Budget'!$C40+'2. Operating Budget'!$E40*E$7) -> 0 | F46: =IF('2. Operating Budget'!$D40>0,$C46/12,'2. Operating Budget'!$B40*4.3+'2. Operating Budget'!$C40+'2. Operating Budget'!$E40*F$7) -> 0 | G46: =IF('2. Operating Budget'!$D40>0,$C46/12,'2. Operating Budget'!$B40*4.3+'2. Operating Budget'!$C40+'2. Operating Budget'!$E40*G$7) -> 0 | H46: =IF('2. Operating Budget'!$D40>0,$C46/12,'2. Operating Budget'!$B40*4.3+'2. Operating Budget'!$C40+'2. Operating Budget'!$E40*H$7) -> 0 | I46: =IF('2. Operating Budget'!$D40>0,$C46/12,'2. Operating Budget'!$B40*4.3+'2. Operating Budget'!$C40+'2. Operating Budget'!$E40*I$7) -> 0 | J46: =IF('2. Operating Budget'!$D40>0,$C46/12,'2. Operating Budget'!$B40*4.3+'2. Operating Budget'!$C40+'2. Operating Budget'!$E40*J$7) -> 0 | K46: =IF('2. Operating Budget'!$D40>0,$C46/12,'2. Operating Budget'!$B40*4.3+'2. Operating Budget'!$C40+'2. Operating Budget'!$E40*K$7) -> 0 | L46: =IF('2. Operating Budget'!$D40>0,$C46/12,'2. Operating Budget'!$B40*4.3+'2. Operating Budget'!$C40+'2. Operating Budget'!$E40*L$7) -> 0 | M46: =IF('2. Operating Budget'!$D40>0,$C46/12,'2. Operating Budget'!$B40*4.3+'2. Operating Budget'!$C40+'2. Operating Budget'!$E40*M$7) -> 0 | N46: =IF('2. Operating Budget'!$D40>0,$C46/12,'2. Operating Budget'!$B40*4.3+'2. Operating Budget'!$C40+'2. Operating Budget'!$E40*N$7) -> 0 | O46: =IF('2. Operating Budget'!$D40>0,$C46/12,'2. Operating Budget'!$B40*4.3+'2. Operating Budget'!$C40+'2. Operating Budget'!$E40*O$7) -> 0 | P46: 0 | Q46: =IF('2. Operating Budget'!$D40>0,$C46/12,'2. Operating Budget'!$B40*4.3+'2. Operating Budget'!$C40+'2. Operating Budget'!$E40*Q$7) -> 0 | R46: =IF('2. Operating Budget'!$D40>0,$C46/12,'2. Operating Budget'!$B40*4.3+'2. Operating Budget'!$C40+'2. Operating Budget'!$E40*R$7) -> 0 | S46: =IF('2. Operating Budget'!$D40>0,$C46/12,'2. Operating Budget'!$B40*4.3+'2. Operating Budget'!$C40+'2. Operating Budget'!$E40*S$7) -> 0 | T46: =IF('2. Operating Budget'!$D40>0,$C46/12,'2. Operating Budget'!$B40*4.3+'2. Operating Budget'!$C40+'2. Operating Budget'!$E40*T$7) -> 0 | U46: =IF('2. Operating Budget'!$D40>0,$C46/12,'2. Operating Budget'!$B40*4.3+'2. Operating Budget'!$C40+'2. Operating Budget'!$E40*U$7) -> 0 | V46: =IF('2. Operating Budget'!$D40>0,$C46/12,'2. Operating Budget'!$B40*4.3+'2. Operating Budget'!$C40+'2. Operating Budget'!$E40*V$7) -> 0 | W46: =IF('2. Operating Budget'!$D40>0,$C46/12,'2. Operating Budget'!$B40*4.3+'2. Operating Budget'!$C40+'2. Operating Budget'!$E40*W$7) -> 0 | X46: =IF('2. Operating Budget'!$D40>0,$C46/12,'2. Operating Budget'!$B40*4.3+'2. Operating Budget'!$C40+'2. Operating Budget'!$E40*X$7) -> 0 | Y46: =IF('2. Operating Budget'!$D40>0,$C46/12,'2. Operating Budget'!$B40*4.3+'2. Operating Budget'!$C40+'2. Operating Budget'!$E40*Y$7) -> 0 | Z46: =IF('2. Operating Budget'!$D40>0,$C46/12,'2. Operating Budget'!$B40*4.3+'2. Operating Budget'!$C40+'2. Operating Budget'!$E40*Z$7) -> 0 | AA46: =IF('2. Operating Budget'!$D40>0,$C46/12,'2. Operating Budget'!$B40*4.3+'2. Operating Budget'!$C40+'2. Operating Budget'!$E40*AA$7) -> 0 | AB46: =IF('2. Operating Budget'!$D40>0,$C46/12,'2. Operating Budget'!$B40*4.3+'2. Operating Budget'!$C40+'2. Operating Budget'!$E40*AB$7) -> 0 | AC46: 0 | AD46: =IF('2. Operating Budget'!$E40>0,'2. Operating Budget'!$E40*'8. P&L and Cashflow'!AD$7,'2. Operating Budget'!$K40) -> 0 | AE46: =IF('2. Operating Budget'!$E40>0,'2. Operating Budget'!$E40*'8. P&L and Cashflow'!AE$7,'2. Operating Budget'!$K40) -> 0 | AF46: =IF('2. Operating Budget'!$E40>0,'2. Operating Budget'!$E40*'8. P&L and Cashflow'!AF$7,'2. Operating Budget'!$K40) -> 0
B47: =IF('2. Operating Budget'!A41="","",'2. Operating Budget'!A41) ->  | C47: ='2. Operating Budget'!K41 -> 0 | D47: =IF('2. Operating Budget'!$D41>0,$C47/12,'2. Operating Budget'!$B41*4.3+'2. Operating Budget'!$C41+'2. Operating Budget'!$E41*D$7) -> 0 | E47: =IF('2. Operating Budget'!$D41>0,$C47/12,'2. Operating Budget'!$B41*4.3+'2. Operating Budget'!$C41+'2. Operating Budget'!$E41*E$7) -> 0 | F47: =IF('2. Operating Budget'!$D41>0,$C47/12,'2. Operating Budget'!$B41*4.3+'2. Operating Budget'!$C41+'2. Operating Budget'!$E41*F$7) -> 0 | G47: =IF('2. Operating Budget'!$D41>0,$C47/12,'2. Operating Budget'!$B41*4.3+'2. Operating Budget'!$C41+'2. Operating Budget'!$E41*G$7) -> 0 | H47: =IF('2. Operating Budget'!$D41>0,$C47/12,'2. Operating Budget'!$B41*4.3+'2. Operating Budget'!$C41+'2. Operating Budget'!$E41*H$7) -> 0 | I47: =IF('2. Operating Budget'!$D41>0,$C47/12,'2. Operating Budget'!$B41*4.3+'2. Operating Budget'!$C41+'2. Operating Budget'!$E41*I$7) -> 0 | J47: =IF('2. Operating Budget'!$D41>0,$C47/12,'2. Operating Budget'!$B41*4.3+'2. Operating Budget'!$C41+'2. Operating Budget'!$E41*J$7) -> 0 | K47: =IF('2. Operating Budget'!$D41>0,$C47/12,'2. Operating Budget'!$B41*4.3+'2. Operating Budget'!$C41+'2. Operating Budget'!$E41*K$7) -> 0 | L47: =IF('2. Operating Budget'!$D41>0,$C47/12,'2. Operating Budget'!$B41*4.3+'2. Operating Budget'!$C41+'2. Operating Budget'!$E41*L$7) -> 0 | M47: =IF('2. Operating Budget'!$D41>0,$C47/12,'2. Operating Budget'!$B41*4.3+'2. Operating Budget'!$C41+'2. Operating Budget'!$E41*M$7) -> 0 | N47: =IF('2. Operating Budget'!$D41>0,$C47/12,'2. Operating Budget'!$B41*4.3+'2. Operating Budget'!$C41+'2. Operating Budget'!$E41*N$7) -> 0 | O47: =IF('2. Operating Budget'!$D41>0,$C47/12,'2. Operating Budget'!$B41*4.3+'2. Operating Budget'!$C41+'2. Operating Budget'!$E41*O$7) -> 0 | P47: 0 | Q47: =IF('2. Operating Budget'!$D41>0,$C47/12,'2. Operating Budget'!$B41*4.3+'2. Operating Budget'!$C41+'2. Operating Budget'!$E41*Q$7) -> 0 | R47: =IF('2. Operating Budget'!$D41>0,$C47/12,'2. Operating Budget'!$B41*4.3+'2. Operating Budget'!$C41+'2. Operating Budget'!$E41*R$7) -> 0 | S47: =IF('2. Operating Budget'!$D41>0,$C47/12,'2. Operating Budget'!$B41*4.3+'2. Operating Budget'!$C41+'2. Operating Budget'!$E41*S$7) -> 0 | T47: =IF('2. Operating Budget'!$D41>0,$C47/12,'2. Operating Budget'!$B41*4.3+'2. Operating Budget'!$C41+'2. Operating Budget'!$E41*T$7) -> 0 | U47: =IF('2. Operating Budget'!$D41>0,$C47/12,'2. Operating Budget'!$B41*4.3+'2. Operating Budget'!$C41+'2. Operating Budget'!$E41*U$7) -> 0 | V47: =IF('2. Operating Budget'!$D41>0,$C47/12,'2. Operating Budget'!$B41*4.3+'2. Operating Budget'!$C41+'2. Operating Budget'!$E41*V$7) -> 0 | W47: =IF('2. Operating Budget'!$D41>0,$C47/12,'2. Operating Budget'!$B41*4.3+'2. Operating Budget'!$C41+'2. Operating Budget'!$E41*W$7) -> 0 | X47: =IF('2. Operating Budget'!$D41>0,$C47/12,'2. Operating Budget'!$B41*4.3+'2. Operating Budget'!$C41+'2. Operating Budget'!$E41*X$7) -> 0 | Y47: =IF('2. Operating Budget'!$D41>0,$C47/12,'2. Operating Budget'!$B41*4.3+'2. Operating Budget'!$C41+'2. Operating Budget'!$E41*Y$7) -> 0 | Z47: =IF('2. Operating Budget'!$D41>0,$C47/12,'2. Operating Budget'!$B41*4.3+'2. Operating Budget'!$C41+'2. Operating Budget'!$E41*Z$7) -> 0 | AA47: =IF('2. Operating Budget'!$D41>0,$C47/12,'2. Operating Budget'!$B41*4.3+'2. Operating Budget'!$C41+'2. Operating Budget'!$E41*AA$7) -> 0 | AB47: =IF('2. Operating Budget'!$D41>0,$C47/12,'2. Operating Budget'!$B41*4.3+'2. Operating Budget'!$C41+'2. Operating Budget'!$E41*AB$7) -> 0 | AC47: 0 | AD47: =IF('2. Operating Budget'!$E41>0,'2. Operating Budget'!$E41*'8. P&L and Cashflow'!AD$7,'2. Operating Budget'!$K41) -> 0 | AE47: =IF('2. Operating Budget'!$E41>0,'2. Operating Budget'!$E41*'8. P&L and Cashflow'!AE$7,'2. Operating Budget'!$K41) -> 0 | AF47: =IF('2. Operating Budget'!$E41>0,'2. Operating Budget'!$E41*'8. P&L and Cashflow'!AF$7,'2. Operating Budget'!$K41) -> 0
B48: =IF('2. Operating Budget'!A42="","",'2. Operating Budget'!A42) ->  | C48: ='2. Operating Budget'!K42 -> 0 | D48: =IF('2. Operating Budget'!$D42>0,$C48/12,'2. Operating Budget'!$B42*4.3+'2. Operating Budget'!$C42+'2. Operating Budget'!$E42*D$7) -> 0 | E48: =IF('2. Operating Budget'!$D42>0,$C48/12,'2. Operating Budget'!$B42*4.3+'2. Operating Budget'!$C42+'2. Operating Budget'!$E42*E$7) -> 0 | F48: =IF('2. Operating Budget'!$D42>0,$C48/12,'2. Operating Budget'!$B42*4.3+'2. Operating Budget'!$C42+'2. Operating Budget'!$E42*F$7) -> 0 | G48: =IF('2. Operating Budget'!$D42>0,$C48/12,'2. Operating Budget'!$B42*4.3+'2. Operating Budget'!$C42+'2. Operating Budget'!$E42*G$7) -> 0 | H48: =IF('2. Operating Budget'!$D42>0,$C48/12,'2. Operating Budget'!$B42*4.3+'2. Operating Budget'!$C42+'2. Operating Budget'!$E42*H$7) -> 0 | I48: =IF('2. Operating Budget'!$D42>0,$C48/12,'2. Operating Budget'!$B42*4.3+'2. Operating Budget'!$C42+'2. Operating Budget'!$E42*I$7) -> 0 | J48: =IF('2. Operating Budget'!$D42>0,$C48/12,'2. Operating Budget'!$B42*4.3+'2. Operating Budget'!$C42+'2. Operating Budget'!$E42*J$7) -> 0 | K48: =IF('2. Operating Budget'!$D42>0,$C48/12,'2. Operating Budget'!$B42*4.3+'2. Operating Budget'!$C42+'2. Operating Budget'!$E42*K$7) -> 0 | L48: =IF('2. Operating Budget'!$D42>0,$C48/12,'2. Operating Budget'!$B42*4.3+'2. Operating Budget'!$C42+'2. Operating Budget'!$E42*L$7) -> 0 | M48: =IF('2. Operating Budget'!$D42>0,$C48/12,'2. Operating Budget'!$B42*4.3+'2. Operating Budget'!$C42+'2. Operating Budget'!$E42*M$7) -> 0 | N48: =IF('2. Operating Budget'!$D42>0,$C48/12,'2. Operating Budget'!$B42*4.3+'2. Operating Budget'!$C42+'2. Operating Budget'!$E42*N$7) -> 0 | O48: =IF('2. Operating Budget'!$D42>0,$C48/12,'2. Operating Budget'!$B42*4.3+'2. Operating Budget'!$C42+'2. Operating Budget'!$E42*O$7) -> 0 | P48: 0 | Q48: =IF('2. Operating Budget'!$D42>0,$C48/12,'2. Operating Budget'!$B42*4.3+'2. Operating Budget'!$C42+'2. Operating Budget'!$E42*Q$7) -> 0 | R48: =IF('2. Operating Budget'!$D42>0,$C48/12,'2. Operating Budget'!$B42*4.3+'2. Operating Budget'!$C42+'2. Operating Budget'!$E42*R$7) -> 0 | S48: =IF('2. Operating Budget'!$D42>0,$C48/12,'2. Operating Budget'!$B42*4.3+'2. Operating Budget'!$C42+'2. Operating Budget'!$E42*S$7) -> 0 | T48: =IF('2. Operating Budget'!$D42>0,$C48/12,'2. Operating Budget'!$B42*4.3+'2. Operating Budget'!$C42+'2. Operating Budget'!$E42*T$7) -> 0 | U48: =IF('2. Operating Budget'!$D42>0,$C48/12,'2. Operating Budget'!$B42*4.3+'2. Operating Budget'!$C42+'2. Operating Budget'!$E42*U$7) -> 0 | V48: =IF('2. Operating Budget'!$D42>0,$C48/12,'2. Operating Budget'!$B42*4.3+'2. Operating Budget'!$C42+'2. Operating Budget'!$E42*V$7) -> 0 | W48: =IF('2. Operating Budget'!$D42>0,$C48/12,'2. Operating Budget'!$B42*4.3+'2. Operating Budget'!$C42+'2. Operating Budget'!$E42*W$7) -> 0 | X48: =IF('2. Operating Budget'!$D42>0,$C48/12,'2. Operating Budget'!$B42*4.3+'2. Operating Budget'!$C42+'2. Operating Budget'!$E42*X$7) -> 0 | Y48: =IF('2. Operating Budget'!$D42>0,$C48/12,'2. Operating Budget'!$B42*4.3+'2. Operating Budget'!$C42+'2. Operating Budget'!$E42*Y$7) -> 0 | Z48: =IF('2. Operating Budget'!$D42>0,$C48/12,'2. Operating Budget'!$B42*4.3+'2. Operating Budget'!$C42+'2. Operating Budget'!$E42*Z$7) -> 0 | AA48: =IF('2. Operating Budget'!$D42>0,$C48/12,'2. Operating Budget'!$B42*4.3+'2. Operating Budget'!$C42+'2. Operating Budget'!$E42*AA$7) -> 0 | AB48: =IF('2. Operating Budget'!$D42>0,$C48/12,'2. Operating Budget'!$B42*4.3+'2. Operating Budget'!$C42+'2. Operating Budget'!$E42*AB$7) -> 0 | AC48: 0 | AD48: =IF('2. Operating Budget'!$E42>0,'2. Operating Budget'!$E42*'8. P&L and Cashflow'!AD$7,'2. Operating Budget'!$K42) -> 0 | AE48: =IF('2. Operating Budget'!$E42>0,'2. Operating Budget'!$E42*'8. P&L and Cashflow'!AE$7,'2. Operating Budget'!$K42) -> 0 | AF48: =IF('2. Operating Budget'!$E42>0,'2. Operating Budget'!$E42*'8. P&L and Cashflow'!AF$7,'2. Operating Budget'!$K42) -> 0
B49: =IF('2. Operating Budget'!A43="","",'2. Operating Budget'!A43) ->  | C49: ='2. Operating Budget'!K43 -> 0 | D49: =IF('2. Operating Budget'!$D43>0,$C49/12,'2. Operating Budget'!$B43*4.3+'2. Operating Budget'!$C43+'2. Operating Budget'!$E43*D$7) -> 0 | E49: =IF('2. Operating Budget'!$D43>0,$C49/12,'2. Operating Budget'!$B43*4.3+'2. Operating Budget'!$C43+'2. Operating Budget'!$E43*E$7) -> 0 | F49: =IF('2. Operating Budget'!$D43>0,$C49/12,'2. Operating Budget'!$B43*4.3+'2. Operating Budget'!$C43+'2. Operating Budget'!$E43*F$7) -> 0 | G49: =IF('2. Operating Budget'!$D43>0,$C49/12,'2. Operating Budget'!$B43*4.3+'2. Operating Budget'!$C43+'2. Operating Budget'!$E43*G$7) -> 0 | H49: =IF('2. Operating Budget'!$D43>0,$C49/12,'2. Operating Budget'!$B43*4.3+'2. Operating Budget'!$C43+'2. Operating Budget'!$E43*H$7) -> 0 | I49: =IF('2. Operating Budget'!$D43>0,$C49/12,'2. Operating Budget'!$B43*4.3+'2. Operating Budget'!$C43+'2. Operating Budget'!$E43*I$7) -> 0 | J49: =IF('2. Operating Budget'!$D43>0,$C49/12,'2. Operating Budget'!$B43*4.3+'2. Operating Budget'!$C43+'2. Operating Budget'!$E43*J$7) -> 0 | K49: =IF('2. Operating Budget'!$D43>0,$C49/12,'2. Operating Budget'!$B43*4.3+'2. Operating Budget'!$C43+'2. Operating Budget'!$E43*K$7) -> 0 | L49: =IF('2. Operating Budget'!$D43>0,$C49/12,'2. Operating Budget'!$B43*4.3+'2. Operating Budget'!$C43+'2. Operating Budget'!$E43*L$7) -> 0 | M49: =IF('2. Operating Budget'!$D43>0,$C49/12,'2. Operating Budget'!$B43*4.3+'2. Operating Budget'!$C43+'2. Operating Budget'!$E43*M$7) -> 0 | N49: =IF('2. Operating Budget'!$D43>0,$C49/12,'2. Operating Budget'!$B43*4.3+'2. Operating Budget'!$C43+'2. Operating Budget'!$E43*N$7) -> 0 | O49: =IF('2. Operating Budget'!$D43>0,$C49/12,'2. Operating Budget'!$B43*4.3+'2. Operating Budget'!$C43+'2. Operating Budget'!$E43*O$7) -> 0 | P49: 0 | Q49: =IF('2. Operating Budget'!$D43>0,$C49/12,'2. Operating Budget'!$B43*4.3+'2. Operating Budget'!$C43+'2. Operating Budget'!$E43*Q$7) -> 0 | R49: =IF('2. Operating Budget'!$D43>0,$C49/12,'2. Operating Budget'!$B43*4.3+'2. Operating Budget'!$C43+'2. Operating Budget'!$E43*R$7) -> 0 | S49: =IF('2. Operating Budget'!$D43>0,$C49/12,'2. Operating Budget'!$B43*4.3+'2. Operating Budget'!$C43+'2. Operating Budget'!$E43*S$7) -> 0 | T49: =IF('2. Operating Budget'!$D43>0,$C49/12,'2. Operating Budget'!$B43*4.3+'2. Operating Budget'!$C43+'2. Operating Budget'!$E43*T$7) -> 0 | U49: =IF('2. Operating Budget'!$D43>0,$C49/12,'2. Operating Budget'!$B43*4.3+'2. Operating Budget'!$C43+'2. Operating Budget'!$E43*U$7) -> 0 | V49: =IF('2. Operating Budget'!$D43>0,$C49/12,'2. Operating Budget'!$B43*4.3+'2. Operating Budget'!$C43+'2. Operating Budget'!$E43*V$7) -> 0 | W49: =IF('2. Operating Budget'!$D43>0,$C49/12,'2. Operating Budget'!$B43*4.3+'2. Operating Budget'!$C43+'2. Operating Budget'!$E43*W$7) -> 0 | X49: =IF('2. Operating Budget'!$D43>0,$C49/12,'2. Operating Budget'!$B43*4.3+'2. Operating Budget'!$C43+'2. Operating Budget'!$E43*X$7) -> 0 | Y49: =IF('2. Operating Budget'!$D43>0,$C49/12,'2. Operating Budget'!$B43*4.3+'2. Operating Budget'!$C43+'2. Operating Budget'!$E43*Y$7) -> 0 | Z49: =IF('2. Operating Budget'!$D43>0,$C49/12,'2. Operating Budget'!$B43*4.3+'2. Operating Budget'!$C43+'2. Operating Budget'!$E43*Z$7) -> 0 | AA49: =IF('2. Operating Budget'!$D43>0,$C49/12,'2. Operating Budget'!$B43*4.3+'2. Operating Budget'!$C43+'2. Operating Budget'!$E43*AA$7) -> 0 | AB49: =IF('2. Operating Budget'!$D43>0,$C49/12,'2. Operating Budget'!$B43*4.3+'2. Operating Budget'!$C43+'2. Operating Budget'!$E43*AB$7) -> 0 | AC49: 0 | AD49: =IF('2. Operating Budget'!$E43>0,'2. Operating Budget'!$E43*'8. P&L and Cashflow'!AD$7,'2. Operating Budget'!$K43) -> 0 | AE49: =IF('2. Operating Budget'!$E43>0,'2. Operating Budget'!$E43*'8. P&L and Cashflow'!AE$7,'2. Operating Budget'!$K43) -> 0 | AF49: =IF('2. Operating Budget'!$E43>0,'2. Operating Budget'!$E43*'8. P&L and Cashflow'!AF$7,'2. Operating Budget'!$K43) -> 0
B50: =IF('2. Operating Budget'!A44="","",'2. Operating Budget'!A44) -> Other | C50: ='2. Operating Budget'!K44 -> 0 | D50: =IF('2. Operating Budget'!$D44>0,$C50/12,'2. Operating Budget'!$B44*4.3+'2. Operating Budget'!$C44+'2. Operating Budget'!$E44*D$7) -> 0 | E50: =IF('2. Operating Budget'!$D44>0,$C50/12,'2. Operating Budget'!$B44*4.3+'2. Operating Budget'!$C44+'2. Operating Budget'!$E44*E$7) -> 0 | F50: =IF('2. Operating Budget'!$D44>0,$C50/12,'2. Operating Budget'!$B44*4.3+'2. Operating Budget'!$C44+'2. Operating Budget'!$E44*F$7) -> 0 | G50: =IF('2. Operating Budget'!$D44>0,$C50/12,'2. Operating Budget'!$B44*4.3+'2. Operating Budget'!$C44+'2. Operating Budget'!$E44*G$7) -> 0 | H50: =IF('2. Operating Budget'!$D44>0,$C50/12,'2. Operating Budget'!$B44*4.3+'2. Operating Budget'!$C44+'2. Operating Budget'!$E44*H$7) -> 0 | I50: =IF('2. Operating Budget'!$D44>0,$C50/12,'2. Operating Budget'!$B44*4.3+'2. Operating Budget'!$C44+'2. Operating Budget'!$E44*I$7) -> 0 | J50: =IF('2. Operating Budget'!$D44>0,$C50/12,'2. Operating Budget'!$B44*4.3+'2. Operating Budget'!$C44+'2. Operating Budget'!$E44*J$7) -> 0 | K50: =IF('2. Operating Budget'!$D44>0,$C50/12,'2. Operating Budget'!$B44*4.3+'2. Operating Budget'!$C44+'2. Operating Budget'!$E44*K$7) -> 0 | L50: =IF('2. Operating Budget'!$D44>0,$C50/12,'2. Operating Budget'!$B44*4.3+'2. Operating Budget'!$C44+'2. Operating Budget'!$E44*L$7) -> 0 | M50: =IF('2. Operating Budget'!$D44>0,$C50/12,'2. Operating Budget'!$B44*4.3+'2. Operating Budget'!$C44+'2. Operating Budget'!$E44*M$7) -> 0 | N50: =IF('2. Operating Budget'!$D44>0,$C50/12,'2. Operating Budget'!$B44*4.3+'2. Operating Budget'!$C44+'2. Operating Budget'!$E44*N$7) -> 0 | O50: =IF('2. Operating Budget'!$D44>0,$C50/12,'2. Operating Budget'!$B44*4.3+'2. Operating Budget'!$C44+'2. Operating Budget'!$E44*O$7) -> 0 | P50: 0 | Q50: =IF('2. Operating Budget'!$D44>0,$C50/12,'2. Operating Budget'!$B44*4.3+'2. Operating Budget'!$C44+'2. Operating Budget'!$E44*Q$7) -> 0 | R50: =IF('2. Operating Budget'!$D44>0,$C50/12,'2. Operating Budget'!$B44*4.3+'2. Operating Budget'!$C44+'2. Operating Budget'!$E44*R$7) -> 0 | S50: =IF('2. Operating Budget'!$D44>0,$C50/12,'2. Operating Budget'!$B44*4.3+'2. Operating Budget'!$C44+'2. Operating Budget'!$E44*S$7) -> 0 | T50: =IF('2. Operating Budget'!$D44>0,$C50/12,'2. Operating Budget'!$B44*4.3+'2. Operating Budget'!$C44+'2. Operating Budget'!$E44*T$7) -> 0 | U50: =IF('2. Operating Budget'!$D44>0,$C50/12,'2. Operating Budget'!$B44*4.3+'2. Operating Budget'!$C44+'2. Operating Budget'!$E44*U$7) -> 0 | V50: =IF('2. Operating Budget'!$D44>0,$C50/12,'2. Operating Budget'!$B44*4.3+'2. Operating Budget'!$C44+'2. Operating Budget'!$E44*V$7) -> 0 | W50: =IF('2. Operating Budget'!$D44>0,$C50/12,'2. Operating Budget'!$B44*4.3+'2. Operating Budget'!$C44+'2. Operating Budget'!$E44*W$7) -> 0 | X50: =IF('2. Operating Budget'!$D44>0,$C50/12,'2. Operating Budget'!$B44*4.3+'2. Operating Budget'!$C44+'2. Operating Budget'!$E44*X$7) -> 0 | Y50: =IF('2. Operating Budget'!$D44>0,$C50/12,'2. Operating Budget'!$B44*4.3+'2. Operating Budget'!$C44+'2. Operating Budget'!$E44*Y$7) -> 0 | Z50: =IF('2. Operating Budget'!$D44>0,$C50/12,'2. Operating Budget'!$B44*4.3+'2. Operating Budget'!$C44+'2. Operating Budget'!$E44*Z$7) -> 0 | AA50: =IF('2. Operating Budget'!$D44>0,$C50/12,'2. Operating Budget'!$B44*4.3+'2. Operating Budget'!$C44+'2. Operating Budget'!$E44*AA$7) -> 0 | AB50: =IF('2. Operating Budget'!$D44>0,$C50/12,'2. Operating Budget'!$B44*4.3+'2. Operating Budget'!$C44+'2. Operating Budget'!$E44*AB$7) -> 0 | AC50: 0 | AD50: =IF('2. Operating Budget'!$E44>0,'2. Operating Budget'!$E44*'8. P&L and Cashflow'!AD$7,'2. Operating Budget'!$K44) -> 0 | AE50: =IF('2. Operating Budget'!$E44>0,'2. Operating Budget'!$E44*'8. P&L and Cashflow'!AE$7,'2. Operating Budget'!$K44) -> 0 | AF50: =IF('2. Operating Budget'!$E44>0,'2. Operating Budget'!$E44*'8. P&L and Cashflow'!AF$7,'2. Operating Budget'!$K44) -> 0
B51: Depreciation | C51: ='4. Equipment & Vehicle Costs'!B85+'5. Facility Costs'!A65 -> 298.1895238 | D51: =C51/12 -> 24.84912698 | E51: 24.84912698 | F51: 24.84912698 | G51: =F51 -> 24.84912698 | H51: 24.84912698 | I51: 24.84912698 | J51: 24.84912698 | K51: 24.84912698 | L51: 24.84912698 | M51: 24.84912698 | N51: 24.84912698 | O51: 24.84912698 | P51: 298.1895238 | Q51: =P51/12 -> 24.84912698 | R51: =Q51 -> 24.84912698 | S51: 24.84912698 | T51: 24.84912698 | U51: 24.84912698 | V51: 24.84912698 | W51: 24.84912698 | X51: 24.84912698 | Y51: 24.84912698 | Z51: 24.84912698 | AA51: 24.84912698 | AB51: 24.84912698 | AC51: =SUM(Q51:AB51) -> 298.1895238 | AD51: =AC51 -> 298.1895238 | AE51: =AD51 -> 298.1895238 | AF51: =AE51 -> 298.1895238
P52: 0
B53: Total Operating Expenses | C53: =SUM(D53:O53) -> 25921.48952 | D53: =SUM(D13:D51) -> 1988.249127 | E53: 2175.749127 | F53: 2175.749127 | G53: 2175.749127 | H53: 2175.749127 | I53: 2175.749127 | J53: 2175.749127 | K53: 2175.749127 | L53: 2175.749127 | M53: 2175.749127 | N53: 2175.749127 | O53: 2175.749127 | P53: =SUM(D53:O53) -> 25921.48952 | Q53: =SUM(Q13:Q51) -> 2218.249127 | R53: 2218.249127 | S53: 2218.249127 | T53: 2218.249127 | U53: 2218.249127 | V53: 2218.249127 | W53: 2218.249127 | X53: 2218.249127 | Y53: 2218.249127 | Z53: 2218.249127 | AA53: 2218.249127 | AB53: 2218.249127 | AC53: =SUM(Q53:AB53) -> 26618.98952 | AD53: 27188.98952 | AE53: 27826.33952 | AF53: 28539.32702
D55: =IF(D56-D57<0,0,D56-D57) -> 0 | E55: =IF(E56-E57<0,0,E56-E57) -> 151.5621416 | F55: 137.6731458 | G55: 146.1026679 | H55: 147.2257405 | I55: 148.3548964 | J55: 149.4901686 | K55: 150.6315902 | L55: 151.7791945 | M55: 152.9330149 | N55: 154.0930853 | O55: 155.2594393 | P55: =SUM(D55:O55) -> 1645.105085 | Q55: =IF(Q56-Q57<0,0,Q56-Q57) -> 382.5321111 | R55: =IF(R56-R57<0,0,R56-R57) -> 383.7111349 | S55: 384.896545 | T55: 386.0883761 | U55: 387.286663 | V55: 388.4914406 | W55: 389.7027441 | X55: 390.9206087 | Y55: 392.1450702 | Z55: 393.3761642 | AA55: 394.6139266 | AB55: 395.8583935 | AC55: =SUM(Q55:AB55) -> 4669.623178
B56: Profit Before Interest and Taxes | C56: =C9-C53 -> 1333.510476 | D56: -803.249127 | E56: 194.250873 | F56: 194.250873 | G56: 194.250873 | H56: 194.250873 | I56: 194.250873 | J56: 194.250873 | K56: 194.250873 | L56: 194.250873 | M56: 194.250873 | N56: 194.250873 | O56: 194.250873 | P56: 1333.510476 | Q56: 420.350873 | R56: 420.350873 | S56: 420.350873 | T56: 420.350873 | U56: 420.350873 | V56: 420.350873 | W56: 420.350873 | X56: 420.350873 | Y56: 420.350873 | Z56: 420.350873 | AA56: 420.350873 | AB56: 420.350873 | AC56: 5044.210476 | AD56: 8076.610476 | AE56: 11467.31248 | AF56: 15260.40598
B57: Interest | C57: =P57 -> 535.4482683 | D57: ='12. Loan Detail'!D28 -> 43.79375 | E57: ='12. Loan Detail'!E28 -> 42.68873138 | F57: ='12. Loan Detail'!F28 -> 56.57772723 | G57: ='12. Loan Detail'!G28 -> 48.14820515 | H57: ='12. Loan Detail'!H28 -> 47.02513254 | I57: ='12. Loan Detail'!I28 -> 45.89597661 | J57: ='12. Loan Detail'!J28 -> 44.76070442 | K57: ='12. Loan Detail'!K28 -> 43.61928284 | L57: ='12. Loan Detail'!L28 -> 42.47167856 | M57: ='12. Loan Detail'!M28 -> 41.31785809 | N57: ='12. Loan Detail'!N28 -> 40.15778776 | O57: ='12. Loan Detail'!O28 -> 38.99143372 | P57: ='12. Loan Detail'!P28 -> 535.4482683 | Q57: ='12. Loan Detail'!Q28 -> 37.81876193 | R57: ='12. Loan Detail'!R28 -> 36.63973816 | S57: ='12. Loan Detail'!S28 -> 35.45432801 | T57: ='12. Loan Detail'!T28 -> 34.26249689 | U57: ='12. Loan Detail'!U28 -> 33.06421002 | V57: ='12. Loan Detail'!V28 -> 31.85943243 | W57: ='12. Loan Detail'!W28 -> 30.64812896 | X57: ='12. Loan Detail'!X28 -> 29.43026427 | Y57: ='12. Loan Detail'!Y28 -> 28.2058028 | Z57: ='12. Loan Detail'!Z28 -> 26.97470884 | AA57: ='12. Loan Detail'!AA28 -> 25.73694645 | AB57: ='12. Loan Detail'!AB28 -> 24.49247952 | AC57: ='12. Loan Detail'!AC28 -> 374.5872983 | AD57: ='12. Loan Detail'!AP28 -> 109.7882106 | AE57: ='12. Loan Detail'!BC28 -> 0 | AF57: ='12. Loan Detail'!BP28 -> 0
B58: Taxes on Profit After Interest | C58: ='0. Basic Info'!D22 -> 0.15 | D58: =IF($C56<0,0,IF(D56-D57<0,0,((D56-D57)/$P55*$P58))) -> 0 | E58: =IF($C56<0,0,IF(E56-E57<0,0,((E56-E57)/$P55*$P58))) -> 11.02871955 | F58: 10.01805924 | G58: 10.63145012 | H58: 10.71317273 | I58: 10.79533799 | J58: 10.87794832 | K58: 10.96100613 | L58: 11.04451383 | M58: 11.12847386 | N58: 11.21288867 | O58: 11.29776074 | P58: =IF(P56-P57<0,0,(P56-P57)*C58) -> 119.7093312 | Q58: =IF($C56<0,0,IF(Q56-Q57<0,0,((Q56-Q57)/$P55*$P58))) -> 27.83570703 | R58: =IF($C56<0,0,IF(R56-R57<0,0,((R56-R57)/$P55*$P58))) -> 27.92150103 | S58: 28.00775975 | T58: 28.0944857 | U58: 28.18168142 | V58: 28.26934945 | W58: 28.35749234 | X58: 28.44611268 | Y58: 28.53521305 | Z58: 28.62479604 | AA58: 28.71486427 | AB58: 28.80542037 | AC58: =IF(AC56-AC57<0,0,(AC56-AC57)*$C58) -> 700.4434767 | AD58: =IF(AD56-AD57<0,0,(AD56-AD57)*$C58) -> 1195.02334 | AE58: 1720.096871 | AF58: 2289.060896
B60: Net Profit | C60: =P60 -> 678.3528767 | D60: =D56-D57-D58 -> -847.042877 | E60: =E56-E57-E58 -> 140.5334221 | F60: 127.6550865 | G60: 135.4712177 | H60: 136.5125678 | I60: 137.5595584 | J60: 138.6122203 | K60: 139.670584 | L60: 140.7346806 | M60: 141.8045411 | N60: 142.8801966 | O60: 143.9616786 | P60: 678.3528767 | Q60: =Q56-Q57-Q58 -> 354.6964041 | R60: =R56-R57-R58 -> 355.7896338 | S60: 356.8887853 | T60: 357.9938904 | U60: 359.1049816 | V60: 360.2220911 | W60: 361.3452517 | X60: 362.4744961 | Y60: 363.6098572 | Z60: 364.7513681 | AA60: 365.8990623 | AB60: 367.0529731 | AC60: 3969.179701 | AD60: 6771.798926 | AE60: 9747.215605 | AF60: 12971.34508
B62: Ending Line Balance
B63: ='7. Funding Plan'!C18 -> 0
B64: Starting Cash | C64: ='7. Funding Plan'!C27 -> 7455.523254 | D64: =D6 -> 2016-01-01 | E64: 2016-02-01 | F64: 2016-03-03 | G64: 2016-04-03 | H64: 2016-05-04 | I64: 2016-06-04 | J64: 2016-07-05 | K64: 2016-08-05 | L64: 2016-09-05 | M64: 2016-10-06 | N64: 2016-11-06 | O64: 2016-12-07 | P64: 2016 | Q64: 2017-01-01 | R64: 2017-02-01 | S64: 2017-03-01 | T64: 2017-04-01 | U64: 2017-05-01 | V64: 2017-06-01 | W64: 2017-07-01 | X64: 2017-08-01 | Y64: 2017-09-01 | Z64: 2017-10-01 | AA64: 2017-11-01 | AB64: 2017-12-01 | AC64: 2017 | AD64: 2018 | AE64: 2019 | AF64: 2020
B65: STARTING CASH BALANCE | D65: 0 | E65: =D79 -> 8058.802812 | F65: =E79 -> 9219.076904 | G65: 10565.36166 | H65: 10518.34552 | I65: 10471.24766 | J65: 10424.06763 | K65: 10376.80499 | L65: 10329.4593 | M65: 10282.0301 | N65: 10234.51694 | O65: 10186.91936 | P65: =O65 -> 10186.91936 | Q65: =O79 -> 10139.23691 | R65: =Q79 -> 10301.11651 | S65: =R79 -> 10462.91033 | T65: 10624.61788 | U65: 10786.2387 | V65: 10947.77233 | W65: 11109.2183 | X65: 11270.57612 | Y65: 11431.84531 | Z65: 11593.02541 | AA65: 11754.11593 | AB65: 11915.11638 | AC65: =P79 -> 10139.23691 | AD65: =AC79 -> 12076.02627 | AE65: =AD79 -> 16274.54917 | AF65: 26319.9543
A66: CASH ADDED | B66: Cash from Operations | D66: =D60+D51 -> -822.19375 | E66: 165.3825491 | F66: 152.5042135 | G66: 160.3203447 | H66: 161.3616947 | I66: 162.4086854 | J66: 163.4613473 | K66: 164.519711 | L66: 165.5838076 | M66: 166.653668 | N66: 167.7293236 | O66: 168.8108055 | P66: =SUM(D66:O66) -> 976.5424005 | Q66: 379.545531 | R66: 380.6387608 | S66: 381.7379122 | T66: 382.8430174 | U66: 383.9541086 | V66: 385.0712181 | W66: 386.1943787 | X66: 387.3236231 | Y66: 388.4589841 | Z66: 389.6004951 | AA66: 390.7481893 | AB66: 391.9021001 | AC66: =SUM(Q66:AB66) -> 4628.018319 | AD66: 7069.98845 | AE66: 10045.40513 | AF66: 13269.5346
B67: Cash from owners | D67: ='7. Funding Plan'!C15+'7. Funding Plan'!C14 -> 1000 | F67: 0 | G67: 0 | H67: 0 | I67: 0 | J67: 0 | K67: 0 | L67: 0 | M67: 0 | N67: 0 | O67: 0 | P67: =SUM(D67:O67) -> 1000 | Q67: 0 | R67: 0 | S67: 0 | T67: 0 | U67: 0 | V67: 0 | W67: 0 | X67: 0 | Y67: 0 | Z67: 0 | AA67: 0 | AB67: 0 | AC67: =SUM(Q67:AB67) -> 0 | AD67: 0 | AE67: 0 | AF67: 0
B68: Cash from Investors | D68: ='7. Funding Plan'!C17 -> 0 | E68: 0 | F68: 2000 | G68: 0 | H68: 0 | I68: 0 | J68: 0 | K68: 0 | L68: 0 | M68: 0 | N68: 0 | P68: 2000 | Q68: 0 | R68: 0 | S68: 0 | T68: 0 | U68: 0 | V68: 0 | W68: 0 | X68: 0 | Y68: 0 | Z68: 0 | AA68: 0 | AC68: 0 | AD68: 0 | AE68: 0 | AF68: 0
B69: Cash from Term Loans | D69: ='7. Funding Plan'!C22+'7. Funding Plan'!C23 -> 8085
B70: Cash added from line | D70: ='7. Funding Plan'!C19 -> 0 | E70: 1200 | F70: 0 | G70: 0 | H70: 0 | I70: 0 | J70: 0 | K70: 0 | L70: 0 | M70: 0 | N70: 0 | O70: 0 | P70: 1200 | T70: 0 | U70: 0 | V70: 0 | W70: 0 | X70: 0 | Y70: 0 | Z70: 0 | AA70: 0 | AB70: 0 | AC70: 0 | AD70: 0 | AE70: 0 | AF70: 0
B71: Total Cash Added | D71: =SUM(D66:D70) -> 8262.80625 | E71: =SUM(E66:E70) -> 1365.382549 | F71: 2152.504214 | G71: 160.3203447 | H71: 161.3616947 | I71: 162.4086854 | J71: 163.4613473 | K71: 164.519711 | L71: 165.5838076 | M71: 166.653668 | N71: 167.7293236 | O71: 168.8108055 | P71: 5176.5424 | Q71: =SUM(Q66:Q70) -> 379.545531 | R71: =SUM(R66:R70) -> 380.6387608 | S71: 381.7379122 | T71: 382.8430174 | U71: 383.9541086 | V71: 385.0712181 | W71: 386.1943787 | X71: 387.3236231 | Y71: 388.4589841 | Z71: 389.6004951 | AA71: 390.7481893 | AB71: 391.9021001 | AC71: 4628.018319 | AD71: 7069.98845 | AE71: 10045.40513 | AF71: 13269.5346
A72: CASH SPENT | B72: Owner Draws | D72: 0 | E72: 0 | F72: 0 | G72: 0 | H72: 0 | I72: 0 | J72: 0 | K72: 0 | L72: 0 | M72: 0 | N72: 0 | O72: 0 | P72: 0 | Q72: 0 | R72: 0 | S72: 0 | T72: 0 | U72: 0 | V72: 0 | W72: 0 | X72: 0 | Y72: 0 | Z72: 0 | AA72: 0 | AB72: 0 | AC72: 0 | AD72: 0 | AE72: 0 | AF72: 0
B73: Purchases | D73: 0 | E73: 0 | F73: 0 | G73: 0 | H73: 0 | I73: 0 | J73: 0 | K73: 0 | L73: 0 | M73: 0 | N73: 0 | O73: 0 | P73: 0 | Q73: 0 | R73: 0 | S73: 0 | T73: 0 | U73: 0 | V73: 0 | W73: 0 | X73: 0 | Y73: 0 | Z73: 0 | AA73: 0 | AB73: 0 | AC73: 0
B74: Repay Investors | D74: 0 | E74: 0 | F74: 0 | G74: 0 | H74: 0 | I74: 0 | J74: 0 | K74: 0 | L74: 0 | M74: 0 | N74: 0 | O74: 0 | P74: 0 | Q74: 0 | R74: 0 | S74: 0 | T74: 0 | U74: 0 | V74: 0 | W74: 0 | X74: 0 | Y74: 0 | Z74: 0 | AA74: 0 | AB74: 0 | AC74: 0 | AD74: 0 | AE74: 0
B75: Repay Line | C75: =+'7. Funding Plan'!C18+P70-P75 -> 600 | D75: 0 | E75: 0 | F75: 600 | G75: 0 | H75: 0 | I75: 0 | J75: 0 | K75: 0 | L75: 0 | M75: 0 | N75: 0 | O75: 0 | P75: 600 | Q75: 0 | R75: 0 | S75: 0 | T75: 0 | U75: 0 | V75: 0 | W75: 0 | X75: 0 | Z75: 0 | AA75: 0 | AB75: 0 | AC75: 0 | AD75: 0 | AE75: 0 | AF75: 0
B76: Repay long-term loans | D76: ='12. Loan Detail'!D29-'12. Loan Detail'!D23 -> 204.0034383 | E76: ='12. Loan Detail'!E29-'12. Loan Detail'!E23 -> 205.1084569 | F76: ='12. Loan Detail'!F29-'12. Loan Detail'!F23 -> 206.219461 | G76: ='12. Loan Detail'!G29-'12. Loan Detail'!G23 -> 207.3364831 | H76: ='12. Loan Detail'!H29-'12. Loan Detail'!H23 -> 208.4595557 | I76: ='12. Loan Detail'!I29-'12. Loan Detail'!I23 -> 209.5887116 | J76: ='12. Loan Detail'!J29-'12. Loan Detail'!J23 -> 210.7239838 | K76: ='12. Loan Detail'!K29-'12. Loan Detail'!K23 -> 211.8654054 | L76: ='12. Loan Detail'!L29-'12. Loan Detail'!L23 -> 213.0130097 | M76: ='12. Loan Detail'!M29-'12. Loan Detail'!M23 -> 214.1668302 | N76: ='12. Loan Detail'!N29-'12. Loan Detail'!N23 -> 215.3269005 | O76: ='12. Loan Detail'!O29-'12. Loan Detail'!O23 -> 216.4932545 | P76: 2522.305491 | Q76: ='12. Loan Detail'!Q29-'12. Loan Detail'!Q23 -> 217.6659263 | R76: ='12. Loan Detail'!R29-'12. Loan Detail'!R23 -> 218.8449501 | S76: ='12. Loan Detail'!S29-'12. Loan Detail'!S23 -> 220.0303602 | T76: ='12. Loan Detail'!T29-'12. Loan Detail'!T23 -> 221.2221914 | U76: ='12. Loan Detail'!U29-'12. Loan Detail'!U23 -> 222.4204782 | V76: ='12. Loan Detail'!V29-'12. Loan Detail'!V23 -> 223.6252558 | W76: ='12. Loan Detail'!W29-'12. Loan Detail'!W23 -> 224.8365593 | X76: ='12. Loan Detail'!X29-'12. Loan Detail'!X23 -> 226.054424 | Y76: ='12. Loan Detail'!Y29-'12. Loan Detail'!Y23 -> 227.2788855 | Z76: ='12. Loan Detail'!Z29-'12. Loan Detail'!Z23 -> 228.5099794 | AA76: ='12. Loan Detail'!AA29-'12. Loan Detail'!AA23 -> 229.7477418 | AB76: ='12. Loan Detail'!AB29-'12. Loan Detail'!AB23 -> 230.9922087 | AC76: 2691.228961 | AD76: ='12. Loan Detail'!AP29-'12. Loan Detail'!AP23 -> 2871.465548 | AE76: ='12. Loan Detail'!BC29-'12. Loan Detail'!BC23 -> 0 | AF76: ='12. Loan Detail'!BB29-'12. Loan Detail'!BP23 -> 0
B77: Total Cash Used | D77: =SUM(D72:D76) -> 204.0034383 | E77: =SUM(E72:E76) -> 205.1084569 | F77: =SUM(F72:F76) -> 806.219461 | G77: =SUM(G72:G76) -> 207.3364831 | H77: =SUM(H72:H76) -> 208.4595557 | I77: 209.5887116 | J77: 210.7239838 | K77: 211.8654054 | L77: 213.0130097 | M77: 214.1668302 | N77: 215.3269005 | O77: 216.4932545 | P77: 3122.305491 | Q77: =SUM(Q72:Q76) -> 217.6659263 | R77: 218.8449501 | S77: 220.0303602 | T77: 221.2221914 | U77: 222.4204782 | V77: 223.6252558 | W77: 224.8365593 | X77: 226.054424 | Y77: 227.2788855 | Z77: 228.5099794 | AA77: 229.7477418 | AB77: 230.9922087 | AC77: 2691.228961 | AD77: 2871.465548 | AE77: 0 | AF77: 0
B78: Net Cash Flow | D78: =D71-D77 -> 8058.802812 | E78: 1160.274092 | F78: 1346.284752 | G78: -47.01613838 | H78: -47.09786098 | I78: -47.18002625 | J78: -47.26263658 | K78: -47.34569438 | L78: -47.42920208 | M78: -47.51316212 | N78: -47.59757693 | O78: -47.68244899 | P78: =SUM(D78:O78) -> 10139.23691 | Q78: 161.8796047 | R78: 161.7938107 | S78: 161.707552 | T78: 161.620826 | U78: 161.5336303 | V78: 161.4459623 | W78: 161.3578194 | X78: 161.2691991 | Y78: 161.1800987 | Z78: 161.0905157 | AA78: 161.0004475 | AB78: 160.9098914 | AC78: 1936.789358 | AD78: 4198.522901 | AE78: 10045.40513 | AF78: 13269.5346
B79: Ending Cash Balance | D79: =D65+D78 -> 8058.802812 | E79: 9219.076904 | F79: 10565.36166 | G79: 10518.34552 | H79: 10471.24766 | I79: 10424.06763 | J79: 10376.80499 | K79: 10329.4593 | L79: 10282.0301 | M79: 10234.51694 | N79: 10186.91936 | O79: 10139.23691 | P79: =O79 -> 10139.23691 | Q79: 10301.11651 | R79: 10462.91033 | S79: 10624.61788 | T79: 10786.2387 | U79: 10947.77233 | V79: 11109.2183 | W79: 11270.57612 | X79: 11431.84531 | Y79: 11593.02541 | Z79: 11754.11593 | AA79: 11915.11638 | AB79: 12076.02627 | AC79: 12076.02627 | AD79: 16274.54917 | AE79: 26319.9543 | AF79: 39589.4889
B80: Ending Line of Credit Balance | D80: ='7. Funding Plan'!C18+'8. P&L and Cashflow'!D70-'8. P&L and Cashflow'!D75 -> 0 | E80: =D80+E70-E75 -> 1200 | F80: =E80+F70-F75 -> 600 | G80: 600 | H80: 600 | I80: 600 | J80: 600 | K80: 600 | L80: 600 | M80: 600 | N80: 600 | O80: 600 | P80: =O80 -> 600 | Q80: 600 | R80: 600 | S80: 600 | T80: 600 | U80: 600 | V80: 600 | W80: 600 | X80: 600 | Y80: 600 | Z80: 600 | AA80: 600 | AB80: 600 | AC80: =AB80 -> 600 | AD80: 600 | AE80: 600 | AF80: 600

Sheet 9. Sales Summary Tables

Sheet 10. Financial Summary Tables
A19: Average Monthly Budget
A20: Total | B20: ='2. Operating Budget'!J5 -> 2135.275
A21: ='8. P&L and Cashflow'!B13 -> Worker Wages | B21: ='2. Operating Budget'!J7 -> 0 | C21: =B21/B$20 -> 0
A22: ='8. P&L and Cashflow'!B14 -> Owner Pay | B22: ='2. Operating Budget'!J8 -> 991 | C22: =B22/B$20 -> 0.4641088384
A23: ='8. P&L and Cashflow'!B15 -> 0.15 | B23: ='2. Operating Budget'!J9 -> 148.65 | C23: 0.06961632577
A24: ='8. P&L and Cashflow'!B16 -> Workers Comp | B24: ='2. Operating Budget'!J10 -> 0 | C24: 0
A25: ='8. P&L and Cashflow'!B17 -> Rent | B25: ='2. Operating Budget'!J11 -> 400 | C25: 0.1873295009
A26: ='8. P&L and Cashflow'!B18 -> Phone/Internet/Cell | B26: ='2. Operating Budget'!J12 -> 150 | C26: 0.07024856283
A27: ='8. P&L and Cashflow'!B19 -> Electricity | B27: ='2. Operating Budget'!J13 -> 0 | C27: 0
A28: ='8. P&L and Cashflow'!B20 -> Dumpster/Waste | B28: ='2. Operating Budget'!J14 -> 0 | C28: 0
A29: ='8. P&L and Cashflow'!B21 -> Liability Insurance | B29: ='2. Operating Budget'!J15 -> 41.66666667 | C29: 0.01951348968
A30: ='8. P&L and Cashflow'!B22 ->  | B30: ='2. Operating Budget'!J16 -> 0 | C30: 0
A31: ='8. P&L and Cashflow'!B23 ->  | B31: ='2. Operating Budget'!J17 -> 0 | C31: 0
A32: ='8. P&L and Cashflow'!B24 ->  | B32: ='2. Operating Budget'!J18 -> 0 | C32: 0
A33: ='8. P&L and Cashflow'!B25 -> Licenses | B33: ='2. Operating Budget'!J19 -> 12.5 | C33: 0.005854046903
A34: ='8. P&L and Cashflow'!B26 ->  | B34: ='2. Operating Budget'!J20 -> 0 | C34: 0
A35: ='8. P&L and Cashflow'!B27 -> Advertising Expenses | B35: ='2. Operating Budget'!J21 -> 86.25 | C35: 0.04039292363
A36: ='8. P&L and Cashflow'!B28 ->  | B36: ='2. Operating Budget'!J22 -> 0 | C36: 0
A37: ='8. P&L and Cashflow'!B47 ->  | B37: ='2. Operating Budget'!J23 -> 0 | C37: 0
A38: ='8. P&L and Cashflow'!B48 ->  | B38: ='2. Operating Budget'!J24 -> 0 | C38: 0
A39: ='8. P&L and Cashflow'!B49 ->  | B39: ='2. Operating Budget'!J25 -> 0 | C39: 0
A40: ='8. P&L and Cashflow'!B50 -> Other | B40: ='2. Operating Budget'!J26 -> 0 | C40: 0
A41: ='8. P&L and Cashflow'!B51 -> Depreciation | B41: ='8. P&L and Cashflow'!C51/12 -> 24.84912698 | C41: 0.01163743639
A42: ='8. P&L and Cashflow'!B52 -> 0 | B42: ='8. P&L and Cashflow'!C52/12 -> 0 | C42: 0

Sheet 11. Balance Sheet
A1: ='0. Basic Info'!D11 -> ACME 5 Year | C1: Pro Forma Balance Sheet
D4: =DAY(DATE(YEAR(D8),MONTH(D8)+1,1)-1) -> 31 | E4: 29 | F4: 31 | G4: 30 | H4: 31 | I4: 30 | J4: 31 | K4: 31 | L4: 30 | M4: 31 | N4: 30 | O4: 31 | P4: =DAY(DATE(YEAR(P6),MONTH(P6)+1,1)-1) -> 31 | Q4: =DAY(DATE(YEAR(Q8),MONTH(Q8)+1,1)-1) -> 31 | R4: 28 | S4: 31 | T4: 30 | U4: 31 | V4: 30 | W4: 31 | X4: 31 | Y4: 30 | Z4: 31 | AA4: 30 | AB4: 31 | AC4: 31 | AD4: 31 | AE4: 31 | AF4: 31
B8: ASSETS | C8: Starting Balance | D8: =DATEVALUE('0. Basic Info'!D17&"/1/"&'0. Basic Info'!D16) -> 2016-01-01 | E8: =D8+D4 -> 2016-02-01 | F8: 2016-03-01 | G8: 2016-04-01 | H8: 2016-05-01 | I8: 2016-06-01 | J8: 2016-07-01 | K8: 2016-08-01 | L8: 2016-09-01 | M8: 2016-10-01 | N8: 2016-11-01 | O8: 2016-12-01 | P8: =IF('0. Basic Info'!$D$17=1,'0. Basic Info'!$D$16,"Year 1") -> 2016 | Q8: =O8+O4 -> 2017-01-01 | R8: =Q8+Q4 -> 2017-02-01 | S8: 2017-03-01 | T8: 2017-04-01 | U8: 2017-05-01 | V8: 2017-06-01 | W8: 2017-07-01 | X8: 2017-08-01 | Y8: 2017-09-01 | Z8: 2017-10-01 | AA8: 2017-11-01 | AB8: 2017-12-01 | AC8: =IF('0. Basic Info'!$D$17=1,'0. Basic Info'!$D$16+1,"Year 2") -> 2017 | AD8: =IF('0. Basic Info'!$D$17=1,'0. Basic Info'!$D$16+2,"Year 3") -> 2018 | AE8: =IF('0. Basic Info'!$D$17=1,'0. Basic Info'!$D$16+3,"Year 4") -> 2019 | AF8: =IF('0. Basic Info'!$D$17=1,'0. Basic Info'!$D$16+4,"Year 5") -> 2020
B9: Current Assets
B10: Cash | C10: 0 | D10: ='8. P&L and Cashflow'!D79 -> 8058.802812 | E10: ='8. P&L and Cashflow'!E79 -> 9219.076904 | F10: ='8. P&L and Cashflow'!F79 -> 10565.36166 | G10: ='8. P&L and Cashflow'!G79 -> 10518.34552 | H10: ='8. P&L and Cashflow'!H79 -> 10471.24766 | I10: ='8. P&L and Cashflow'!I79 -> 10424.06763 | J10: ='8. P&L and Cashflow'!J79 -> 10376.80499 | K10: ='8. P&L and Cashflow'!K79 -> 10329.4593 | L10: ='8. P&L and Cashflow'!L79 -> 10282.0301 | M10: ='8. P&L and Cashflow'!M79 -> 10234.51694 | N10: ='8. P&L and Cashflow'!N79 -> 10186.91936 | O10: ='8. P&L and Cashflow'!O79 -> 10139.23691 | P10: =O10 -> 10139.23691 | Q10: ='8. P&L and Cashflow'!Q65 -> 10139.23691 | R10: ='8. P&L and Cashflow'!R79 -> 10462.91033 | S10: ='8. P&L and Cashflow'!S79 -> 10624.61788 | T10: ='8. P&L and Cashflow'!T79 -> 10786.2387 | U10: ='8. P&L and Cashflow'!U79 -> 10947.77233 | V10: ='8. P&L and Cashflow'!V79 -> 11109.2183 | W10: ='8. P&L and Cashflow'!W79 -> 11270.57612 | X10: ='8. P&L and Cashflow'!X79 -> 11431.84531 | Y10: ='8. P&L and Cashflow'!Y79 -> 11593.02541 | Z10: ='8. P&L and Cashflow'!Z79 -> 11754.11593 | AA10: ='8. P&L and Cashflow'!AA79 -> 11915.11638 | AB10: ='8. P&L and Cashflow'!AB79 -> 12076.02627 | AC10: =AB10 -> 12076.02627 | AD10: ='8. P&L and Cashflow'!AD79 -> 16274.54917 | AE10: ='8. P&L and Cashflow'!AE79 -> 26319.9543 | AF10: ='8. P&L and Cashflow'!AF79 -> 39589.4889
B11: Accounts Receivable | C11: 0 | D11: 0 | E11: 0 | F11: 0 | G11: 0 | H11: 0 | I11: 0 | J11: 0 | K11: 0 | L11: 0 | M11: 0 | N11: 0 | O11: 0 | P11: 0 | Q11: 0 | R11: 0 | S11: 0 | T11: 0 | U11: 0 | V11: 0 | W11: 0 | X11: 0 | Y11: 0 | Z11: 0 | AA11: 0 | AB11: 0 | AC11: 0 | AD11: 0 | AE11: 0 | AF11: 0
B12: Inventory | C12: 0 | D12: ='8. P&L and Cashflow'!D73 -> 0 | E12: ='8. P&L and Cashflow'!E73 -> 0 | F12: ='8. P&L and Cashflow'!F73 -> 0 | G12: ='8. P&L and Cashflow'!G73 -> 0 | H12: ='8. P&L and Cashflow'!H73 -> 0 | I12: ='8. P&L and Cashflow'!I73 -> 0 | J12: ='8. P&L and Cashflow'!J73 -> 0 | K12: ='8. P&L and Cashflow'!K73 -> 0 | L12: ='8. P&L and Cashflow'!L73 -> 0 | M12: ='8. P&L and Cashflow'!M73 -> 0 | N12: ='8. P&L and Cashflow'!N73 -> 0 | O12: ='8. P&L and Cashflow'!O73 -> 0 | P12: =O12 -> 0 | Q12: ='8. P&L and Cashflow'!Q73 -> 0 | R12: ='8. P&L and Cashflow'!R73 -> 0 | S12: ='8. P&L and Cashflow'!S73 -> 0 | T12: ='8. P&L and Cashflow'!T73 -> 0 | U12: ='8. P&L and Cashflow'!U73 -> 0 | V12: ='8. P&L and Cashflow'!V73 -> 0 | W12: ='8. P&L and Cashflow'!W73 -> 0 | X12: ='8. P&L and Cashflow'!X73 -> 0 | Y12: ='8. P&L and Cashflow'!Y73 -> 0 | Z12: ='8. P&L and Cashflow'!Z73 -> 0 | AA12: ='8. P&L and Cashflow'!AA73 -> 0 | AB12: ='8. P&L and Cashflow'!AB73 -> 0 | AC12: ='8. P&L and Cashflow'!AC73 -> 0 | AD12: ='8. P&L and Cashflow'!AD73 -> 0 | AE12: ='8. P&L and Cashflow'!AE73 -> 0 | AF12: ='8. P&L and Cashflow'!AF73 -> 0
B13: Other Current Assets | C13: 0 | D13: 0 | E13: 0 | F13: 0 | G13: 0 | H13: 0 | I13: 0 | J13: 0 | K13: 0 | L13: 0 | M13: 0 | N13: 0 | O13: 0 | P13: 0 | Q13: 0 | R13: 0 | S13: 0 | T13: 0 | U13: 0 | V13: 0 | W13: 0 | X13: 0 | Y13: 0 | Z13: 0 | AA13: 0 | AB13: 0 | AC13: 0 | AD13: 0 | AE13: 0 | AF13: 0
B14: Total Current Assets | C14: =SUM(C10:C13) -> 0 | D14: =SUM(D10:D13) -> 8058.802812 | E14: 9219.076904 | F14: 10565.36166 | G14: 10518.34552 | H14: 10471.24766 | I14: 10424.06763 | J14: 10376.80499 | K14: 10329.4593 | L14: 10282.0301 | M14: 10234.51694 | N14: 10186.91936 | O14: 10139.23691 | P14: 10139.23691 | Q14: 10139.23691 | R14: 10462.91033 | S14: 10624.61788 | T14: 10786.2387 | U14: 10947.77233 | V14: 11109.2183 | W14: 11270.57612 | X14: 11431.84531 | Y14: 11593.02541 | Z14: 11754.11593 | AA14: 11915.11638 | AB14: 12076.02627 | AC14: 12076.02627 | AD14: 16274.54917 | AE14: 26319.9543 | AF14: 39589.4889
B15: Long-term Assets
B16: Long-term Assets | C16: ='7. Funding Plan'!C7+'7. Funding Plan'!C8 -> 2479.7 | D16: =C16 -> 2479.7 | E16: =D16 -> 2479.7 | F16: 2479.7 | G16: 2479.7 | H16: 2479.7 | I16: 2479.7 | J16: 2479.7 | K16: 2479.7 | L16: 2479.7 | M16: 2479.7 | N16: 2479.7 | O16: 2479.7 | P16: 2479.7 | Q16: 2479.7 | R16: 2479.7 | S16: 2479.7 | T16: 2479.7 | U16: 2479.7 | V16: 2479.7 | W16: 2479.7 | X16: 2479.7 | Y16: 2479.7 | Z16: 2479.7 | AA16: 2479.7 | AB16: 2479.7 | AC16: 2479.7 | AD16: 2479.7 | AE16: 2479.7 | AF16: 2479.7
B17: Accumulated Depreciation | C17: =0 -> 0 | D17: ='8. P&L and Cashflow'!D51 -> 24.84912698 | E17: =D17+'8. P&L and Cashflow'!E51 -> 49.69825397 | F17: =E17+'8. P&L and Cashflow'!F51 -> 74.54738095 | G17: =F17+'8. P&L and Cashflow'!G51 -> 99.39650794 | H17: =G17+'8. P&L and Cashflow'!H51 -> 124.2456349 | I17: =H17+'8. P&L and Cashflow'!I51 -> 149.0947619 | J17: =I17+'8. P&L and Cashflow'!J51 -> 173.9438889 | K17: =J17+'8. P&L and Cashflow'!K51 -> 198.7930159 | L17: =K17+'8. P&L and Cashflow'!L51 -> 223.6421429 | M17: =L17+'8. P&L and Cashflow'!M51 -> 248.4912698 | N17: =M17+'8. P&L and Cashflow'!N51 -> 273.3403968 | O17: =N17+'8. P&L and Cashflow'!O51 -> 298.1895238 | P17: =O17 -> 298.1895238 | Q17: ='8. P&L and Cashflow'!Q51+P17 -> 323.0386508 | R17: =Q17+'8. P&L and Cashflow'!R51 -> 347.8877778 | S17: =R17+'8. P&L and Cashflow'!S51 -> 372.7369048 | T17: =S17+'8. P&L and Cashflow'!T51 -> 397.5860317 | U17: =T17+'8. P&L and Cashflow'!U51 -> 422.4351587 | V17: =U17+'8. P&L and Cashflow'!V51 -> 447.2842857 | W17: =V17+'8. P&L and Cashflow'!W51 -> 472.1334127 | X17: =W17+'8. P&L and Cashflow'!X51 -> 496.9825397 | Y17: =X17+'8. P&L and Cashflow'!Y51 -> 521.8316667 | Z17: =Y17+'8. P&L and Cashflow'!Z51 -> 546.6807937 | AA17: =Z17+'8. P&L and Cashflow'!AA51 -> 571.5299206 | AB17: =AA17+'8. P&L and Cashflow'!AB51 -> 596.3790476 | AC17: =AB17 -> 596.3790476 | AD17: ='8. P&L and Cashflow'!AD51+AC17 -> 894.5685714 | AE17: ='8. P&L and Cashflow'!AE51+AD17 -> 1192.758095 | AF17: ='8. P&L and Cashflow'!AF51+AE17 -> 1490.947619
B18: Total Long-term Assets | C18: =C16-C17 -> 2479.7 | D18: 2454.850873 | E18: 2430.001746 | F18: 2405.152619 | G18: 2380.303492 | H18: 2355.454365 | I18: 2330.605238 | J18: 2305.756111 | K18: 2280.906984 | L18: 2256.057857 | M18: 2231.20873 | N18: 2206.359603 | O18: 2181.510476 | P18: 2181.510476 | Q18: 2156.661349 | R18: 2131.812222 | S18: 2106.963095 | T18: 2082.113968 | U18: 2057.264841 | V18: 2032.415714 | W18: 2007.566587 | X18: 1982.71746 | Y18: 1957.868333 | Z18: 1933.019206 | AA18: 1908.170079 | AB18: 1883.320952 | AC18: 1883.320952 | AD18: 1585.131429 | AE18: 1286.941905 | AF18: 988.752381
B19: Total Assets | C19: =C18+C14 -> 2479.7 | D19: 10513.65368 | E19: 11649.07865 | F19: 12970.51428 | G19: 12898.64901 | H19: 12826.70202 | I19: 12754.67287 | J19: 12682.56111 | K19: 12610.36628 | L19: 12538.08795 | M19: 12465.72567 | N19: 12393.27896 | O19: 12320.74739 | P19: 12320.74739 | Q19: 12295.89826 | R19: 12594.72255 | S19: 12731.58097 | T19: 12868.35267 | U19: 13005.03717 | V19: 13141.63401 | W19: 13278.1427 | X19: 13414.56277 | Y19: 13550.89375 | Z19: 13687.13514 | AA19: 13823.28646 | AB19: 13959.34722 | AC19: 13959.34722 | AD19: 17859.6806 | AE19: 27606.8962 | AF19: 40578.24128
B21: LIABILITIES AND CAPITAL | D21: =D8 -> 2016-01-01 | E21: 2016-02-01 | F21: 2016-03-01 | G21: 2016-04-01 | H21: 2016-05-01 | I21: 2016-06-01 | J21: 2016-07-01 | K21: 2016-08-01 | L21: 2016-09-01 | M21: 2016-10-01 | N21: 2016-11-01 | O21: 2016-12-01 | P21: 2016 | Q21: 2017-01-01 | R21: 2017-02-01 | S21: 2017-03-01 | T21: 2017-04-01 | U21: 2017-05-01 | V21: 2017-06-01 | W21: 2017-07-01 | X21: 2017-08-01 | Y21: 2017-09-01 | Z21: 2017-10-01 | AA21: 2017-11-01 | AB21: 2017-12-01 | AC21: 2017 | AD21: 2018 | AE21: 2019 | AF21: 2020
B22: Liabilities
B23: Accounts Payable | C23: 0 | D23: 0 | E23: 0 | F23: 0 | G23: 0 | H23: 0 | I23: 0 | J23: 0 | K23: 0 | L23: 0 | M23: 0 | N23: 0 | O23: 0 | P23: 0 | Q23: 0 | R23: 0 | S23: 0 | T23: 0 | U23: 0 | V23: 0 | W23: 0 | X23: 0 | Y23: 0 | Z23: 0 | AA23: 0 | AB23: 0 | AC23: 0 | AD23: 0 | AE23: 0 | AF23: 0
B24: Current Borrowing | C24: ='7. Funding Plan'!C18 -> 0 | D24: ='8. P&L and Cashflow'!D80 -> 0 | E24: ='8. P&L and Cashflow'!E80 -> 1200 | F24: ='8. P&L and Cashflow'!F80 -> 600 | G24: ='8. P&L and Cashflow'!G80 -> 600 | H24: ='8. P&L and Cashflow'!H80 -> 600 | I24: ='8. P&L and Cashflow'!I80 -> 600 | J24: ='8. P&L and Cashflow'!J80 -> 600 | K24: ='8. P&L and Cashflow'!K80 -> 600 | L24: ='8. P&L and Cashflow'!L80 -> 600 | M24: ='8. P&L and Cashflow'!M80 -> 600 | N24: ='8. P&L and Cashflow'!N80 -> 600 | O24: ='8. P&L and Cashflow'!O80 -> 600 | P24: ='8. P&L and Cashflow'!P80 -> 600 | Q24: ='8. P&L and Cashflow'!Q80 -> 600 | R24: ='8. P&L and Cashflow'!R80 -> 600 | S24: ='8. P&L and Cashflow'!S80 -> 600 | T24: ='8. P&L and Cashflow'!T80 -> 600 | U24: ='8. P&L and Cashflow'!U80 -> 600 | V24: ='8. P&L and Cashflow'!V80 -> 600 | W24: ='8. P&L and Cashflow'!W80 -> 600 | X24: ='8. P&L and Cashflow'!X80 -> 600 | Y24: ='8. P&L and Cashflow'!Y80 -> 600 | Z24: ='8. P&L and Cashflow'!Z80 -> 600 | AA24: ='8. P&L and Cashflow'!AA80 -> 600 | AB24: ='8. P&L and Cashflow'!AB80 -> 600 | AC24: ='8. P&L and Cashflow'!AC80 -> 600 | AD24: ='8. P&L and Cashflow'!AD80 -> 600 | AE24: ='8. P&L and Cashflow'!AE80 -> 600 | AF24: ='8. P&L and Cashflow'!AF80 -> 600
B25: Other Current Liabilities | C25: 0 | D25: 0 | E25: 0 | F25: 0 | G25: 0 | H25: 0 | I25: 0 | J25: 0 | K25: 0 | L25: 0 | M25: 0 | N25: 0 | O25: 0 | P25: 0 | Q25: 0 | R25: 0 | S25: 0 | T25: 0 | U25: 0 | V25: 0 | W25: 0 | X25: 0 | Y25: 0 | Z25: 0 | AA25: 0 | AB25: 0 | AC25: 0 | AD25: 0 | AE25: 0 | AF25: 0
B26: Subtotal Current Liabilities | C26: =SUM(C23:C25) -> 0 | D26: =SUM(D23:D25) -> 0 | E26: 1200 | F26: 600 | G26: 600 | H26: 600 | I26: 600 | J26: 600 | K26: 600 | L26: 600 | M26: 600 | N26: 600 | O26: 600 | P26: 600 | Q26: 600 | R26: 600 | S26: 600 | T26: 600 | U26: 600 | V26: 600 | W26: 600 | X26: 600 | Y26: 600 | Z26: 600 | AA26: 600 | AB26: 600 | AC26: 600 | AD26: 600 | AE26: 600 | AF26: 600
B28: Long-term Liabilities | C28: 0 | D28: ='12. Loan Detail'!D31 -> 7880.996562 | E28: ='12. Loan Detail'!E31 -> 7675.888105 | F28: ='12. Loan Detail'!F31 -> 7469.668644 | G28: ='12. Loan Detail'!G31 -> 7262.332161 | H28: ='12. Loan Detail'!H31 -> 7053.872605 | I28: ='12. Loan Detail'!I31 -> 6844.283893 | J28: ='12. Loan Detail'!J31 -> 6633.55991 | K28: ='12. Loan Detail'!K31 -> 6421.694504 | L28: ='12. Loan Detail'!L31 -> 6208.681494 | M28: ='12. Loan Detail'!M31 -> 5994.514664 | N28: ='12. Loan Detail'!N31 -> 5779.187764 | O28: ='12. Loan Detail'!O31 -> 5562.694509 | P28: ='12. Loan Detail'!P31 -> 5562.694509 | Q28: ='12. Loan Detail'!Q31 -> 5345.028583 | R28: ='12. Loan Detail'!R31 -> 5126.183633 | S28: ='12. Loan Detail'!S31 -> 4906.153273 | T28: ='12. Loan Detail'!T31 -> 4684.931081 | U28: ='12. Loan Detail'!U31 -> 4462.510603 | V28: ='12. Loan Detail'!V31 -> 4238.885347 | W28: ='12. Loan Detail'!W31 -> 4014.048788 | X28: ='12. Loan Detail'!X31 -> 3787.994364 | Y28: ='12. Loan Detail'!Y31 -> 3560.715478 | Z28: ='12. Loan Detail'!Z31 -> 3332.205499 | AA28: ='12. Loan Detail'!AA31 -> 3102.457757 | AB28: ='12. Loan Detail'!AB31 -> 2871.465548 | AC28: ='12. Loan Detail'!AC31 -> 2871.465548 | AD28: ='12. Loan Detail'!AP31 -> 0 | AE28: ='12. Loan Detail'!BC31 -> 0 | AF28: ='12. Loan Detail'!BP31 -> 0
B29: Total Liabilities | C29: =C26+C28 -> 0 | D29: 7880.996562 | E29: 8875.888105 | F29: 8069.668644 | G29: 7862.332161 | H29: 7653.872605 | I29: 7444.283893 | J29: 7233.55991 | K29: 7021.694504 | L29: 6808.681494 | M29: 6594.514664 | N29: 6379.187764 | O29: 6162.694509 | P29: 6162.694509 | Q29: 5945.028583 | R29: 5726.183633 | S29: 5506.153273 | T29: 5284.931081 | U29: 5062.510603 | V29: 4838.885347 | W29: 4614.048788 | X29: 4387.994364 | Y29: 4160.715478 | Z29: 3932.205499 | AA29: 3702.457757 | AB29: 3471.465548 | AC29: 3471.465548 | AD29: 600 | AE29: 600 | AF29: 600
B30: Capital
B31: Paid-in Capital | C31: ='7. Funding Plan'!C16 -> 1610 | D31: =C31+'8. P&L and Cashflow'!D67+'8. P&L and Cashflow'!D68 -> 2610 | E31: =D31+'8. P&L and Cashflow'!E67+'8. P&L and Cashflow'!E68 -> 2610 | F31: =E31+'8. P&L and Cashflow'!F67+'8. P&L and Cashflow'!F68 -> 4610 | G31: =F31+'8. P&L and Cashflow'!G67+'8. P&L and Cashflow'!G68 -> 4610 | H31: =G31+'8. P&L and Cashflow'!H67+'8. P&L and Cashflow'!H68 -> 4610 | I31: =H31+'8. P&L and Cashflow'!I67+'8. P&L and Cashflow'!I68 -> 4610 | J31: =I31+'8. P&L and Cashflow'!J67+'8. P&L and Cashflow'!J68 -> 4610 | K31: =J31+'8. P&L and Cashflow'!K67+'8. P&L and Cashflow'!K68 -> 4610 | L31: =K31+'8. P&L and Cashflow'!L67+'8. P&L and Cashflow'!L68 -> 4610 | M31: =L31+'8. P&L and Cashflow'!M67+'8. P&L and Cashflow'!M68 -> 4610 | N31: =M31+'8. P&L and Cashflow'!N67+'8. P&L and Cashflow'!N68 -> 4610 | O31: =N31+'8. P&L and Cashflow'!O67+'8. P&L and Cashflow'!O68 -> 4610 | P31: =O31 -> 4610 | Q31: =P31+'8. P&L and Cashflow'!Q67+'8. P&L and Cashflow'!Q68 -> 4610 | R31: =Q31+'8. P&L and Cashflow'!R67+'8. P&L and Cashflow'!R68 -> 4610 | S31: =R31+'8. P&L and Cashflow'!S67+'8. P&L and Cashflow'!S68 -> 4610 | T31: =S31+'8. P&L and Cashflow'!T67+'8. P&L and Cashflow'!T68 -> 4610 | U31: =T31+'8. P&L and Cashflow'!U67+'8. P&L and Cashflow'!U68 -> 4610 | V31: =U31+'8. P&L and Cashflow'!V67+'8. P&L and Cashflow'!V68 -> 4610 | W31: =V31+'8. P&L and Cashflow'!W67+'8. P&L and Cashflow'!W68 -> 4610 | X31: =W31+'8. P&L and Cashflow'!X67+'8. P&L and Cashflow'!X68 -> 4610 | Y31: =X31+'8. P&L and Cashflow'!Y67+'8. P&L and Cashflow'!Y68 -> 4610 | Z31: =Y31+'8. P&L and Cashflow'!Z67+'8. P&L and Cashflow'!Z68 -> 4610 | AA31: =Z31+'8. P&L and Cashflow'!AA67+'8. P&L and Cashflow'!AA68 -> 4610 | AB31: =AA31+'8. P&L and Cashflow'!AB67+'8. P&L and Cashflow'!AB68 -> 4610 | AC31: =AB31+'8. P&L and Cashflow'!AC67+'8. P&L and Cashflow'!AC68 -> 4610 | AD31: =AC31+'8. P&L and Cashflow'!AD67+'8. P&L and Cashflow'!AD68 -> 4610 | AE31: =AD31+'8. P&L and Cashflow'!AE67+'8. P&L and Cashflow'!AE68 -> 4610 | AF31: =AE31+'8. P&L and Cashflow'!AF67+'8. P&L and Cashflow'!AF68 -> 4610
B32: Retained Earnings | C32: =C19-C26-C28-C31-C33 -> 869.7 | D32: =C32+C33-'8. P&L and Cashflow'!D72 -> 869.7 | E32: =D32+D33-'8. P&L and Cashflow'!E72 -> 22.65712302 | F32: =E32+E33-'8. P&L and Cashflow'!F72 -> 163.1905451 | G32: =F32+F33-'8. P&L and Cashflow'!G72 -> 290.8456316 | H32: =G32+G33-'8. P&L and Cashflow'!H72 -> 426.3168494 | I32: =H32+H33-'8. P&L and Cashflow'!I72 -> 562.8294171 | J32: =I32+I33-'8. P&L and Cashflow'!J72 -> 700.3889756 | K32: =J32+J33-'8. P&L and Cashflow'!K72 -> 839.0011958 | L32: =K32+K33-'8. P&L and Cashflow'!L72 -> 978.6717799 | M32: =L32+L33-'8. P&L and Cashflow'!M72 -> 1119.40646 | N32: =M32+M33-'8. P&L and Cashflow'!N72 -> 1261.211002 | O32: =N32+N33-'8. P&L and Cashflow'!O72 -> 1404.091198 | P32: =D32 -> 869.7 | Q32: =P32+P33 -> 1548.052877 | R32: =Q32+Q33-'8. P&L and Cashflow'!R72 -> 1902.749281 | S32: =R32+R33-'8. P&L and Cashflow'!S72 -> 2258.538915 | T32: =S32+S33-'8. P&L and Cashflow'!T72 -> 2615.4277 | U32: =T32+T33-'8. P&L and Cashflow'!U72 -> 2973.42159 | V32: =U32+U33-'8. P&L and Cashflow'!V72 -> 3332.526572 | W32: =V32+V33-'8. P&L and Cashflow'!W72 -> 3692.748663 | X32: =W32+W33-'8. P&L and Cashflow'!X72 -> 4054.093915 | Y32: =X32+X33-'8. P&L and Cashflow'!Y72 -> 4416.568411 | Z32: =Y32+Y33-'8. P&L and Cashflow'!Z72 -> 4780.178268 | AA32: =Z32+Z33-'8. P&L and Cashflow'!AA72 -> 5144.929636 | AB32: =AA32+AA33-'8. P&L and Cashflow'!AB72 -> 5510.828698 | AC32: =Q32 -> 1548.052877 | AD32: =AC32+AC33 -> 5877.881671 | AE32: =AD32+AD33 -> 12649.6806 | AF32: 22396.8962
B33: Earnings | C33: 0 | D33: ='8. P&L and Cashflow'!D60 -> -847.042877 | E33: ='8. P&L and Cashflow'!E60 -> 140.5334221 | F33: ='8. P&L and Cashflow'!F60 -> 127.6550865 | G33: ='8. P&L and Cashflow'!G60 -> 135.4712177 | H33: ='8. P&L and Cashflow'!H60 -> 136.5125678 | I33: ='8. P&L and Cashflow'!I60 -> 137.5595584 | J33: ='8. P&L and Cashflow'!J60 -> 138.6122203 | K33: ='8. P&L and Cashflow'!K60 -> 139.670584 | L33: ='8. P&L and Cashflow'!L60 -> 140.7346806 | M33: ='8. P&L and Cashflow'!M60 -> 141.8045411 | N33: ='8. P&L and Cashflow'!N60 -> 142.8801966 | O33: ='8. P&L and Cashflow'!O60 -> 143.9616786 | P33: =SUM(D33:O33) -> 678.3528767 | Q33: ='8. P&L and Cashflow'!Q60 -> 354.6964041 | R33: ='8. P&L and Cashflow'!R60 -> 355.7896338 | S33: ='8. P&L and Cashflow'!S60 -> 356.8887853 | T33: ='8. P&L and Cashflow'!T60 -> 357.9938904 | U33: ='8. P&L and Cashflow'!U60 -> 359.1049816 | V33: ='8. P&L and Cashflow'!V60 -> 360.2220911 | W33: ='8. P&L and Cashflow'!W60 -> 361.3452517 | X33: ='8. P&L and Cashflow'!X60 -> 362.4744961 | Y33: ='8. P&L and Cashflow'!Y60 -> 363.6098572 | Z33: ='8. P&L and Cashflow'!Z60 -> 364.7513681 | AA33: ='8. P&L and Cashflow'!AA60 -> 365.8990623 | AB33: ='8. P&L and Cashflow'!AB60 -> 367.0529731 | AC33: =SUM(Q33:AB33) -> 4329.828795 | AD33: ='8. P&L and Cashflow'!AD60 -> 6771.798926 | AE33: ='8. P&L and Cashflow'!AE60 -> 9747.215605 | AF33: ='8. P&L and Cashflow'!AF60 -> 12971.34508
B34: Total Capital | C34: =C31+C32+C33 -> 2479.7 | D34: =SUM(D31:D33) -> 2632.657123 | E34: =SUM(E31:E33) -> 2773.190545 | F34: 4900.845632 | G34: 5036.316849 | H34: 5172.829417 | I34: 5310.388976 | J34: 5449.001196 | K34: 5588.67178 | L34: 5729.40646 | M34: 5871.211002 | N34: 6014.091198 | O34: 6158.052877 | P34: 6158.052877 | Q34: 6512.749281 | R34: 6868.538915 | S34: 7225.4277 | T34: 7583.42159 | U34: 7942.526572 | V34: 8302.748663 | W34: 8664.093915 | X34: 9026.568411 | Y34: 9390.178268 | Z34: 9754.929636 | AA34: 10120.8287 | AB34: 10487.88167 | AC34: 10487.88167 | AD34: 17259.6806 | AE34: 27006.8962 | AF34: 39978.24128
B35: Total Liabilities and Capital | C35: =C26+C28+C31+C32+C33 -> 2479.7 | D35: =D34+D29 -> 10513.65368 | E35: 11649.07865 | F35: 12970.51428 | G35: 12898.64901 | H35: 12826.70202 | I35: 12754.67287 | J35: 12682.56111 | K35: 12610.36628 | L35: 12538.08795 | M35: 12465.72567 | N35: 12393.27896 | O35: 12320.74739 | P35: 12320.74739 | Q35: 12457.77786 | R35: 12594.72255 | S35: 12731.58097 | T35: 12868.35267 | U35: 13005.03717 | V35: 13141.63401 | W35: 13278.1427 | X35: 13414.56277 | Y35: 13550.89375 | Z35: 13687.13514 | AA35: 13823.28646 | AB35: 13959.34722 | AC35: 13959.34722 | AD35: 17859.6806 | AE35: 27606.8962 | AF35: 40578.24128
B36: Net Worth | C36: =C19-C29 -> 2479.7 | D36: 2632.657123 | E36: 2773.190545 | F36: 4900.845632 | G36: 5036.316849 | H36: 5172.829417 | I36: 5310.388976 | J36: 5449.001196 | K36: 5588.67178 | L36: 5729.40646 | M36: 5871.211002 | N36: 6014.091198 | O36: 6158.052877 | P36: 6158.052877 | Q36: 6350.869676 | R36: 6868.538915 | S36: 7225.4277 | T36: 7583.42159 | U36: 7942.526572 | V36: 8302.748663 | W36: 8664.093915 | X36: 9026.568411 | Y36: 9390.178268 | Z36: 9754.929636 | AA36: 10120.8287 | AB36: 10487.88167 | AC36: 10487.88167 | AD36: 17259.6806 | AE36: 27006.8962 | AF36: 39978.24128
C37: =IF(ROUND(C35-C19,0)<>0,"Checkline Problem"," ") ->  | Q37: Checkline Problem
D38: =D19-D35 -> 0 | E38: =E19-E35 -> 0 | F38: 0 | G38: 0 | H38: 0 | I38: 0 | J38: 0 | K38: 0 | L38: 0 | M38: 0 | N38: 0 | O38: 0 | P38: 0 | Q38: -161.8796047 | R38: 0 | S38: 0 | T38: 0 | U38: 0 | V38: 0 | W38: 0 | X38: 0 | Y38: 0 | Z38: 0 | AA38: 0 | AB38: 0 | AC38: 0 | AD38: 0 | AE38: 0 | AF38: 0

Sheet 12. Loan Detail
A1: Loan Ammortization
A2: ='0. Basic Info'!D11 -> ACME 5 Year | D2: 1 | E2: 2 | F2: 3 | G2: 4 | H2: 5 | I2: 6 | J2: 7 | K2: 8 | L2: 9 | M2: 10 | N2: 11 | O2: 12 | Q2: 13 | R2: 14 | S2: 15 | T2: 16 | U2: 17 | V2: 18 | W2: 19 | X2: 20 | Y2: 21 | Z2: 22 | AA2: 23 | AB2: 24 | AD2: 25 | AE2: 26 | AF2: 27 | AG2: 28 | AH2: 29 | AI2: 30 | AJ2: 31 | AK2: 32 | AL2: 33 | AM2: 34 | AN2: 35 | AO2: 36 | AQ2: 37 | AR2: 38 | AS2: 39 | AT2: 40 | AU2: 41 | AV2: 42 | AW2: 43 | AX2: 44 | AY2: 45 | AZ2: 46 | BA2: 47 | BB2: 48 | BD2: 49 | BE2: 50 | BF2: 51 | BG2: 52 | BH2: 53 | BI2: 54 | BJ2: 55 | BK2: 56 | BL2: 57 | BM2: 58 | BN2: 59 | BO2: 60
A3: ='7. Funding Plan'!A22 -> Term Loan 1 | D3: =DATE('0. Basic Info'!D16,'0. Basic Info'!D17,1) -> 2016-01-01 | E3: =D3+31 -> 2016-02-01 | F3: =E3+31 -> 2016-03-03 | G3: =F3+31 -> 2016-04-03 | H3: =G3+31 -> 2016-05-04 | I3: 2016-06-04 | J3: 2016-07-05 | K3: 2016-08-05 | L3: 2016-09-05 | M3: 2016-10-06 | N3: 2016-11-06 | O3: 2016-12-07 | P3: =IF('0. Basic Info'!$D17=1,'0. Basic Info'!$D16,"Year 1") -> 2016 | Q3: =D3 -> 2016-01-01 | R3: =Q3+31 -> 2016-02-01 | S3: =R3+31 -> 2016-03-03 | T3: =S3+31 -> 2016-04-03 | U3: =T3+31 -> 2016-05-04 | V3: 2016-06-04 | W3: 2016-07-05 | X3: 2016-08-05 | Y3: 2016-09-05 | Z3: 2016-10-06 | AA3: 2016-11-06 | AB3: 2016-12-07 | AC3: =IF('0. Basic Info'!$D17=1,'0. Basic Info'!$D16+1,"Year 2") -> 2017 | AD3: =Q3 -> 2016-01-01 | AE3: =AD3+31 -> 2016-02-01 | AF3: =AE3+31 -> 2016-03-03 | AG3: =AF3+31 -> 2016-04-03 | AH3: =AG3+31 -> 2016-05-04 | AI3: 2016-06-04 | AJ3: 2016-07-05 | AK3: 2016-08-05 | AL3: 2016-09-05 | AM3: 2016-10-06 | AN3: 2016-11-06 | AO3: 2016-12-07 | AP3: =IF('0. Basic Info'!$D17=1,'0. Basic Info'!$D16+2,"Year 3") -> 2018 | AQ3: =AD3 -> 2016-01-01 | AR3: =AQ3+31 -> 2016-02-01 | AS3: =AR3+31 -> 2016-03-03 | AT3: =AS3+31 -> 2016-04-03 | AU3: =AT3+31 -> 2016-05-04 | AV3: 2016-06-04 | AW3: 2016-07-05 | AX3: 2016-08-05 | AY3: 2016-09-05 | AZ3: 2016-10-06 | BA3: 2016-11-06 | BB3: 2016-12-07 | BC3: =IF('0. Basic Info'!$D17=1,'0. Basic Info'!$D16+3,"Year 4") -> 2019 | BD3: =AQ3 -> 2016-01-01 | BE3: =BD3+31 -> 2016-02-01 | BF3: =BE3+31 -> 2016-03-03 | BG3: =BF3+31 -> 2016-04-03 | BH3: =BG3+31 -> 2016-05-04 | BI3: 2016-06-04 | BJ3: 2016-07-05 | BK3: 2016-08-05 | BL3: 2016-09-05 | BM3: 2016-10-06 | BN3: 2016-11-06 | BO3: 2016-12-07 | BP3: =IF('0. Basic Info'!$D17=1,'0. Basic Info'!$D16+4,"Year 5") -> 2020
A4: ='7. Funding Plan'!C22 -> 8085 | B4: Amount | C4: Balance | D4: =A4 -> 8085 | E4: =D8 -> 7880.996562 | F4: =E8 -> 7675.888105 | G4: 7469.668644 | H4: 7262.332161 | I4: 7053.872605 | J4: 6844.283893 | K4: 6633.55991 | L4: 6421.694504 | M4: 6208.681494 | N4: 5994.514664 | O4: 5779.187764 | P4: =D4 -> 8085 | Q4: =O8 -> 5562.694509 | R4: =Q8 -> 5345.028583 | S4: =R8 -> 5126.183633 | T4: 4906.153273 | U4: 4684.931081 | V4: 4462.510603 | W4: 4238.885347 | X4: 4014.048788 | Y4: 3787.994364 | Z4: 3560.715478 | AA4: 3332.205499 | AB4: 3102.457757 | AC4: =Q4 -> 5562.694509 | AD4: =IF(AB8<0.1,0,AB8) -> 2871.465548 | AE4: =AD8 -> 2639.222132 | AF4: =AE8 -> 2405.72073 | AG4: 2170.954529 | AH4: 1934.916678 | AI4: 1697.600288 | AJ4: 1458.998435 | AK4: 1219.104155 | AL4: 977.9104476 | AM4: 735.4102743 | AN4: 491.5965583 | AO4: 246.4621848 | AP4: =AO4 -> 246.4621848 | AQ4: =IF(AO8<0.1,0,AO8) -> 0 | AR4: =AQ8 -> 0 | AS4: =AR8 -> 0 | AT4: 0 | AU4: 0 | AV4: 0 | AW4: 0 | AX4: 0 | AY4: 0 | AZ4: 0 | BA4: 0 | BB4: 0 | BC4: =BB4 -> 0 | BD4: =IF(BB8<0.1,0,BB8) -> 0 | BE4: =BD8 -> 0 | BF4: =BE8 -> 0 | BG4: 0 | BH4: 0 | BI4: 0 | BJ4: 0 | BK4: 0 | BL4: 0 | BM4: 0 | BN4: 0 | BO4: 0 | BP4: =BO4 -> 0
A5: ='7. Funding Plan'!D22 -> 0.065 | B5: Interest | C5: Payment | D5: =IF(D4>0,PMT($A5/12,$A6*12,$A4)*-1,0) -> 247.7971883 | E5: =IF(E4>0,PMT($A5/12,$A6*12,$A4)*-1,0) -> 247.7971883 | F5: 247.7971883 | G5: 247.7971883 | H5: 247.7971883 | I5: 247.7971883 | J5: 247.7971883 | K5: 247.7971883 | L5: 247.7971883 | M5: 247.7971883 | N5: 247.7971883 | O5: 247.7971883 | P5: =SUM(D5:O5) -> 2973.566259 | Q5: 247.7971883 | R5: 247.7971883 | S5: 247.7971883 | T5: 247.7971883 | U5: 247.7971883 | V5: 247.7971883 | W5: 247.7971883 | X5: 247.7971883 | Y5: 247.7971883 | Z5: 247.7971883 | AA5: 247.7971883 | AB5: 247.7971883 | AC5: =SUM(Q5:AB5) -> 2973.566259 | AD5: 247.7971883 | AE5: 247.7971883 | AF5: 247.7971883 | AG5: 247.7971883 | AH5: 247.7971883 | AI5: 247.7971883 | AJ5: 247.7971883 | AK5: 247.7971883 | AL5: 247.7971883 | AM5: 247.7971883 | AN5: 247.7971883 | AO5: 247.7971883 | AP5: =SUM(AD5:AO5) -> 2973.566259 | AQ5: 0 | AR5: 0 | AS5: 0 | AT5: 0 | AU5: 0 | AV5: 0 | AW5: 0 | AX5: 0 | AY5: 0 | AZ5: 0 | BA5: 0 | BB5: 0 | BC5: =SUM(AQ5:BB5) -> 0 | BD5: 0 | BE5: 0 | BF5: 0 | BG5: 0 | BH5: 0 | BI5: 0 | BJ5: 0 | BK5: 0 | BL5: 0 | BM5: 0 | BN5: 0 | BO5: 0 | BP5: =SUM(BD5:BO5) -> 0
A6: ='7. Funding Plan'!E22 -> 3 | B6: Term | C6: Interest | D6: =$A5/12*D4 -> 43.79375 | E6: =$A5/12*E4 -> 42.68873138 | F6: =$A5/12*F4 -> 41.57772723 | G6: 40.46070515 | H6: 39.33763254 | I6: 38.20847661 | J6: 37.07320442 | K6: 35.93178284 | L6: 34.78417856 | M6: 33.63035809 | N6: 32.47028776 | O6: 31.30393372 | P6: =SUM(D6:O6) -> 451.2607683 | Q6: =$A5/12*Q4 -> 30.13126193 | R6: 28.95223816 | S6: 27.76682801 | T6: 26.57499689 | U6: 25.37671002 | V6: 24.17193243 | W6: 22.96062896 | X6: 21.74276427 | Y6: 20.5183028 | Z6: 19.28720884 | AA6: 18.04944645 | AB6: 16.80497952 | AC6: =SUM(Q6:AB6) -> 282.3372983 | AD6: =$A5/12*AD4 -> 15.55377172 | AE6: 14.29578655 | AF6: 13.03098729 | AG6: 11.75933703 | AH6: 10.48079867 | AI6: 9.195334896 | AJ6: 7.90290819 | AK6: 6.60348084 | AL6: 5.297014924 | AM6: 3.983472319 | AN6: 2.662814691 | AO6: 1.335003501 | AP6: =SUM(AD6:AO6) -> 102.1007106 | AQ6: =$A5/12*AQ4 -> 0 | AR6: 0 | AS6: 0 | AT6: 0 | AU6: 0 | AV6: 0 | AW6: 0 | AX6: 0 | AY6: 0 | AZ6: 0 | BA6: 0 | BB6: 0 | BC6: =SUM(AQ6:BB6) -> 0 | BD6: =$A5/12*BD4 -> 0 | BE6: 0 | BF6: 0 | BG6: 0 | BH6: 0 | BI6: 0 | BJ6: 0 | BK6: 0 | BL6: 0 | BM6: 0 | BN6: 0 | BO6: 0 | BP6: =SUM(BD6:BO6) -> 0
C7: Principal | D7: =D5-D6 -> 204.0034383 | E7: =E5-E6 -> 205.1084569 | F7: =F5-F6 -> 206.219461 | G7: 207.3364831 | H7: 208.4595557 | I7: 209.5887116 | J7: 210.7239838 | K7: 211.8654054 | L7: 213.0130097 | M7: 214.1668302 | N7: 215.3269005 | O7: 216.4932545 | P7: =SUM(D7:O7) -> 2522.305491 | Q7: =Q5-Q6 -> 217.6659263 | R7: 218.8449501 | S7: 220.0303602 | T7: 221.2221914 | U7: 222.4204782 | V7: 223.6252558 | W7: 224.8365593 | X7: 226.054424 | Y7: 227.2788855 | Z7: 228.5099794 | AA7: 229.7477418 | AB7: 230.9922087 | AC7: =SUM(Q7:AB7) -> 2691.228961 | AD7: =AD5-AD6 -> 232.2434165 | AE7: 233.5014017 | AF7: 234.766201 | AG7: 236.0378512 | AH7: 237.3163896 | AI7: 238.6018534 | AJ7: 239.8942801 | AK7: 241.1937074 | AL7: 242.5001733 | AM7: 243.8137159 | AN7: 245.1343736 | AO7: 246.4621848 | AP7: =SUM(AD7:AO7) -> 2871.465548 | AQ7: =AQ5-AQ6 -> 0 | AR7: 0 | AS7: 0 | AT7: 0 | AU7: 0 | AV7: 0 | AW7: 0 | AX7: 0 | AY7: 0 | AZ7: 0 | BA7: 0 | BB7: 0 | BC7: =SUM(AQ7:BB7) -> 0 | BD7: =BD5-BD6 -> 0 | BE7: 0 | BF7: 0 | BG7: 0 | BH7: 0 | BI7: 0 | BJ7: 0 | BK7: 0 | BL7: 0 | BM7: 0 | BN7: 0 | BO7: 0 | BP7: =SUM(BD7:BO7) -> 0
C8: Ending | D8: =IF(D4-D7<0,0,D4-D7) -> 7880.996562 | E8: =IF(E4-E7<0,0,E4-E7) -> 7675.888105 | F8: 7469.668644 | G8: 7262.332161 | H8: 7053.872605 | I8: 6844.283893 | J8: 6633.55991 | K8: 6421.694504 | L8: 6208.681494 | M8: 5994.514664 | N8: 5779.187764 | O8: 5562.694509 | P8: =O8 -> 5562.694509 | Q8: 5345.028583 | R8: 5126.183633 | S8: 4906.153273 | T8: 4684.931081 | U8: 4462.510603 | V8: 4238.885347 | W8: 4014.048788 | X8: 3787.994364 | Y8: 3560.715478 | Z8: 3332.205499 | AA8: 3102.457757 | AB8: 2871.465548 | AC8: =AB8 -> 2871.465548 | AD8: 2639.222132 | AE8: 2405.72073 | AF8: 2170.954529 | AG8: 1934.916678 | AH8: 1697.600288 | AI8: 1458.998435 | AJ8: 1219.104155 | AK8: 977.9104476 | AL8: 735.4102743 | AM8: 491.5965583 | AN8: 246.4621848 | AO8: 0 | AP8: =AO8 -> 0 | AQ8: 0 | AR8: 0 | AS8: 0 | AT8: 0 | AU8: 0 | AV8: 0 | AW8: 0 | AX8: 0 | AY8: 0 | AZ8: 0 | BA8: 0 | BB8: 0 | BC8: =BB8 -> 0 | BD8: 0 | BE8: 0 | BF8: 0 | BG8: 0 | BH8: 0 | BI8: 0 | BJ8: 0 | BK8: 0 | BL8: 0 | BM8: 0 | BN8: 0 | BO8: 0 | BP8: =BO8 -> 0
D10: 1 | E10: 2 | F10: 3 | G10: 4 | H10: 5 | I10: 6 | J10: 7 | K10: 8 | L10: 9 | M10: 10 | N10: 11 | O10: 12 | Q10: 13 | R10: 14 | S10: 15 | T10: 16 | U10: 17 | V10: 18 | W10: 19 | X10: 20 | Y10: 21 | Z10: 22 | AA10: 23 | AB10: 24 | AD10: 25 | AE10: 26 | AF10: 27 | AG10: 28 | AH10: 29 | AI10: 30 | AJ10: 31 | AK10: 32 | AL10: 33 | AM10: 34 | AN10: 35 | AO10: 36 | AQ10: 37 | AR10: 38 | AS10: 39 | AT10: 40 | AU10: 41 | AV10: 42 | AW10: 43 | AX10: 44 | AY10: 45 | AZ10: 46 | BA10: 47 | BB10: 48 | BD10: 49 | BE10: 50 | BF10: 51 | BG10: 52 | BH10: 53 | BI10: 54 | BJ10: 55 | BK10: 56 | BL10: 57 | BM10: 58 | BN10: 59 | BO10: 60
A11: ='7. Funding Plan'!A23 -> Term Loan 2 | D11: =D3 -> 2016-01-01 | E11: =D11+31 -> 2016-02-01 | F11: =E11+31 -> 2016-03-03 | G11: =F11+31 -> 2016-04-03 | H11: =G11+31 -> 2016-05-04 | I11: 2016-06-04 | J11: 2016-07-05 | K11: 2016-08-05 | L11: 2016-09-05 | M11: 2016-10-06 | N11: 2016-11-06 | O11: 2016-12-07 | P11: =P3 -> 2016 | Q11: =D11 -> 2016-01-01 | R11: =Q11+31 -> 2016-02-01 | S11: =R11+31 -> 2016-03-03 | T11: =S11+31 -> 2016-04-03 | U11: =T11+31 -> 2016-05-04 | V11: 2016-06-04 | W11: 2016-07-05 | X11: 2016-08-05 | Y11: 2016-09-05 | Z11: 2016-10-06 | AA11: 2016-11-06 | AB11: 2016-12-07 | AC11: =AC3 -> 2017 | AD11: =Q11 -> 2016-01-01 | AE11: =AD11+31 -> 2016-02-01 | AF11: =AE11+31 -> 2016-03-03 | AG11: =AF11+31 -> 2016-04-03 | AH11: =AG11+31 -> 2016-05-04 | AI11: 2016-06-04 | AJ11: 2016-07-05 | AK11: 2016-08-05 | AL11: 2016-09-05 | AM11: 2016-10-06 | AN11: 2016-11-06 | AO11: 2016-12-07 | AP11: =AP3 -> 2018 | AQ11: =AD11 -> 2016-01-01 | AR11: =AQ11+31 -> 2016-02-01 | AS11: =AR11+31 -> 2016-03-03 | AT11: =AS11+31 -> 2016-04-03 | AU11: =AT11+31 -> 2016-05-04 | AV11: 2016-06-04 | AW11: 2016-07-05 | AX11: 2016-08-05 | AY11: 2016-09-05 | AZ11: 2016-10-06 | BA11: 2016-11-06 | BB11: 2016-12-07 | BC11: =BC3 -> 2019 | BD11: =AQ11 -> 2016-01-01 | BE11: =BD11+31 -> 2016-02-01 | BF11: =BE11+31 -> 2016-03-03 | BG11: =BF11+31 -> 2016-04-03 | BH11: =BG11+31 -> 2016-05-04 | BI11: 2016-06-04 | BJ11: 2016-07-05 | BK11: 2016-08-05 | BL11: 2016-09-05 | BM11: 2016-10-06 | BN11: 2016-11-06 | BO11: 2016-12-07 | BP11: =BP3 -> 2020
A12: ='7. Funding Plan'!C23 -> 0 | B12: Amount | C12: Balance | D12: =A12 -> 0 | E12: =D16 -> 0 | F12: =E16 -> 0 | G12: =F16 -> 0 | H12: =G16 -> 0 | I12: =H16 -> 0 | J12: =I16 -> 0 | K12: =J16 -> 0 | L12: =K16 -> 0 | M12: =L16 -> 0 | N12: =M16 -> 0 | O12: =N16 -> 0 | P12: =D12 -> 0 | Q12: =O16 -> 0 | R12: =Q16 -> 0 | S12: =R16 -> 0 | T12: =S16 -> 0 | U12: =T16 -> 0 | V12: =U16 -> 0 | W12: =V16 -> 0 | X12: =W16 -> 0 | Y12: =X16 -> 0 | Z12: =Y16 -> 0 | AA12: =Z16 -> 0 | AB12: =AA16 -> 0 | AC12: =Q12 -> 0 | AD12: =IF(AB16<0.1,0,AB16) -> 0 | AE12: =AD16 -> 0 | AF12: =AE16 -> 0 | AG12: =AF16 -> 0 | AH12: =AG16 -> 0 | AI12: =AH16 -> 0 | AJ12: =AI16 -> 0 | AK12: =AJ16 -> 0 | AL12: =AK16 -> 0 | AM12: =AL16 -> 0 | AN12: =AM16 -> 0 | AO12: =AN16 -> 0 | AP12: =AO12 -> 0 | AQ12: =IF(AO16<0.1,0,AO16) -> 0 | AR12: =AQ16 -> 0 | AS12: =AR16 -> 0 | AT12: =AS16 -> 0 | AU12: =AT16 -> 0 | AV12: =AU16 -> 0 | AW12: =AV16 -> 0 | AX12: =AW16 -> 0 | AY12: =AX16 -> 0 | AZ12: =AY16 -> 0 | BA12: =AZ16 -> 0 | BB12: =BA16 -> 0 | BC12: =BB12 -> 0 | BD12: =IF(BB16<0.1,0,BB16) -> 0 | BE12: =BD16 -> 0 | BF12: =BE16 -> 0 | BG12: =BF16 -> 0 | BH12: =BG16 -> 0 | BI12: =BH16 -> 0 | BJ12: =BI16 -> 0 | BK12: =BJ16 -> 0 | BL12: =BK16 -> 0 | BM12: =BL16 -> 0 | BN12: =BM16 -> 0 | BO12: =BN16 -> 0 | BP12: =BO12 -> 0
A13: ='7. Funding Plan'!D23 -> 0.05 | B13: Interest | C13: Payment | D13: =IF(D12>0,PMT($A13/12,$A14*12,$A12)*-1,0) -> 0 | E13: 0 | F13: 0 | G13: 0 | H13: 0 | I13: 0 | J13: 0 | K13: 0 | L13: 0 | M13: 0 | N13: 0 | O13: 0 | P13: =SUM(D13:O13) -> 0 | Q13: =IF(Q12>0,PMT($A13/12,$A14*12,$A12)*-1,0) -> 0 | R13: 0 | S13: 0 | T13: 0 | U13: 0 | V13: 0 | W13: 0 | X13: 0 | Y13: 0 | Z13: 0 | AA13: 0 | AB13: 0 | AC13: =SUM(Q13:AB13) -> 0 | AD13: =IF(AD12>0,PMT($A13/12,$A14*12,$A12)*-1,0) -> 0 | AE13: 0 | AF13: 0 | AG13: 0 | AH13: 0 | AI13: 0 | AJ13: 0 | AK13: 0 | AL13: 0 | AM13: 0 | AN13: 0 | AO13: 0 | AP13: =SUM(AD13:AO13) -> 0 | AQ13: =IF(AQ12>0,PMT($A13/12,$A14*12,$A12)*-1,0) -> 0 | AR13: 0 | AS13: 0 | AT13: 0 | AU13: 0 | AV13: 0 | AW13: 0 | AX13: 0 | AY13: 0 | AZ13: 0 | BA13: 0 | BB13: 0 | BC13: =SUM(AQ13:BB13) -> 0 | BD13: =IF(BD12>0,PMT($A13/12,$A14*12,$A12)*-1,0) -> 0 | BE13: 0 | BF13: 0 | BG13: 0 | BH13: 0 | BI13: 0 | BJ13: 0 | BK13: 0 | BL13: 0 | BM13: 0 | BN13: 0 | BO13: 0 | BP13: =SUM(BD13:BO13) -> 0
A14: ='7. Funding Plan'!E23 -> 10 | B14: Term | C14: Interest | D14: =$A13/12*D12 -> 0 | E14: 0 | F14: 0 | G14: 0 | H14: 0 | I14: 0 | J14: 0 | K14: 0 | L14: 0 | M14: 0 | N14: 0 | O14: 0 | P14: =SUM(D14:O14) -> 0 | Q14: =$A13/12*Q12 -> 0 | R14: 0 | S14: 0 | T14: 0 | U14: 0 | V14: 0 | W14: 0 | X14: 0 | Y14: 0 | Z14: 0 | AA14: 0 | AB14: 0 | AC14: =SUM(Q14:AB14) -> 0 | AD14: =$A13/12*AD12 -> 0 | AE14: 0 | AF14: 0 | AG14: 0 | AH14: 0 | AI14: 0 | AJ14: 0 | AK14: 0 | AL14: 0 | AM14: 0 | AN14: 0 | AO14: 0 | AP14: =SUM(AD14:AO14) -> 0 | AQ14: =$A13/12*AQ12 -> 0 | AR14: 0 | AS14: 0 | AT14: 0 | AU14: 0 | AV14: 0 | AW14: 0 | AX14: 0 | AY14: 0 | AZ14: 0 | BA14: 0 | BB14: 0 | BC14: =SUM(AQ14:BB14) -> 0 | BD14: =$A13/12*BD12 -> 0 | BE14: 0 | BF14: 0 | BG14: 0 | BH14: 0 | BI14: 0 | BJ14: 0 | BK14: 0 | BL14: 0 | BM14: 0 | BN14: 0 | BO14: 0 | BP14: =SUM(BD14:BO14) -> 0
C15: Principal | D15: =D13-D14 -> 0 | E15: 0 | F15: 0 | G15: 0 | H15: 0 | I15: 0 | J15: 0 | K15: 0 | L15: 0 | M15: 0 | N15: 0 | O15: 0 | P15: =SUM(D15:O15) -> 0 | Q15: =Q13-Q14 -> 0 | R15: 0 | S15: 0 | T15: 0 | U15: 0 | V15: 0 | W15: 0 | X15: 0 | Y15: 0 | Z15: 0 | AA15: 0 | AB15: 0 | AC15: =SUM(Q15:AB15) -> 0 | AD15: =AD13-AD14 -> 0 | AE15: 0 | AF15: 0 | AG15: 0 | AH15: 0 | AI15: 0 | AJ15: 0 | AK15: 0 | AL15: 0 | AM15: 0 | AN15: 0 | AO15: 0 | AP15: =SUM(AD15:AO15) -> 0 | AQ15: =AQ13-AQ14 -> 0 | AR15: 0 | AS15: 0 | AT15: 0 | AU15: 0 | AV15: 0 | AW15: 0 | AX15: 0 | AY15: 0 | AZ15: 0 | BA15: 0 | BB15: 0 | BC15: =SUM(AQ15:BB15) -> 0 | BD15: =BD13-BD14 -> 0 | BE15: 0 | BF15: 0 | BG15: 0 | BH15: 0 | BI15: 0 | BJ15: 0 | BK15: 0 | BL15: 0 | BM15: 0 | BN15: 0 | BO15: 0 | BP15: =SUM(BD15:BO15) -> 0
C16: Ending | D16: =IF(D12-D15<0,0,D12-D15) -> 0 | E16: 0 | F16: 0 | G16: 0 | H16: 0 | I16: 0 | J16: 0 | K16: 0 | L16: 0 | M16: 0 | N16: 0 | O16: 0 | P16: =O16 -> 0 | Q16: =IF(Q12-Q15<0,0,Q12-Q15) -> 0 | R16: 0 | S16: 0 | T16: 0 | U16: 0 | V16: 0 | W16: 0 | X16: 0 | Y16: 0 | Z16: 0 | AA16: 0 | AB16: 0 | AC16: =AB16 -> 0 | AD16: =IF(AD12-AD15<0,0,AD12-AD15) -> 0 | AE16: 0 | AF16: 0 | AG16: 0 | AH16: 0 | AI16: 0 | AJ16: 0 | AK16: 0 | AL16: 0 | AM16: 0 | AN16: 0 | AO16: 0 | AP16: =AO16 -> 0 | AQ16: =IF(AQ12-AQ15<0,0,AQ12-AQ15) -> 0 | AR16: 0 | AS16: 0 | AT16: 0 | AU16: 0 | AV16: 0 | AW16: 0 | AX16: 0 | AY16: 0 | AZ16: 0 | BA16: 0 | BB16: 0 | BC16: =BB16 -> 0 | BD16: =IF(BD12-BD15<0,0,BD12-BD15) -> 0 | BE16: 0 | BF16: 0 | BG16: 0 | BH16: 0 | BI16: 0 | BJ16: 0 | BK16: 0 | BL16: 0 | BM16: 0 | BN16: 0 | BO16: 0 | BP16: =BO16 -> 0
A18: Line of Credit or Credit | D18: 1 | E18: 2 | F18: 3 | G18: 4 | H18: 5 | I18: 6 | J18: 7 | K18: 8 | L18: 9 | M18: 10 | N18: 11 | O18: 12 | Q18: 13 | R18: 14 | S18: 15 | T18: 16 | U18: 17 | V18: 18 | W18: 19 | X18: 20 | Y18: 21 | Z18: 22 | AA18: 23 | AB18: 24 | AD18: 25 | AE18: 26 | AF18: 27 | AG18: 28 | AH18: 29 | AI18: 30 | AJ18: 31 | AK18: 32 | AL18: 33 | AM18: 34 | AN18: 35 | AO18: 36 | AQ18: 37 | AR18: 38 | AS18: 39 | AT18: 40 | AU18: 41 | AV18: 42 | AW18: 43 | AX18: 44 | AY18: 45 | AZ18: 46 | BA18: 47 | BB18: 48 | BD18: 49 | BE18: 50 | BF18: 51 | BG18: 52 | BH18: 53 | BI18: 54 | BJ18: 55 | BK18: 56 | BL18: 57 | BM18: 58 | BN18: 59 | BO18: 60
B19: Cards | D19: =D11 -> 2016-01-01 | E19: =D19+31 -> 2016-02-01 | F19: =E19+31 -> 2016-03-03 | G19: =F19+31 -> 2016-04-03 | H19: =G19+31 -> 2016-05-04 | I19: 2016-06-04 | J19: 2016-07-05 | K19: 2016-08-05 | L19: 2016-09-05 | M19: 2016-10-06 | N19: 2016-11-06 | O19: 2016-12-07 | P19: =P11 -> 2016 | Q19: =D19 -> 2016-01-01 | R19: =Q19+31 -> 2016-02-01 | S19: =R19+31 -> 2016-03-03 | T19: =S19+31 -> 2016-04-03 | U19: =T19+31 -> 2016-05-04 | V19: 2016-06-04 | W19: 2016-07-05 | X19: 2016-08-05 | Y19: 2016-09-05 | Z19: 2016-10-06 | AA19: 2016-11-06 | AB19: 2016-12-07 | AC19: =AC11 -> 2017 | AD19: =Q19 -> 2016-01-01 | AE19: =AD19+31 -> 2016-02-01 | AF19: =AE19+31 -> 2016-03-03 | AG19: =AF19+31 -> 2016-04-03 | AH19: =AG19+31 -> 2016-05-04 | AI19: 2016-06-04 | AJ19: 2016-07-05 | AK19: 2016-08-05 | AL19: 2016-09-05 | AM19: 2016-10-06 | AN19: 2016-11-06 | AO19: 2016-12-07 | AP19: =AP11 -> 2018 | AQ19: =AD19 -> 2016-01-01 | AR19: =AQ19+31 -> 2016-02-01 | AS19: =AR19+31 -> 2016-03-03 | AT19: =AS19+31 -> 2016-04-03 | AU19: =AT19+31 -> 2016-05-04 | AV19: 2016-06-04 | AW19: 2016-07-05 | AX19: 2016-08-05 | AY19: 2016-09-05 | AZ19: 2016-10-06 | BA19: 2016-11-06 | BB19: 2016-12-07 | BC19: =BC11 -> 2019 | BD19: =AQ19 -> 2016-01-01 | BE19: =BD19+31 -> 2016-02-01 | BF19: =BE19+31 -> 2016-03-03 | BG19: =BF19+31 -> 2016-04-03 | BH19: =BG19+31 -> 2016-05-04 | BI19: 2016-06-04 | BJ19: 2016-07-05 | BK19: 2016-08-05 | BL19: 2016-09-05 | BM19: 2016-10-06 | BN19: 2016-11-06 | BO19: 2016-12-07 | BP19: =BP11 -> 2020
A20: ='7. Funding Plan'!C18 -> 0 | B20: Start | C20: Balance | D20: =A20 -> 0 | E20: =D25 -> 0 | F20: =E25 -> 1200 | G20: 615 | H20: 615 | I20: 615 | J20: 615 | K20: 615 | L20: 615 | M20: 615 | N20: 615 | O20: 615 | P20: =D20 -> 0 | Q20: =O25 -> 615 | R20: =Q25 -> 615 | S20: 615 | T20: 615 | U20: 615 | V20: 615 | W20: 615 | X20: 615 | Y20: 615 | Z20: 615 | AA20: 615 | AB20: 615 | AC20: =Q20 -> 615 | AD20: =AB25 -> 615 | AE20: =AD25 -> 615 | AF20: =AE25 -> 615 | AG20: =AF25 -> 615 | AH20: =AG25 -> 615 | AI20: =AH25 -> 615 | AJ20: =AI25 -> 615 | AK20: =AJ25 -> 615 | AL20: =AK25 -> 615 | AM20: =AL25 -> 615 | AN20: =AM25 -> 615 | AO20: =AN25 -> 615 | AP20: =AO25 -> 615 | AQ20: =AO25 -> 615 | AR20: =AQ25 -> 615 | AS20: =AR25 -> 615 | AT20: =AS25 -> 615 | AU20: =AT25 -> 615 | AV20: =AU25 -> 615 | AW20: =AV25 -> 615 | AX20: =AW25 -> 615 | AY20: =AX25 -> 615 | AZ20: =AY25 -> 615 | BA20: =AZ25 -> 615 | BB20: =BA25 -> 615 | BC20: =BB23 -> 0 | BD20: =BB25 -> 615 | BE20: =BD25 -> 615 | BF20: =BE25 -> 615 | BG20: =BF25 -> 615 | BH20: =BG25 -> 615 | BI20: =BH25 -> 615 | BJ20: =BI25 -> 615 | BK20: =BJ25 -> 615 | BL20: =BK25 -> 615 | BM20: =BL25 -> 615 | BN20: =BM25 -> 615 | BO20: =BN25 -> 615 | BP20: =BO23 -> 0
A21: ='7. Funding Plan'!D19 -> 0.15 | B21: Interest | C21: Interest | D21: =IF(D20<0,0,$A21/12*D20) -> 0 | E21: =IF(E20<0,0,$A21/12*E20) -> 0 | F21: =IF(F20<0,0,$A21/12*F20) -> 15 | G21: 7.6875 | H21: 7.6875 | I21: 7.6875 | J21: 7.6875 | K21: 7.6875 | L21: 7.6875 | M21: 7.6875 | N21: 7.6875 | O21: 7.6875 | P21: =SUM(D21:O21) -> 84.1875 | Q21: =IF(Q20<0,0,$A21/12*Q20) -> 7.6875 | R21: 7.6875 | S21: 7.6875 | T21: 7.6875 | U21: 7.6875 | V21: 7.6875 | W21: 7.6875 | X21: 7.6875 | Y21: 7.6875 | Z21: 7.6875 | AA21: 7.6875 | AB21: 7.6875 | AC21: =SUM(Q21:AB21) -> 92.25 | AD21: =IF(AD20<0,0,$A21/12*AD20) -> 7.6875 | AE21: 7.6875 | AF21: 7.6875 | AG21: 7.6875 | AH21: 7.6875 | AI21: 7.6875 | AJ21: 7.6875 | AK21: 7.6875 | AL21: 7.6875 | AM21: 7.6875 | AN21: 7.6875 | AO21: 7.6875 | AP21: =IF(AP20<0,0,$A21/12*AP20) -> 7.6875 | AQ21: 7.6875 | AR21: 7.6875 | AS21: 7.6875 | AT21: 7.6875 | AU21: 7.6875 | AV21: 7.6875 | AW21: 7.6875 | AX21: 7.6875 | AY21: 7.6875 | AZ21: 7.6875 | BA21: 7.6875 | BB21: 7.6875 | BC21: =IF(BC20<0,0,$A21/12*BC20) -> 0 | BD21: 7.6875 | BE21: 7.6875 | BF21: 7.6875 | BG21: 7.6875 | BH21: 7.6875 | BI21: 7.6875 | BJ21: 7.6875 | BK21: 7.6875 | BL21: 7.6875 | BM21: 7.6875 | BN21: 7.6875 | BO21: 7.6875 | BP21: =IF(BP20<0,0,$A21/12*BP20) -> 0
C22: Payment | D22: ='8. P&L and Cashflow'!D75 -> 0 | E22: ='8. P&L and Cashflow'!E75 -> 0 | F22: ='8. P&L and Cashflow'!F75 -> 600 | G22: ='8. P&L and Cashflow'!G75 -> 0 | H22: ='8. P&L and Cashflow'!H75 -> 0 | I22: ='8. P&L and Cashflow'!I75 -> 0 | J22: ='8. P&L and Cashflow'!J75 -> 0 | K22: ='8. P&L and Cashflow'!K75 -> 0 | L22: ='8. P&L and Cashflow'!L75 -> 0 | M22: ='8. P&L and Cashflow'!M75 -> 0 | N22: ='8. P&L and Cashflow'!N75 -> 0 | O22: ='8. P&L and Cashflow'!O75 -> 0 | P22: =SUM(D22:O22) -> 600 | Q22: ='8. P&L and Cashflow'!Q75 -> 0 | R22: ='8. P&L and Cashflow'!R75 -> 0 | S22: ='8. P&L and Cashflow'!S75 -> 0 | T22: ='8. P&L and Cashflow'!T75 -> 0 | U22: ='8. P&L and Cashflow'!U75 -> 0 | V22: ='8. P&L and Cashflow'!V75 -> 0 | W22: ='8. P&L and Cashflow'!W75 -> 0 | X22: ='8. P&L and Cashflow'!X75 -> 0 | Y22: ='8. P&L and Cashflow'!Y75 -> 0 | Z22: ='8. P&L and Cashflow'!Z75 -> 0 | AA22: ='8. P&L and Cashflow'!AA75 -> 0 | AB22: ='8. P&L and Cashflow'!AB75 -> 0 | AC22: =SUM(Q22:AB22) -> 0 | AD22: ='8. P&L and Cashflow'!AD75 -> 0 | AE22: ='8. P&L and Cashflow'!AE75 -> 0 | AF22: ='8. P&L and Cashflow'!AF75 -> 0 | AG22: ='8. P&L and Cashflow'!AG75 -> 0 | AH22: ='8. P&L and Cashflow'!AH75 -> 0 | AI22: ='8. P&L and Cashflow'!AI75 -> 0 | AJ22: ='8. P&L and Cashflow'!AJ75 -> 0 | AK22: ='8. P&L and Cashflow'!AK75 -> 0 | AL22: ='8. P&L and Cashflow'!AL75 -> 0 | AM22: ='8. P&L and Cashflow'!AM75 -> 0 | AN22: ='8. P&L and Cashflow'!AN75 -> 0 | AO22: ='8. P&L and Cashflow'!AO75 -> 0 | AP22: ='8. P&L and Cashflow'!AD75 -> 0 | AQ22: ='8. P&L and Cashflow'!AQ75 -> 0 | AR22: ='8. P&L and Cashflow'!AR75 -> 0 | AS22: ='8. P&L and Cashflow'!AS75 -> 0 | AT22: ='8. P&L and Cashflow'!AT75 -> 0 | AU22: ='8. P&L and Cashflow'!AU75 -> 0 | AV22: ='8. P&L and Cashflow'!AV75 -> 0 | AW22: ='8. P&L and Cashflow'!AW75 -> 0 | AX22: ='8. P&L and Cashflow'!AX75 -> 0 | AY22: ='8. P&L and Cashflow'!AY75 -> 0 | AZ22: ='8. P&L and Cashflow'!AZ75 -> 0 | BA22: ='8. P&L and Cashflow'!BA75 -> 0 | BB22: ='8. P&L and Cashflow'!BB75 -> 0 | BC22: ='8. P&L and Cashflow'!AE75 -> 0 | BD22: ='8. P&L and Cashflow'!BD75 -> 0 | BE22: ='8. P&L and Cashflow'!BE75 -> 0 | BF22: ='8. P&L and Cashflow'!BF75 -> 0 | BG22: ='8. P&L and Cashflow'!BG75 -> 0 | BH22: ='8. P&L and Cashflow'!BH75 -> 0 | BI22: ='8. P&L and Cashflow'!BI75 -> 0 | BJ22: ='8. P&L and Cashflow'!BJ75 -> 0 | BK22: ='8. P&L and Cashflow'!BK75 -> 0 | BL22: ='8. P&L and Cashflow'!BL75 -> 0 | BM22: ='8. P&L and Cashflow'!BM75 -> 0 | BN22: ='8. P&L and Cashflow'!BN75 -> 0 | BO22: ='8. P&L and Cashflow'!BO75 -> 0 | BP22: ='8. P&L and Cashflow'!AF75 -> 0
C23: Principal | D23: =IF(D22-D21<0,0,D22-D21) -> 0 | E23: =IF(E22-E21<0,0,E22-E21) -> 0 | F23: 585 | G23: 0 | H23: 0 | I23: 0 | J23: 0 | K23: 0 | L23: 0 | M23: 0 | N23: 0 | O23: 0 | P23: 515.8125 | Q23: 0 | R23: 0 | S23: 0 | T23: 0 | U23: 0 | V23: 0 | W23: 0 | X23: 0 | Y23: 0 | Z23: 0 | AA23: 0 | AB23: 0 | AC23: 0 | AD23: =IF(AD22-AD21<0,0,AD22-AD21) -> 0 | AE23: 0 | AF23: 0 | AG23: 0 | AH23: 0 | AI23: 0 | AJ23: 0 | AK23: 0 | AL23: 0 | AM23: 0 | AN23: 0 | AO23: 0 | AP23: 0 | AQ23: 0 | AR23: 0 | AS23: 0 | AT23: 0 | AU23: 0 | AV23: 0 | AW23: 0 | AX23: 0 | AY23: 0 | AZ23: 0 | BA23: 0 | BB23: 0 | BC23: 0 | BD23: =IF(BD22-BD21<0,0,BD22-BD21) -> 0 | BE23: 0 | BF23: 0 | BG23: 0 | BH23: 0 | BI23: 0 | BJ23: 0 | BK23: 0 | BL23: 0 | BM23: 0 | BN23: 0 | BO23: 0 | BP23: 0
C24: Charges | D24: ='8. P&L and Cashflow'!D70 -> 0 | E24: ='8. P&L and Cashflow'!E70 -> 1200 | F24: ='8. P&L and Cashflow'!F70 -> 0 | G24: ='8. P&L and Cashflow'!G70 -> 0 | H24: ='8. P&L and Cashflow'!H70 -> 0 | I24: ='8. P&L and Cashflow'!I70 -> 0 | J24: ='8. P&L and Cashflow'!J70 -> 0 | K24: ='8. P&L and Cashflow'!K70 -> 0 | L24: ='8. P&L and Cashflow'!L70 -> 0 | M24: ='8. P&L and Cashflow'!M70 -> 0 | N24: ='8. P&L and Cashflow'!N70 -> 0 | O24: ='8. P&L and Cashflow'!O70 -> 0 | P24: =SUM(D24:O24) -> 1200 | Q24: ='8. P&L and Cashflow'!Q70 -> 0 | R24: ='8. P&L and Cashflow'!R70 -> 0 | S24: ='8. P&L and Cashflow'!S70 -> 0 | T24: ='8. P&L and Cashflow'!T70 -> 0 | U24: ='8. P&L and Cashflow'!U70 -> 0 | V24: ='8. P&L and Cashflow'!V70 -> 0 | W24: ='8. P&L and Cashflow'!W70 -> 0 | X24: ='8. P&L and Cashflow'!X70 -> 0 | Y24: ='8. P&L and Cashflow'!Y70 -> 0 | Z24: ='8. P&L and Cashflow'!Z70 -> 0 | AA24: ='8. P&L and Cashflow'!AA70 -> 0 | AB24: ='8. P&L and Cashflow'!AB70 -> 0 | AC24: =SUM(Q24:AB24) -> 0 | AD24: ='8. P&L and Cashflow'!AD70 -> 0 | AE24: ='8. P&L and Cashflow'!AE70 -> 0 | AF24: ='8. P&L and Cashflow'!AF70 -> 0 | AG24: ='8. P&L and Cashflow'!AG70 -> 0 | AH24: ='8. P&L and Cashflow'!AH70 -> 0 | AI24: ='8. P&L and Cashflow'!AI70 -> 0 | AJ24: ='8. P&L and Cashflow'!AJ70 -> 0 | AK24: ='8. P&L and Cashflow'!AK70 -> 0 | AL24: ='8. P&L and Cashflow'!AL70 -> 0 | AM24: ='8. P&L and Cashflow'!AM70 -> 0 | AN24: ='8. P&L and Cashflow'!AN70 -> 0 | AO24: ='8. P&L and Cashflow'!AO70 -> 0 | AP24: ='8. P&L and Cashflow'!AD70 -> 0 | AQ24: ='8. P&L and Cashflow'!AQ70 -> 0 | AR24: ='8. P&L and Cashflow'!AR70 -> 0 | AS24: ='8. P&L and Cashflow'!AS70 -> 0 | AT24: ='8. P&L and Cashflow'!AT70 -> 0 | AU24: ='8. P&L and Cashflow'!AU70 -> 0 | AV24: ='8. P&L and Cashflow'!AV70 -> 0 | AW24: ='8. P&L and Cashflow'!AW70 -> 0 | AX24: ='8. P&L and Cashflow'!AX70 -> 0 | AY24: ='8. P&L and Cashflow'!AY70 -> 0 | AZ24: ='8. P&L and Cashflow'!AZ70 -> 0 | BA24: ='8. P&L and Cashflow'!BA70 -> 0 | BB24: ='8. P&L and Cashflow'!BB70 -> 0 | BC24: ='8. P&L and Cashflow'!AE70 -> 0 | BD24: ='8. P&L and Cashflow'!BD70 -> 0 | BE24: ='8. P&L and Cashflow'!BE70 -> 0 | BF24: ='8. P&L and Cashflow'!BF70 -> 0 | BG24: ='8. P&L and Cashflow'!BG70 -> 0 | BH24: ='8. P&L and Cashflow'!BH70 -> 0 | BI24: ='8. P&L and Cashflow'!BI70 -> 0 | BJ24: ='8. P&L and Cashflow'!BJ70 -> 0 | BK24: ='8. P&L and Cashflow'!BK70 -> 0 | BL24: ='8. P&L and Cashflow'!BL70 -> 0 | BM24: ='8. P&L and Cashflow'!BM70 -> 0 | BN24: ='8. P&L and Cashflow'!BN70 -> 0 | BO24: ='8. P&L and Cashflow'!BO70 -> 0 | BP24: ='8. P&L and Cashflow'!AF70 -> 0
C25: Ending | D25: =D20-D23+D24 -> 0 | E25: =E20-E23+E24 -> 1200 | F25: 615 | G25: 615 | H25: 615 | I25: 615 | J25: 615 | K25: 615 | L25: 615 | M25: 615 | N25: 615 | O25: 615 | P25: =P20-P23+P24 -> 684.1875 | Q25: =Q20-Q23+Q24 -> 615 | R25: =R20-R23+R24 -> 615 | S25: =S20-S23+S24 -> 615 | T25: =T20-T23+T24 -> 615 | U25: =U20-U23+U24 -> 615 | V25: =V20-V23+V24 -> 615 | W25: =W20-W23+W24 -> 615 | X25: =X20-X23+X24 -> 615 | Y25: =Y20-Y23+Y24 -> 615 | Z25: =Z20-Z23+Z24 -> 615 | AA25: =AA20-AA23+AA24 -> 615 | AB25: =AB20-AB23+AB24 -> 615 | AC25: =AC20-AC23+AC24 -> 615 | AD25: =AD20-AD23+AD24 -> 615 | AE25: =AE20-AE23+AE24 -> 615 | AF25: =AF20-AF23+AF24 -> 615 | AG25: =AG20-AG23+AG24 -> 615 | AH25: =AH20-AH23+AH24 -> 615 | AI25: =AI20-AI23+AI24 -> 615 | AJ25: =AJ20-AJ23+AJ24 -> 615 | AK25: =AK20-AK23+AK24 -> 615 | AL25: =AL20-AL23+AL24 -> 615 | AM25: =AM20-AM23+AM24 -> 615 | AN25: =AN20-AN23+AN24 -> 615 | AO25: =AO20-AO23+AO24 -> 615 | AP25: =AP20-AP23+AP24 -> 615 | AQ25: =AQ20-AQ23+AQ24 -> 615 | AR25: =AR20-AR23+AR24 -> 615 | AS25: =AS20-AS23+AS24 -> 615 | AT25: =AT20-AT23+AT24 -> 615 | AU25: =AU20-AU23+AU24 -> 615 | AV25: =AV20-AV23+AV24 -> 615 | AW25: =AW20-AW23+AW24 -> 615 | AX25: =AX20-AX23+AX24 -> 615 | AY25: =AY20-AY23+AY24 -> 615 | AZ25: =AZ20-AZ23+AZ24 -> 615 | BA25: =BA20-BA23+BA24 -> 615 | BB25: =BB20-BB23+BB24 -> 615 | BC25: =BC20-BC23+BC24 -> 0 | BD25: =BD20-BD23+BD24 -> 615 | BE25: =BE20-BE23+BE24 -> 615 | BF25: 615 | BG25: 615 | BH25: 615 | BI25: 615 | BJ25: 615 | BK25: 615 | BL25: 615 | BM25: 615 | BN25: 615 | BO25: 615 | BP25: =BP20-BP23+BP24 -> 0
A27: Total Funding Amounts
C28: Interest Paid | D28: =D6+D14+D21 -> 43.79375 | E28: =E6+E14+E21 -> 42.68873138 | F28: 56.57772723 | G28: 48.14820515 | H28: 47.02513254 | I28: 45.89597661 | J28: 44.76070442 | K28: 43.61928284 | L28: 42.47167856 | M28: 41.31785809 | N28: 40.15778776 | O28: 38.99143372 | P28: 535.4482683 | Q28: 37.81876193 | R28: 36.63973816 | S28: 35.45432801 | T28: 34.26249689 | U28: 33.06421002 | V28: 31.85943243 | W28: 30.64812896 | X28: 29.43026427 | Y28: 28.2058028 | Z28: 26.97470884 | AA28: 25.73694645 | AB28: 24.49247952 | AC28: 374.5872983 | AD28: 23.24127172 | AE28: 21.98328655 | AF28: 20.71848729 | AG28: 19.44683703 | AH28: 18.16829867 | AI28: 16.8828349 | AJ28: 15.59040819 | AK28: 14.29098084 | AL28: 12.98451492 | AM28: 11.67097232 | AN28: 10.35031469 | AO28: 9.022503501 | AP28: 109.7882106 | AQ28: 7.6875 | AR28: 7.6875 | AS28: 7.6875 | AT28: 7.6875 | AU28: 7.6875 | AV28: 7.6875 | AW28: 7.6875 | AX28: 7.6875 | AY28: 7.6875 | AZ28: 7.6875 | BA28: 7.6875 | BB28: 7.6875 | BC28: 0 | BD28: 7.6875 | BE28: 7.6875 | BF28: 7.6875 | BG28: 7.6875 | BH28: 7.6875 | BI28: 7.6875 | BJ28: 7.6875 | BK28: 7.6875 | BL28: 7.6875 | BM28: 7.6875 | BN28: 7.6875 | BO28: 7.6875 | BP28: 0
C29: Principal | D29: =D7+D15+D23 -> 204.0034383 | E29: =E7+E15+E23 -> 205.1084569 | F29: 791.219461 | G29: 207.3364831 | H29: 208.4595557 | I29: 209.5887116 | J29: 210.7239838 | K29: 211.8654054 | L29: 213.0130097 | M29: 214.1668302 | N29: 215.3269005 | O29: 216.4932545 | P29: 3038.117991 | Q29: 217.6659263 | R29: 218.8449501 | S29: 220.0303602 | T29: 221.2221914 | U29: 222.4204782 | V29: 223.6252558 | W29: 224.8365593 | X29: 226.054424 | Y29: 227.2788855 | Z29: 228.5099794 | AA29: 229.7477418 | AB29: 230.9922087 | AC29: 2691.228961 | AD29: 232.2434165 | AE29: 233.5014017 | AF29: 234.766201 | AG29: 236.0378512 | AH29: 237.3163896 | AI29: 238.6018534 | AJ29: 239.8942801 | AK29: 241.1937074 | AL29: 242.5001733 | AM29: 243.8137159 | AN29: 245.1343736 | AO29: 246.4621848 | AP29: 2871.465548 | AQ29: 0 | AR29: 0 | AS29: 0 | AT29: 0 | AU29: 0 | AV29: 0 | AW29: 0 | AX29: 0 | AY29: 0 | AZ29: 0 | BA29: 0 | BB29: 0 | BC29: 0 | BD29: 0 | BE29: 0 | BF29: 0 | BG29: 0 | BH29: 0 | BI29: 0 | BJ29: 0 | BK29: 0 | BL29: 0 | BM29: 0 | BN29: 0 | BO29: 0 | BP29: 0
C31: Outstanding Principal | D31: =D8+D16 -> 7880.996562 | E31: =E8+E16 -> 7675.888105 | F31: 7469.668644 | G31: 7262.332161 | H31: 7053.872605 | I31: 6844.283893 | J31: 6633.55991 | K31: 6421.694504 | L31: 6208.681494 | M31: 5994.514664 | N31: 5779.187764 | O31: 5562.694509 | P31: 5562.694509 | Q31: 5345.028583 | R31: 5126.183633 | S31: 4906.153273 | T31: 4684.931081 | U31: 4462.510603 | V31: 4238.885347 | W31: 4014.048788 | X31: 3787.994364 | Y31: 3560.715478 | Z31: 3332.205499 | AA31: 3102.457757 | AB31: 2871.465548 | AC31: 2871.465548 | AD31: 2639.222132 | AE31: 2405.72073 | AF31: 2170.954529 | AG31: 1934.916678 | AH31: 1697.600288 | AI31: 1458.998435 | AJ31: 1219.104155 | AK31: 977.9104476 | AL31: 735.4102743 | AM31: 491.5965583 | AN31: 246.4621848 | AO31: 0 | AP31: 0 | AQ31: 0 | AR31: 0 | AS31: 0 | AT31: 0 | AU31: 0 | AV31: 0 | AW31: 0 | AX31: 0 | AY31: 0 | AZ31: 0 | BA31: 0 | BB31: 0 | BC31: 0 | BD31: 0 | BE31: 0 | BF31: 0 | BG31: 0 | BH31: 0 | BI31: 0 | BJ31: 0 | BK31: 0 | BL31: 0 | BM31: 0 | BN31: 0 | BO31: 0 | BP31: 0

Sheet BP Checklist (hidden)
A1: Section | B1: num | C1: Description | D1: question | E1: answer 1 | F1: answer 2 | G1: answer 3 | H1: action
A2: 2 | B2: 1 | C2: Name of Business | D2: checked if available
B3: 2 | C3: Type
